{"text_format":"1","workbook":"xlsx","n_sheets":3,"sheets":["sheet1","sheet2","sheet3"],"not_rendered":{"charts":0,"images":0,"macros":1,"external_links":0,"defined_names":2,"comments":0,"pivot_tables":0},"unopened":[],"bounds":{"document_bytes":16777216,"sheet_cells":100000,"rows_first":2000,"rows_last":500,"rows_between":2000,"halvings":0,"cell_chars":16384,"cell_head_chars":4096},"cells_cut":0,"cells_raw":0,"read":"whole","date_system":"1900"}

{"sheet":"sheet1","index":0,"n_rows":16671,"n_cols":23,"rows_kept":4500,"cut":true,"hidden":false,"merged":[],"bounds":{"rows_first":2000,"rows_last":500,"rows_between":2000,"halvings":0}}
["الرقم المتسلسل","التاريخ","الاسم","التلفون","نوع الخدمة","العدد","المبلغ المطلوب","المبلغ المدفوع","المبلغ المتبقي","نصيب العامل","المصروفات","المسحوبات","الصافي",null,null,null,"0913404473",{"$f":"MATCH(Q1,D:D,0)","v":4},null,null,null,null,"الاسم"]
[1,"2024-01-02",3,"09128",5,4,3,2,{"$f":"G2-H2","v":1},{"$f":"IF(E417=$M$6,D417*0,IF(E417=$M$7,D417*70,IF(E417=$M$8,D417*100,IF(E417=$M$9,D417*140,0))))","v":0},null,null,{"$f":"G2-J2-K2-L2","v":3},null,null,null,null,null,null,null,null,null,3]
[4,"2024-02-24","جدو","0909125","مكوة",5,1200,null,{"$f":"G3-H3","v":1200},{"$f":"IF(E418=$M$6,D418*0,IF(E418=$M$7,D418*70,IF(E418=$M$8,D418*100,IF(E418=$M$9,D418*140,0))))","v":0},null,null,null,null,null,null,null,null,null,null,null,null,"جدو"]
[1234,"23-4","محمد","0913404473","مكوه",5,1000,null,1000,0,null,null,null,null,null,null,null,null,null,null,null,null,"محمد"]
[null,null,null,null,null,null,null,null,0,0]
[null,null,null,null,null,null,null,null,0,0]
[null,null,null,null,null,null,null,null,0,0]
[null,null,null,null,null,null,null,null,0,0]
[null,null,null,null,null,null,null,null,0,0]
[null,null,null,null,null,null,null,null,0,0]
[null,null,null,null,null,null,null,null,0,0]
[null,null,null,null,null,null,null,null,0,0]
[null,null,null,null,null,null,null,null,0,0]
[null,null,null,null,null,null,null,null,0,0]
[null,null,null,null,null,null,null,null,0,0]
[null,null,null,null,null,null,null,null,0,0]
[null,null,null,null,null,null,null,null,0,0]
[null,null,null,null,null,null,null,null,0,0]
[null,null,null,null,null,null,null,null,0,0]
[null,null,null,null,null,null,null,null,0,0]
[null,null,null,null,null,null,null,null,0,0]
[null,null,null,null,null,null,null,null,0,0]
[null,null,null,null,null,null,null,null,0,0]
[null,null,null,null,null,null,null,null,0,0]
[null,null,null,null,null,null,null,null,0,0]
[null,null,null,null,null,null,null,null,0,0]
[null,null,null,null,null,null,null,null,0,0]
[null,null,null,null,null,null,null,null,0,0]
[null,null,null,null,null,null,null,null,0,0]
[null,null,null,null,null,null,null,null,0,0]
[null,null,null,null,null,null,null,null,0,0]
[null,null,null,null,null,null,null,null,0,0]
[null,null,null,null,null,null,null,null,0,0]
[null,null,null,null,null,null,null,null,0,0]
[null,null,null,null,null,null,null,null,0,0]
[null,null,null,null,null,null,null,null,0,0]
[null,null,null,null,null,null,null,null,0,0]
[null,null,null,null,null,null,null,null,0,0]
[null,null,null,null,null,null,null,null,0,0]
[null,null,null,null,null,null,null,null,0,0]
[null,null,null,null,null,null,null,null,0,0]
[null,null,null,null,null,null,null,null,0,0]
[null,null,null,null,null,null,null,null,0,0]
[null,null,null,null,null,null,null,null,0,0]
[null,null,null,null,null,null,null,null,0,0]
[null,null,null,null,null,null,null,null,0,0]
[null,null,null,null,null,null,null,null,0,0]
[null,null,null,null,null,null,null,null,0,0]
[null,null,null,null,null,null,null,null,0,0]
[null,null,null,null,null,null,null,null,0,0]
[null,null,null,null,null,null,null,null,0,0]
[null,null,null,null,null,null,null,null,0,0]
[null,null,null,null,null,null,null,null,0,0]
[null,null,null,null,null,null,null,null,0,0]
[null,null,null,null,null,null,null,null,0,0]
[null,null,null,null,null,null,null,null,0,0]
[null,null,null,null,null,null,null,null,0,0]
[null,null,null,null,null,null,null,null,0,0]
[null,null,null,null,null,null,null,null,0,0]
[null,null,null,null,null,null,null,null,0,0]
[null,null,null,null,null,null,null,null,0,0]
[null,null,null,null,null,null,null,null,0,0]
[null,null,null,null,null,null,null,null,0,0]
[null,null,null,null,null,null,null,null,0,0]
[null,null,null,null,null,null,null,null,0,0]
[null,null,null,null,null,null,null,null,0,0]
[null,null,null,null,null,null,null,null,{"$f":"G67-H67","v":0},{"$f":"IF(E482=$M$6,D482*0,IF(E482=$M$7,D482*70,IF(E482=$M$8,D482*100,IF(E482=$M$9,D482*140,0))))","v":0}]
[null,null,null,null,null,null,null,null,0,0]
[null,null,null,null,null,null,null,null,0,0]
[null,null,null,null,null,null,null,null,0,0]
[null,null,null,null,null,null,null,null,0,0]
[null,null,null,null,null,null,null,null,0,0]
[null,null,null,null,null,null,null,null,0,0]
[null,null,null,null,null,null,null,null,0,0]
[null,null,null,null,null,null,null,null,0,0]
[null,null,null,null,null,null,null,null,0,0]
[null,null,null,null,null,null,null,null,0,0]
[null,null,null,null,null,null,null,null,0,0]
[null,null,null,null,null,null,null,null,0,0]
[null,null,null,null,null,null,null,null,0,0]
[null,null,null,null,null,null,null,null,0,0]
[null,null,null,null,null,null,null,null,0,0]
[null,null,null,null,null,null,null,null,0,0]
[null,null,null,null,null,null,null,null,0,0]
[null,null,null,null,null,null,null,null,0,0]
[null,null,null,null,null,null,null,null,0,0]
[null,null,null,null,null,null,null,null,0,0]
[null,null,null,null,null,null,null,null,0,0]
[null,null,null,null,null,null,null,null,0,0]
[null,null,null,null,null,null,null,null,0,0]
[null,null,null,null,null,null,null,null,0,0]
[null,null,null,null,null,null,null,null,0,0]
[null,null,null,null,null,null,null,null,0,0]
[null,null,null,null,null,null,null,null,0,0]
[null,null,null,null,null,null,null,null,0,0]
[null,null,null,null,null,null,null,null,0,0]
[null,null,null,null,null,null,null,null,0,0]
[null,null,null,null,null,null,null,null,0,0]
[null,null,null,null,null,null,null,null,0,0]
[null,null,null,null,null,null,null,null,0,0]
[null,null,null,null,null,null,null,null,0,0]
[null,null,null,null,null,null,null,null,0,0]
[null,null,null,null,null,null,null,null,0,0]
[null,null,null,null,null,null,null,null,0,0]
[null,null,null,null,null,null,null,null,0,0]
[null,null,null,null,null,null,null,null,0,0]
[null,null,null,null,null,null,null,null,0,0]
[null,null,null,null,null,null,null,null,0,0]
[null,null,null,null,null,null,null,null,0,0]
[null,null,null,null,null,null,null,null,0,0]
[null,null,null,null,null,null,null,null,0,0]
[null,null,null,null,null,null,null,null,0,0]
[null,null,null,null,null,null,null,null,0,0]
[null,null,null,null,null,null,null,null,0,0]
[null,null,null,null,null,null,null,null,0,0]
[null,null,null,null,null,null,null,null,0,0]
[null,null,null,null,null,null,null,null,0,0]
[null,null,null,null,null,null,null,null,0,0]
[null,null,null,null,null,null,null,null,0,0]
[null,null,null,null,null,null,null,null,0,0]
[null,null,null,null,null,null,null,null,0,0]
[null,null,null,null,null,null,null,null,0,0]
[null,null,null,null,null,null,null,null,0,0]
[null,null,null,null,null,null,null,null,0,0]
[null,null,null,null,null,null,null,null,0,0]
[null,null,null,null,null,null,null,null,0,0]
[null,null,null,null,null,null,null,null,0,0]
[null,null,null,null,null,null,null,null,0,0]
[null,null,null,null,null,null,null,null,0,0]
[null,null,null,null,null,null,null,null,0,0]
[null,null,null,null,null,null,null,null,{"$f":"G131-H131","v":0},{"$f":"IF(E546=$M$6,D546*0,IF(E546=$M$7,D546*70,IF(E546=$M$8,D546*100,IF(E546=$M$9,D546*140,0))))","v":0}]
[null,null,null,null,null,null,null,null,0,0]
[null,null,null,null,null,null,null,null,0,0]
[null,null,null,null,null,null,null,null,0,0]
[null,null,null,null,null,null,null,null,0,0]
[null,null,null,null,null,null,null,null,0,0]
[null,null,null,null,null,null,null,null,0,0]
[null,null,null,null,null,null,null,null,0,0]
[null,null,null,null,null,null,null,null,0,0]
[null,null,null,null,null,null,null,null,0,0]
[null,null,null,null,null,null,null,null,0,0]
[null,null,null,null,null,null,null,null,0,0]
[null,null,null,null,null,null,null,null,0,0]
[null,null,null,null,null,null,null,null,0,0]
[null,null,null,null,null,null,null,null,0,0]
[null,null,null,null,null,null,null,null,0,0]
[null,null,null,null,null,null,null,null,0,0]
[null,null,null,null,null,null,null,null,0,0]
[null,null,null,null,null,null,null,null,0,0]
[null,null,null,null,null,null,null,null,0,0]
[null,null,null,null,null,null,null,null,0,0]
[null,null,null,null,null,null,null,null,0,0]
[null,null,null,null,null,null,null,null,0,0]
[null,null,null,null,null,null,null,null,0,0]
[null,null,null,null,null,null,null,null,0,0]
[null,null,null,null,null,null,null,null,0,0]
[null,null,null,null,null,null,null,null,0,0]
[null,null,null,null,null,null,null,null,0,0]
[null,null,null,null,null,null,null,null,0,0]
[null,null,null,null,null,null,null,null,0,0]
[null,null,null,null,null,null,null,null,0,0]
[null,null,null,null,null,null,null,null,0,0]
[null,null,null,null,null,null,null,null,0,0]
[null,null,null,null,null,null,null,null,0,0]
[null,null,null,null,null,null,null,null,0,0]
[null,null,null,null,null,null,null,null,0,0]
[null,null,null,null,null,null,null,null,0,0]
[null,null,null,null,null,null,null,null,0,0]
[null,null,null,null,null,null,null,null,0,0]
[null,null,null,null,null,null,null,null,0,0]
[null,null,null,null,null,null,null,null,0,0]
[null,null,null,null,null,null,null,null,0,0]
[null,null,null,null,null,null,null,null,0,0]
[null,null,null,null,null,null,null,null,0,0]
[null,null,null,null,null,null,null,null,0,0]
[null,null,null,null,null,null,null,null,0,0]
[null,null,null,null,null,null,null,null,0,0]
[null,null,null,null,null,null,null,null,0,0]
[null,null,null,null,null,null,null,null,0,0]
[null,null,null,null,null,null,null,null,0,0]
[null,null,null,null,null,null,null,null,0,0]
[null,null,null,null,null,null,null,null,0,0]
[null,null,null,null,null,null,null,null,0,0]
[null,null,null,null,null,null,null,null,0,0]
[null,null,null,null,null,null,null,null,0,0]
[null,null,null,null,null,null,null,null,0,0]
[null,null,null,null,null,null,null,null,0,0]
[null,null,null,null,null,null,null,null,0,0]
[null,null,null,null,null,null,null,null,0,0]
[null,null,null,null,null,null,null,null,0,0]
[null,null,null,null,null,null,null,null,0,0]
[null,null,null,null,null,null,null,null,0,0]
[null,null,null,null,null,null,null,null,0,0]
[null,null,null,null,null,null,null,null,0,0]
[null,null,null,null,null,null,null,null,{"$f":"G195-H195","v":0},{"$f":"IF(E610=$M$6,D610*0,IF(E610=$M$7,D610*70,IF(E610=$M$8,D610*100,IF(E610=$M$9,D610*140,0))))","v":0}]
[null,null,null,null,null,null,null,null,0,0]
[null,null,null,null,null,null,null,null,0,0]
[null,null,null,null,null,null,null,null,0,0]
[null,null,null,null,null,null,null,null,0,0]
[null,null,null,null,null,null,null,null,0,0]
[null,null,null,null,null,null,null,null,0,0]
[null,null,null,null,null,null,null,null,0,0]
[null,null,null,null,null,null,null,null,0,0]
[null,null,null,null,null,null,null,null,0,0]
[null,null,null,null,null,null,null,null,0,0]
[null,null,null,null,null,null,null,null,0,0]
[null,null,null,null,null,null,null,null,0,0]
[null,null,null,null,null,null,null,null,0,0]
[null,null,null,null,null,null,null,null,0,0]
[null,null,null,null,null,null,null,null,0,0]
[null,null,null,null,null,null,null,null,0,0]
[null,null,null,null,null,null,null,null,0,0]
[null,null,null,null,null,null,null,null,0,0]
[null,null,null,null,null,null,null,null,0,0]
[null,null,null,null,null,null,null,null,0,0]
[null,null,null,null,null,null,null,null,0,0]
[null,null,null,null,null,null,null,null,0,0]
[null,null,null,null,null,null,null,null,0,0]
[null,null,null,null,null,null,null,null,0,0]
[null,null,null,null,null,null,null,null,0,0]
[null,null,null,null,null,null,null,null,0,0]
[null,null,null,null,null,null,null,null,0,0]
[null,null,null,null,null,null,null,null,0,0]
[null,null,null,null,null,null,null,null,0,0]
[null,null,null,null,null,null,null,null,0,0]
[null,null,null,null,null,null,null,null,0,0]
[null,null,null,null,null,null,null,null,0,0]
[null,null,null,null,null,null,null,null,0,0]
[null,null,null,null,null,null,null,null,0,0]
[null,null,null,null,null,null,null,null,0,0]
[null,null,null,null,null,null,null,null,0,0]
[null,null,null,null,null,null,null,null,0,0]
[null,null,null,null,null,null,null,null,0,0]
[null,null,null,null,null,null,null,null,0,0]
[null,null,null,null,null,null,null,null,0,0]
[null,null,null,null,null,null,null,null,0,0]
[null,null,null,null,null,null,null,null,0,0]
[null,null,null,null,null,null,null,null,0,0]
[null,null,null,null,null,null,null,null,0,0]
[null,null,null,null,null,null,null,null,0,0]
[null,null,null,null,null,null,null,null,0,0]
[null,null,null,null,null,null,null,null,0,0]
[null,null,null,null,null,null,null,null,0,0]
[null,null,null,null,null,null,null,null,0,0]
[null,null,null,null,null,null,null,null,0,0]
[null,null,null,null,null,null,null,null,0,0]
[null,null,null,null,null,null,null,null,0,0]
[null,null,null,null,null,null,null,null,0,0]
[null,null,null,null,null,null,null,null,0,0]
[null,null,null,null,null,null,null,null,0,0]
[null,null,null,null,null,null,null,null,0,0]
[null,null,null,null,null,null,null,null,0,0]
[null,null,null,null,null,null,null,null,0,0]
[null,null,null,null,null,null,null,null,0,0]
[null,null,null,null,null,null,null,null,0,0]
[null,null,null,null,null,null,null,null,0,0]
[null,null,null,null,null,null,null,null,0,0]
[null,null,null,null,null,null,null,null,0,0]
[null,null,null,null,null,null,null,null,{"$f":"G259-H259","v":0},{"$f":"IF(E674=$M$6,D674*0,IF(E674=$M$7,D674*70,IF(E674=$M$8,D674*100,IF(E674=$M$9,D674*140,0))))","v":0}]
[null,null,null,null,null,null,null,null,0,0]
[null,null,null,null,null,null,null,null,0,0]
[null,null,null,null,null,null,null,null,0,0]
[null,null,null,null,null,null,null,null,0,0]
[null,null,null,null,null,null,null,null,0,0]
[null,null,null,null,null,null,null,null,0,0]
[null,null,null,null,null,null,null,null,0,0]
[null,null,null,null,null,null,null,null,0,0]
[null,null,null,null,null,null,null,null,0,0]
[null,null,null,null,null,null,null,null,0,0]
[null,null,null,null,null,null,null,null,0,0]
[null,null,null,null,null,null,null,null,0,0]
[null,null,null,null,null,null,null,null,0,0]
[null,null,null,null,null,null,null,null,0,0]
[null,null,null,null,null,null,null,null,0,0]
[null,null,null,null,null,null,null,null,0,0]
[null,null,null,null,null,null,null,null,0,0]
[null,null,null,null,null,null,null,null,0,0]
[null,null,null,null,null,null,null,null,0,0]
[null,null,null,null,null,null,null,null,0,0]
[null,null,null,null,null,null,null,null,0,0]
[null,null,null,null,null,null,null,null,0,0]
[null,null,null,null,null,null,null,null,0,0]
[null,null,null,null,null,null,null,null,0,0]
[null,null,null,null,null,null,null,null,0,0]
[null,null,null,null,null,null,null,null,0,0]
[null,null,null,null,null,null,null,null,0,0]
[null,null,null,null,null,null,null,null,0,0]
[null,null,null,null,null,null,null,null,0,0]
[null,null,null,null,null,null,null,null,0,0]
[null,null,null,null,null,null,null,null,0,0]
[null,null,null,null,null,null,null,null,0,0]
[null,null,null,null,null,null,null,null,0,0]
[null,null,null,null,null,null,null,null,0,0]
[null,null,null,null,null,null,null,null,0,0]
[null,null,null,null,null,null,null,null,0,0]
[null,null,null,null,null,null,null,null,0,0]
[null,null,null,null,null,null,null,null,0,0]
[null,null,null,null,null,null,null,null,0,0]
[null,null,null,null,null,null,null,null,0,0]
[null,null,null,null,null,null,null,null,0,0]
[null,null,null,null,null,null,null,null,0,0]
[null,null,null,null,null,null,null,null,0,0]
[null,null,null,null,null,null,null,null,0,0]
[null,null,null,null,null,null,null,null,0,0]
[null,null,null,null,null,null,null,null,0,0]
[null,null,null,null,null,null,null,null,0,0]
[null,null,null,null,null,null,null,null,0,0]
[null,null,null,null,null,null,null,null,0,0]
[null,null,null,null,null,null,null,null,0,0]
[null,null,null,null,null,null,null,null,0,0]
[null,null,null,null,null,null,null,null,0,0]
[null,null,null,null,null,null,null,null,0,0]
[null,null,null,null,null,null,null,null,0,0]
[null,null,null,null,null,null,null,null,0,0]
[null,null,null,null,null,null,null,null,0,0]
[null,null,null,null,null,null,null,null,0,0]
[null,null,null,null,null,null,null,null,0,0]
[null,null,null,null,null,null,null,null,0,0]
[null,null,null,null,null,null,null,null,0,0]
[null,null,null,null,null,null,null,null,0,0]
[null,null,null,null,null,null,null,null,0,0]
[null,null,null,null,null,null,null,null,0,0]
[null,null,null,null,null,null,null,null,{"$f":"G323-H323","v":0},{"$f":"IF(E738=$M$6,D738*0,IF(E738=$M$7,D738*70,IF(E738=$M$8,D738*100,IF(E738=$M$9,D738*140,0))))","v":0}]
[null,null,null,null,null,null,null,null,0,0]
[null,null,null,null,null,null,null,null,0,0]
[null,null,null,null,null,null,null,null,0,0]
[null,null,null,null,null,null,null,null,0,0]
[null,null,null,null,null,null,null,null,0,0]
[null,null,null,null,null,null,null,null,0,0]
[null,null,null,null,null,null,null,null,0,0]
[null,null,null,null,null,null,null,null,0,0]
[null,null,null,null,null,null,null,null,0,0]
[null,null,null,null,null,null,null,null,0,0]
[null,null,null,null,null,null,null,null,0,0]
[null,null,null,null,null,null,null,null,0,0]
[null,null,null,null,null,null,null,null,0,0]
[null,null,null,null,null,null,null,null,0,0]
[null,null,null,null,null,null,null,null,0,0]
[null,null,null,null,null,null,null,null,0,0]
[null,null,null,null,null,null,null,null,0,0]
[null,null,null,null,null,null,null,null,0,0]
[null,null,null,null,null,null,null,null,0,0]
[null,null,null,null,null,null,null,null,0,0]
[null,null,null,null,null,null,null,null,0,0]
[null,null,null,null,null,null,null,null,0,0]
[null,null,null,null,null,null,null,null,0,0]
[null,null,null,null,null,null,null,null,0,0]
[null,null,null,null,null,null,null,null,0,0]
[null,null,null,null,null,null,null,null,0,0]
[null,null,null,null,null,null,null,null,0,0]
[null,null,null,null,null,null,null,null,0,0]
[null,null,null,null,null,null,null,null,0,0]
[null,null,null,null,null,null,null,null,0,0]
[null,null,null,null,null,null,null,null,0,0]
[null,null,null,null,null,null,null,null,0,0]
[null,null,null,null,null,null,null,null,0,0]
[null,null,null,null,null,null,null,null,0,0]
[null,null,null,null,null,null,null,null,0,0]
[null,null,null,null,null,null,null,null,0,0]
[null,null,null,null,null,null,null,null,0,0]
[null,null,null,null,null,null,null,null,0,0]
[null,null,null,null,null,null,null,null,0,0]
[null,null,null,null,null,null,null,null,0,0]
[null,null,null,null,null,null,null,null,0,0]
[null,null,null,null,null,null,null,null,0,0]
[null,null,null,null,null,null,null,null,0,0]
[null,null,null,null,null,null,null,null,0,0]
[null,null,null,null,null,null,null,null,0,0]
[null,null,null,null,null,null,null,null,0,0]
[null,null,null,null,null,null,null,null,0,0]
[null,null,null,null,null,null,null,null,0,0]
[null,null,null,null,null,null,null,null,0,0]
[null,null,null,null,null,null,null,null,0,0]
[null,null,null,null,null,null,null,null,0,0]
[null,null,null,null,null,null,null,null,0,0]
[null,null,null,null,null,null,null,null,0,0]
[null,null,null,null,null,null,null,null,0,0]
[null,null,null,null,null,null,null,null,0,0]
[null,null,null,null,null,null,null,null,0,0]
[null,null,null,null,null,null,null,null,0,0]
[null,null,null,null,null,null,null,null,0,0]
[null,null,null,null,null,null,null,null,0,0]
[null,null,null,null,null,null,null,null,0,0]
[null,null,null,null,null,null,null,null,0,0]
[null,null,null,null,null,null,null,null,0,0]
[null,null,null,null,null,null,null,null,0,0]
[null,null,null,null,null,null,null,null,{"$f":"G387-H387","v":0},{"$f":"IF(E802=$M$6,D802*0,IF(E802=$M$7,D802*70,IF(E802=$M$8,D802*100,IF(E802=$M$9,D802*140,0))))","v":0}]
[null,null,null,null,null,null,null,null,0,0]
[null,null,null,null,null,null,null,null,0,0]
[null,null,null,null,null,null,null,null,0,0]
[null,null,null,null,null,null,null,null,0,0]
[null,null,null,null,null,null,null,null,0,0]
[null,null,null,null,null,null,null,null,0,0]
[null,null,null,null,null,null,null,null,0,0]
[null,null,null,null,null,null,null,null,0,0]
[null,null,null,null,null,null,null,null,0,0]
[null,null,null,null,null,null,null,null,0,0]
[null,null,null,null,null,null,null,null,0,0]
[null,null,null,null,null,null,null,null,0,0]
[null,null,null,null,null,null,null,null,0,0]
[null,null,null,null,null,null,null,null,0,0]
[null,null,null,null,null,null,null,null,0,0]
[null,null,null,null,null,null,null,null,0,0]
[null,null,null,null,null,null,null,null,0,0]
[null,null,null,null,null,null,null,null,0,0]
[null,null,null,null,null,null,null,null,0,0]
[null,null,null,null,null,null,null,null,0,0]
[null,null,null,null,null,null,null,null,0,0]
[null,null,null,null,null,null,null,null,0,0]
[null,null,null,null,null,null,null,null,0,0]
[null,null,null,null,null,null,null,null,0,0]
[null,null,null,null,null,null,null,null,0,0]
[null,null,null,null,null,null,null,null,0,0]
[null,null,null,null,null,null,null,null,0,0]
[null,null,null,null,null,null,null,null,0,0]
[null,null,null,null,null,null,null,null,0,0]
[null,null,null,null,null,null,null,null,0,0]
[null,null,null,null,null,null,null,null,0,0]
[null,null,null,null,null,null,null,null,0,0]
[null,null,null,null,null,null,null,null,0,0]
[null,null,null,null,null,null,null,null,0,0]
[null,null,null,null,null,null,null,null,0,0]
[null,null,null,null,null,null,null,null,0,0]
[null,null,null,null,null,null,null,null,0,0]
[null,null,null,null,null,null,null,null,0,0]
[null,null,null,null,null,null,null,null,0,0]
[null,null,null,null,null,null,null,null,0,0]
[null,null,null,null,null,null,null,null,0,0]
[null,null,null,null,null,null,null,null,0,0]
[null,null,null,null,null,null,null,null,0,0]
[null,null,null,null,null,null,null,null,0,0]
[null,null,null,null,null,null,null,null,0,0]
[null,null,null,null,null,null,null,null,0,0]
[null,null,null,null,null,null,null,null,0,0]
[null,null,null,null,null,null,null,null,0,0]
[null,null,null,null,null,null,null,null,0,0]
[null,null,null,null,null,null,null,null,0,0]
[null,null,null,null,null,null,null,null,0,0]
[null,null,null,null,null,null,null,null,0,0]
[null,null,null,null,null,null,null,null,0,0]
[null,null,null,null,null,null,null,null,0,0]
[null,null,null,null,null,null,null,null,0,0]
[null,null,null,null,null,null,null,null,0,0]
[null,null,null,null,null,null,null,null,0,0]
[null,null,null,null,null,null,null,null,0,0]
[null,null,null,null,null,null,null,null,0,0]
[null,null,null,null,null,null,null,null,0,0]
[null,null,null,null,null,null,null,null,0,0]
[null,null,null,null,null,null,null,null,0,0]
[null,null,null,null,null,null,null,null,0,0]
[null,null,null,null,null,null,null,null,{"$f":"G451-H451","v":0},{"$f":"IF(E866=$M$6,D866*0,IF(E866=$M$7,D866*70,IF(E866=$M$8,D866*100,IF(E866=$M$9,D866*140,0))))","v":0}]
[null,null,null,null,null,null,null,null,0,0]
[null,null,null,null,null,null,null,null,0,0]
[null,null,null,null,null,null,null,null,0,0]
[null,null,null,null,null,null,null,null,0,0]
[null,null,null,null,null,null,null,null,0,0]
[null,null,null,null,null,null,null,null,0,0]
[null,null,null,null,null,null,null,null,0,0]
[null,null,null,null,null,null,null,null,0,0]
[null,null,null,null,null,null,null,null,0,0]
[null,null,null,null,null,null,null,null,0,0]
[null,null,null,null,null,null,null,null,0,0]
[null,null,null,null,null,null,null,null,0,0]
[null,null,null,null,null,null,null,null,0,0]
[null,null,null,null,null,null,null,null,0,0]
[null,null,null,null,null,null,null,null,0,0]
[null,null,null,null,null,null,null,null,0,0]
[null,null,null,null,null,null,null,null,0,0]
[null,null,null,null,null,null,null,null,0,0]
[null,null,null,null,null,null,null,null,0,0]
[null,null,null,null,null,null,null,null,0,0]
[null,null,null,null,null,null,null,null,0,0]
[null,null,null,null,null,null,null,null,0,0]
[null,null,null,null,null,null,null,null,0,0]
[null,null,null,null,null,null,null,null,0,0]
[null,null,null,null,null,null,null,null,0,0]
[null,null,null,null,null,null,null,null,0,0]
[null,null,null,null,null,null,null,null,0,0]
[null,null,null,null,null,null,null,null,0,0]
[null,null,null,null,null,null,null,null,0,0]
[null,null,null,null,null,null,null,null,0,0]
[null,null,null,null,null,null,null,null,0,0]
[null,null,null,null,null,null,null,null,0,0]
[null,null,null,null,null,null,null,null,0,0]
[null,null,null,null,null,null,null,null,0,0]
[null,null,null,null,null,null,null,null,0,0]
[null,null,null,null,null,null,null,null,0,0]
[null,null,null,null,null,null,null,null,0,0]
[null,null,null,null,null,null,null,null,0,0]
[null,null,null,null,null,null,null,null,0,0]
[null,null,null,null,null,null,null,null,0,0]
[null,null,null,null,null,null,null,null,0,0]
[null,null,null,null,null,null,null,null,0,0]
[null,null,null,null,null,null,null,null,0,0]
[null,null,null,null,null,null,null,null,0,0]
[null,null,null,null,null,null,null,null,0,0]
[null,null,null,null,null,null,null,null,0,0]
[null,null,null,null,null,null,null,null,0,0]
[null,null,null,null,null,null,null,null,0,0]
[null,null,null,null,null,null,null,null,0,0]
[null,null,null,null,null,null,null,null,0,0]
[null,null,null,null,null,null,null,null,0,0]
[null,null,null,null,null,null,null,null,0,0]
[null,null,null,null,null,null,null,null,0,0]
[null,null,null,null,null,null,null,null,0,0]
[null,null,null,null,null,null,null,null,0,0]
[null,null,null,null,null,null,null,null,0,0]
[null,null,null,null,null,null,null,null,0,0]
[null,null,null,null,null,null,null,null,0,0]
[null,null,null,null,null,null,null,null,0,0]
[null,null,null,null,null,null,null,null,0,0]
[null,null,null,null,null,null,null,null,0,0]
[null,null,null,null,null,null,null,null,0,0]
[null,null,null,null,null,null,null,null,0,0]
[null,null,null,null,null,null,null,null,{"$f":"G515-H515","v":0},{"$f":"IF(E930=$M$6,D930*0,IF(E930=$M$7,D930*70,IF(E930=$M$8,D930*100,IF(E930=$M$9,D930*140,0))))","v":0}]
[null,null,null,null,null,null,null,null,0,0]
[null,null,null,null,null,null,null,null,0,0]
[null,null,null,null,null,null,null,null,0,0]
[null,null,null,null,null,null,null,null,0,0]
[null,null,null,null,null,null,null,null,0,0]
[null,null,null,null,null,null,null,null,0,0]
[null,null,null,null,null,null,null,null,0,0]
[null,null,null,null,null,null,null,null,0,0]
[null,null,null,null,null,null,null,null,0,0]
[null,null,null,null,null,null,null,null,0,0]
[null,null,null,null,null,null,null,null,0,0]
[null,null,null,null,null,null,null,null,0,0]
[null,null,null,null,null,null,null,null,0,0]
[null,null,null,null,null,null,null,null,0,0]
[null,null,null,null,null,null,null,null,0,0]
[null,null,null,null,null,null,null,null,0,0]
[null,null,null,null,null,null,null,null,0,0]
[null,null,null,null,null,null,null,null,0,0]
[null,null,null,null,null,null,null,null,0,0]
[null,null,null,null,null,null,null,null,0,0]
[null,null,null,null,null,null,null,null,0,0]
[null,null,null,null,null,null,null,null,0,0]
[null,null,null,null,null,null,null,null,0,0]
[null,null,null,null,null,null,null,null,0,0]
[null,null,null,null,null,null,null,null,0,0]
[null,null,null,null,null,null,null,null,0,0]
[null,null,null,null,null,null,null,null,0,0]
[null,null,null,null,null,null,null,null,0,0]
[null,null,null,null,null,null,null,null,0,0]
[null,null,null,null,null,null,null,null,0,0]
[null,null,null,null,null,null,null,null,0,0]
[null,null,null,null,null,null,null,null,0,0]
[null,null,null,null,null,null,null,null,0,0]
[null,null,null,null,null,null,null,null,0,0]
[null,null,null,null,null,null,null,null,0,0]
[null,null,null,null,null,null,null,null,0,0]
[null,null,null,null,null,null,null,null,0,0]
[null,null,null,null,null,null,null,null,0,0]
[null,null,null,null,null,null,null,null,0,0]
[null,null,null,null,null,null,null,null,0,0]
[null,null,null,null,null,null,null,null,0,0]
[null,null,null,null,null,null,null,null,0,0]
[null,null,null,null,null,null,null,null,0,0]
[null,null,null,null,null,null,null,null,0,0]
[null,null,null,null,null,null,null,null,0,0]
[null,null,null,null,null,null,null,null,0,0]
[null,null,null,null,null,null,null,null,0,0]
[null,null,null,null,null,null,null,null,0,0]
[null,null,null,null,null,null,null,null,0,0]
[null,null,null,null,null,null,null,null,0,0]
[null,null,null,null,null,null,null,null,0,0]
[null,null,null,null,null,null,null,null,0,0]
[null,null,null,null,null,null,null,null,0,0]
[null,null,null,null,null,null,null,null,0,0]
[null,null,null,null,null,null,null,null,0,0]
[null,null,null,null,null,null,null,null,0,0]
[null,null,null,null,null,null,null,null,0,0]
[null,null,null,null,null,null,null,null,0,0]
[null,null,null,null,null,null,null,null,0,0]
[null,null,null,null,null,null,null,null,0,0]
[null,null,null,null,null,null,null,null,0,0]
[null,null,null,null,null,null,null,null,0,0]
[null,null,null,null,null,null,null,null,0,0]
[null,null,null,null,null,null,null,null,{"$f":"G579-H579","v":0},{"$f":"IF(E994=$M$6,D994*0,IF(E994=$M$7,D994*70,IF(E994=$M$8,D994*100,IF(E994=$M$9,D994*140,0))))","v":0}]
[null,null,null,null,null,null,null,null,0,0]
[null,null,null,null,null,null,null,null,0,0]
[null,null,null,null,null,null,null,null,0,0]
[null,null,null,null,null,null,null,null,0,0]
[null,null,null,null,null,null,null,null,0,0]
[null,null,null,null,null,null,null,null,0,0]
[null,null,null,null,null,null,null,null,0,0]
[null,null,null,null,null,null,null,null,0,0]
[null,null,null,null,null,null,null,null,0,0]
[null,null,null,null,null,null,null,null,0,0]
[null,null,null,null,null,null,null,null,0,0]
[null,null,null,null,null,null,null,null,0,0]
[null,null,null,null,null,null,null,null,0,0]
[null,null,null,null,null,null,null,null,0,0]
[null,null,null,null,null,null,null,null,0,0]
[null,null,null,null,null,null,null,null,0,0]
[null,null,null,null,null,null,null,null,0,0]
[null,null,null,null,null,null,null,null,0,0]
[null,null,null,null,null,null,null,null,0,0]
[null,null,null,null,null,null,null,null,0,0]
[null,null,null,null,null,null,null,null,0,0]
[null,null,null,null,null,null,null,null,0,0]
[null,null,null,null,null,null,null,null,0,0]
[null,null,null,null,null,null,null,null,0,0]
[null,null,null,null,null,null,null,null,0,0]
[null,null,null,null,null,null,null,null,0,0]
[null,null,null,null,null,null,null,null,0,0]
[null,null,null,null,null,null,null,null,0,0]
[null,null,null,null,null,null,null,null,0,0]
[null,null,null,null,null,null,null,null,0,0]
[null,null,null,null,null,null,null,null,0,0]
[null,null,null,null,null,null,null,null,0,0]
[null,null,null,null,null,null,null,null,0,0]
[null,null,null,null,null,null,null,null,0,0]
[null,null,null,null,null,null,null,null,0,0]
[null,null,null,null,null,null,null,null,0,0]
[null,null,null,null,null,null,null,null,0,0]
[null,null,null,null,null,null,null,null,0,0]
[null,null,null,null,null,null,null,null,0,0]
[null,null,null,null,null,null,null,null,0,0]
[null,null,null,null,null,null,null,null,0,0]
[null,null,null,null,null,null,null,null,0,0]
[null,null,null,null,null,null,null,null,0,0]
[null,null,null,null,null,null,null,null,0,0]
[null,null,null,null,null,null,null,null,0,0]
[null,null,null,null,null,null,null,null,0,0]
[null,null,null,null,null,null,null,null,0,0]
[null,null,null,null,null,null,null,null,0,0]
[null,null,null,null,null,null,null,null,0,0]
[null,null,null,null,null,null,null,null,0,0]
[null,null,null,null,null,null,null,null,0,0]
[null,null,null,null,null,null,null,null,0,0]
[null,null,null,null,null,null,null,null,0,0]
[null,null,null,null,null,null,null,null,0,0]
[null,null,null,null,null,null,null,null,0,0]
[null,null,null,null,null,null,null,null,0,0]
[null,null,null,null,null,null,null,null,0,0]
[null,null,null,null,null,null,null,null,0,0]
[null,null,null,null,null,null,null,null,0,0]
[null,null,null,null,null,null,null,null,0,0]
[null,null,null,null,null,null,null,null,0,0]
[null,null,null,null,null,null,null,null,0,0]
[null,null,null,null,null,null,null,null,0,0]
[null,null,null,null,null,null,null,null,{"$f":"G643-H643","v":0},{"$f":"IF(E1058=$M$6,D1058*0,IF(E1058=$M$7,D1058*70,IF(E1058=$M$8,D1058*100,IF(E1058=$M$9,D1058*140,0))))","v":0}]
[null,null,null,null,null,null,null,null,0,0]
[null,null,null,null,null,null,null,null,0,0]
[null,null,null,null,null,null,null,null,0,0]
[null,null,null,null,null,null,null,null,0,0]
[null,null,null,null,null,null,null,null,0,0]
[null,null,null,null,null,null,null,null,0,0]
[null,null,null,null,null,null,null,null,0,0]
[null,null,null,null,null,null,null,null,0,0]
[null,null,null,null,null,null,null,null,0,0]
[null,null,null,null,null,null,null,null,0,0]
[null,null,null,null,null,null,null,null,0,0]
[null,null,null,null,null,null,null,null,0,0]
[null,null,null,null,null,null,null,null,0,0]
[null,null,null,null,null,null,null,null,0,0]
[null,null,null,null,null,null,null,null,0,0]
[null,null,null,null,null,null,null,null,0,0]
[null,null,null,null,null,null,null,null,0,0]
[null,null,null,null,null,null,null,null,0,0]
[null,null,null,null,null,null,null,null,0,0]
[null,null,null,null,null,null,null,null,0,0]
[null,null,null,null,null,null,null,null,0,0]
[null,null,null,null,null,null,null,null,0,0]
[null,null,null,null,null,null,null,null,0,0]
[null,null,null,null,null,null,null,null,0,0]
[null,null,null,null,null,null,null,null,0,0]
[null,null,null,null,null,null,null,null,0,0]
[null,null,null,null,null,null,null,null,0,0]
[null,null,null,null,null,null,null,null,0,0]
[null,null,null,null,null,null,null,null,0,0]
[null,null,null,null,null,null,null,null,0,0]
[null,null,null,null,null,null,null,null,0,0]
[null,null,null,null,null,null,null,null,0,0]
[null,null,null,null,null,null,null,null,0,0]
[null,null,null,null,null,null,null,null,0,0]
[null,null,null,null,null,null,null,null,0,0]
[null,null,null,null,null,null,null,null,0,0]
[null,null,null,null,null,null,null,null,0,0]
[null,null,null,null,null,null,null,null,0,0]
[null,null,null,null,null,null,null,null,0,0]
[null,null,null,null,null,null,null,null,0,0]
[null,null,null,null,null,null,null,null,0,0]
[null,null,null,null,null,null,null,null,0,0]
[null,null,null,null,null,null,null,null,0,0]
[null,null,null,null,null,null,null,null,0,0]
[null,null,null,null,null,null,null,null,0,0]
[null,null,null,null,null,null,null,null,0,0]
[null,null,null,null,null,null,null,null,0,0]
[null,null,null,null,null,null,null,null,0,0]
[null,null,null,null,null,null,null,null,0,0]
[null,null,null,null,null,null,null,null,0,0]
[null,null,null,null,null,null,null,null,0,0]
[null,null,null,null,null,null,null,null,0,0]
[null,null,null,null,null,null,null,null,0,0]
[null,null,null,null,null,null,null,null,0,0]
[null,null,null,null,null,null,null,null,0,0]
[null,null,null,null,null,null,null,null,0,0]
[null,null,null,null,null,null,null,null,0,0]
[null,null,null,null,null,null,null,null,0,0]
[null,null,null,null,null,null,null,null,0,0]
[null,null,null,null,null,null,null,null,0,0]
[null,null,null,null,null,null,null,null,0,0]
[null,null,null,null,null,null,null,null,0,0]
[null,null,null,null,null,null,null,null,0,0]
[null,null,null,null,null,null,null,null,{"$f":"G707-H707","v":0},{"$f":"IF(E1122=$M$6,D1122*0,IF(E1122=$M$7,D1122*70,IF(E1122=$M$8,D1122*100,IF(E1122=$M$9,D1122*140,0))))","v":0}]
[null,null,null,null,null,null,null,null,0,0]
[null,null,null,null,null,null,null,null,0,0]
[null,null,null,null,null,null,null,null,0,0]
[null,null,null,null,null,null,null,null,0,0]
[null,null,null,null,null,null,null,null,0,0]
[null,null,null,null,null,null,null,null,0,0]
[null,null,null,null,null,null,null,null,0,0]
[null,null,null,null,null,null,null,null,0,0]
[null,null,null,null,null,null,null,null,0,0]
[null,null,null,null,null,null,null,null,0,0]
[null,null,null,null,null,null,null,null,0,0]
[null,null,null,null,null,null,null,null,0,0]
[null,null,null,null,null,null,null,null,0,0]
[null,null,null,null,null,null,null,null,0,0]
[null,null,null,null,null,null,null,null,0,0]
[null,null,null,null,null,null,null,null,0,0]
[null,null,null,null,null,null,null,null,0,0]
[null,null,null,null,null,null,null,null,0,0]
[null,null,null,null,null,null,null,null,0,0]
[null,null,null,null,null,null,null,null,0,0]
[null,null,null,null,null,null,null,null,0,0]
[null,null,null,null,null,null,null,null,0,0]
[null,null,null,null,null,null,null,null,0,0]
[null,null,null,null,null,null,null,null,0,0]
[null,null,null,null,null,null,null,null,0,0]
[null,null,null,null,null,null,null,null,0,0]
[null,null,null,null,null,null,null,null,0,0]
[null,null,null,null,null,null,null,null,0,0]
[null,null,null,null,null,null,null,null,0,0]
[null,null,null,null,null,null,null,null,0,0]
[null,null,null,null,null,null,null,null,0,0]
[null,null,null,null,null,null,null,null,0,0]
[null,null,null,null,null,null,null,null,0,0]
[null,null,null,null,null,null,null,null,0,0]
[null,null,null,null,null,null,null,null,0,0]
[null,null,null,null,null,null,null,null,0,0]
[null,null,null,null,null,null,null,null,0,0]
[null,null,null,null,null,null,null,null,0,0]
[null,null,null,null,null,null,null,null,0,0]
[null,null,null,null,null,null,null,null,0,0]
[null,null,null,null,null,null,null,null,0,0]
[null,null,null,null,null,null,null,null,0,0]
[null,null,null,null,null,null,null,null,0,0]
[null,null,null,null,null,null,null,null,0,0]
[null,null,null,null,null,null,null,null,0,0]
[null,null,null,null,null,null,null,null,0,0]
[null,null,null,null,null,null,null,null,0,0]
[null,null,null,null,null,null,null,null,0,0]
[null,null,null,null,null,null,null,null,0,0]
[null,null,null,null,null,null,null,null,0,0]
[null,null,null,null,null,null,null,null,0,0]
[null,null,null,null,null,null,null,null,0,0]
[null,null,null,null,null,null,null,null,0,0]
[null,null,null,null,null,null,null,null,0,0]
[null,null,null,null,null,null,null,null,0,0]
[null,null,null,null,null,null,null,null,0,0]
[null,null,null,null,null,null,null,null,0,0]
[null,null,null,null,null,null,null,null,0,0]
[null,null,null,null,null,null,null,null,0,0]
[null,null,null,null,null,null,null,null,0,0]
[null,null,null,null,null,null,null,null,0,0]
[null,null,null,null,null,null,null,null,0,0]
[null,null,null,null,null,null,null,null,0,0]
[null,null,null,null,null,null,null,null,{"$f":"G771-H771","v":0},{"$f":"IF(E1186=$M$6,D1186*0,IF(E1186=$M$7,D1186*70,IF(E1186=$M$8,D1186*100,IF(E1186=$M$9,D1186*140,0))))","v":0}]
[null,null,null,null,null,null,null,null,0,0]
[null,null,null,null,null,null,null,null,0,0]
[null,null,null,null,null,null,null,null,0,0]
[null,null,null,null,null,null,null,null,0,0]
[null,null,null,null,null,null,null,null,0,0]
[null,null,null,null,null,null,null,null,0,0]
[null,null,null,null,null,null,null,null,0,0]
[null,null,null,null,null,null,null,null,0,0]
[null,null,null,null,null,null,null,null,0,0]
[null,null,null,null,null,null,null,null,0,0]
[null,null,null,null,null,null,null,null,0,0]
[null,null,null,null,null,null,null,null,0,0]
[null,null,null,null,null,null,null,null,0,0]
[null,null,null,null,null,null,null,null,0,0]
[null,null,null,null,null,null,null,null,0,0]
[null,null,null,null,null,null,null,null,0,0]
[null,null,null,null,null,null,null,null,0,0]
[null,null,null,null,null,null,null,null,0,0]
[null,null,null,null,null,null,null,null,0,0]
[null,null,null,null,null,null,null,null,0,0]
[null,null,null,null,null,null,null,null,0,0]
[null,null,null,null,null,null,null,null,0,0]
[null,null,null,null,null,null,null,null,0,0]
[null,null,null,null,null,null,null,null,0,0]
[null,null,null,null,null,null,null,null,0,0]
[null,null,null,null,null,null,null,null,0,0]
[null,null,null,null,null,null,null,null,0,0]
[null,null,null,null,null,null,null,null,0,0]
[null,null,null,null,null,null,null,null,0,0]
[null,null,null,null,null,null,null,null,0,0]
[null,null,null,null,null,null,null,null,0,0]
[null,null,null,null,null,null,null,null,0,0]
[null,null,null,null,null,null,null,null,0,0]
[null,null,null,null,null,null,null,null,0,0]
[null,null,null,null,null,null,null,null,0,0]
[null,null,null,null,null,null,null,null,0,0]
[null,null,null,null,null,null,null,null,0,0]
[null,null,null,null,null,null,null,null,0,0]
[null,null,null,null,null,null,null,null,0,0]
[null,null,null,null,null,null,null,null,0,0]
[null,null,null,null,null,null,null,null,0,0]
[null,null,null,null,null,null,null,null,0,0]
[null,null,null,null,null,null,null,null,0,0]
[null,null,null,null,null,null,null,null,0,0]
[null,null,null,null,null,null,null,null,0,0]
[null,null,null,null,null,null,null,null,0,0]
[null,null,null,null,null,null,null,null,0,0]
[null,null,null,null,null,null,null,null,0,0]
[null,null,null,null,null,null,null,null,0,0]
[null,null,null,null,null,null,null,null,0,0]
[null,null,null,null,null,null,null,null,0,0]
[null,null,null,null,null,null,null,null,0,0]
[null,null,null,null,null,null,null,null,0,0]
[null,null,null,null,null,null,null,null,0,0]
[null,null,null,null,null,null,null,null,0,0]
[null,null,null,null,null,null,null,null,0,0]
[null,null,null,null,null,null,null,null,0,0]
[null,null,null,null,null,null,null,null,0,0]
[null,null,null,null,null,null,null,null,0,0]
[null,null,null,null,null,null,null,null,0,0]
[null,null,null,null,null,null,null,null,0,0]
[null,null,null,null,null,null,null,null,0,0]
[null,null,null,null,null,null,null,null,0,0]
[null,null,null,null,null,null,null,null,{"$f":"G835-H835","v":0},{"$f":"IF(E1250=$M$6,D1250*0,IF(E1250=$M$7,D1250*70,IF(E1250=$M$8,D1250*100,IF(E1250=$M$9,D1250*140,0))))","v":0}]
[null,null,null,null,null,null,null,null,0,0]
[null,null,null,null,null,null,null,null,0,0]
[null,null,null,null,null,null,null,null,0,0]
[null,null,null,null,null,null,null,null,0,0]
[null,null,null,null,null,null,null,null,0,0]
[null,null,null,null,null,null,null,null,0,0]
[null,null,null,null,null,null,null,null,0,0]
[null,null,null,null,null,null,null,null,0,0]
[null,null,null,null,null,null,null,null,0,0]
[null,null,null,null,null,null,null,null,0,0]
[null,null,null,null,null,null,null,null,0,0]
[null,null,null,null,null,null,null,null,0,0]
[null,null,null,null,null,null,null,null,0,0]
[null,null,null,null,null,null,null,null,0,0]
[null,null,null,null,null,null,null,null,0,0]
[null,null,null,null,null,null,null,null,0,0]
[null,null,null,null,null,null,null,null,0,0]
[null,null,null,null,null,null,null,null,0,0]
[null,null,null,null,null,null,null,null,0,0]
[null,null,null,null,null,null,null,null,0,0]
[null,null,null,null,null,null,null,null,0,0]
[null,null,null,null,null,null,null,null,0,0]
[null,null,null,null,null,null,null,null,0,0]
[null,null,null,null,null,null,null,null,0,0]
[null,null,null,null,null,null,null,null,0,0]
[null,null,null,null,null,null,null,null,0,0]
[null,null,null,null,null,null,null,null,0,0]
[null,null,null,null,null,null,null,null,0,0]
[null,null,null,null,null,null,null,null,0,0]
[null,null,null,null,null,null,null,null,0,0]
[null,null,null,null,null,null,null,null,0,0]
[null,null,null,null,null,null,null,null,0,0]
[null,null,null,null,null,null,null,null,0,0]
[null,null,null,null,null,null,null,null,0,0]
[null,null,null,null,null,null,null,null,0,0]
[null,null,null,null,null,null,null,null,0,0]
[null,null,null,null,null,null,null,null,0,0]
[null,null,null,null,null,null,null,null,0,0]
[null,null,null,null,null,null,null,null,0,0]
[null,null,null,null,null,null,null,null,0,0]
[null,null,null,null,null,null,null,null,0,0]
[null,null,null,null,null,null,null,null,0,0]
[null,null,null,null,null,null,null,null,0,0]
[null,null,null,null,null,null,null,null,0,0]
[null,null,null,null,null,null,null,null,0,0]
[null,null,null,null,null,null,null,null,0,0]
[null,null,null,null,null,null,null,null,0,0]
[null,null,null,null,null,null,null,null,0,0]
[null,null,null,null,null,null,null,null,0,0]
[null,null,null,null,null,null,null,null,0,0]
[null,null,null,null,null,null,null,null,0,0]
[null,null,null,null,null,null,null,null,0,0]
[null,null,null,null,null,null,null,null,0,0]
[null,null,null,null,null,null,null,null,0,0]
[null,null,null,null,null,null,null,null,0,0]
[null,null,null,null,null,null,null,null,0,0]
[null,null,null,null,null,null,null,null,0,0]
[null,null,null,null,null,null,null,null,0,0]
[null,null,null,null,null,null,null,null,0,0]
[null,null,null,null,null,null,null,null,0,0]
[null,null,null,null,null,null,null,null,0,0]
[null,null,null,null,null,null,null,null,0,0]
[null,null,null,null,null,null,null,null,0,0]
[null,null,null,null,null,null,null,null,{"$f":"G899-H899","v":0},{"$f":"IF(E1314=$M$6,D1314*0,IF(E1314=$M$7,D1314*70,IF(E1314=$M$8,D1314*100,IF(E1314=$M$9,D1314*140,0))))","v":0}]
[null,null,null,null,null,null,null,null,0,0]
[null,null,null,null,null,null,null,null,0,0]
[null,null,null,null,null,null,null,null,0,0]
[null,null,null,null,null,null,null,null,0,0]
[null,null,null,null,null,null,null,null,0,0]
[null,null,null,null,null,null,null,null,0,0]
[null,null,null,null,null,null,null,null,0,0]
[null,null,null,null,null,null,null,null,0,0]
[null,null,null,null,null,null,null,null,0,0]
[null,null,null,null,null,null,null,null,0,0]
[null,null,null,null,null,null,null,null,0,0]
[null,null,null,null,null,null,null,null,0,0]
[null,null,null,null,null,null,null,null,0,0]
[null,null,null,null,null,null,null,null,0,0]
[null,null,null,null,null,null,null,null,0,0]
[null,null,null,null,null,null,null,null,0,0]
[null,null,null,null,null,null,null,null,0,0]
[null,null,null,null,null,null,null,null,0,0]
[null,null,null,null,null,null,null,null,0,0]
[null,null,null,null,null,null,null,null,0,0]
[null,null,null,null,null,null,null,null,0,0]
[null,null,null,null,null,null,null,null,0,0]
[null,null,null,null,null,null,null,null,0,0]
[null,null,null,null,null,null,null,null,0,0]
[null,null,null,null,null,null,null,null,0,0]
[null,null,null,null,null,null,null,null,0,0]
[null,null,null,null,null,null,null,null,0,0]
[null,null,null,null,null,null,null,null,0,0]
[null,null,null,null,null,null,null,null,0,0]
[null,null,null,null,null,null,null,null,0,0]
[null,null,null,null,null,null,null,null,0,0]
[null,null,null,null,null,null,null,null,0,0]
[null,null,null,null,null,null,null,null,0,0]
[null,null,null,null,null,null,null,null,0,0]
[null,null,null,null,null,null,null,null,0,0]
[null,null,null,null,null,null,null,null,0,0]
[null,null,null,null,null,null,null,null,0,0]
[null,null,null,null,null,null,null,null,0,0]
[null,null,null,null,null,null,null,null,0,0]
[null,null,null,null,null,null,null,null,0,0]
[null,null,null,null,null,null,null,null,0,0]
[null,null,null,null,null,null,null,null,0,0]
[null,null,null,null,null,null,null,null,0,0]
[null,null,null,null,null,null,null,null,0,0]
[null,null,null,null,null,null,null,null,0,0]
[null,null,null,null,null,null,null,null,0,0]
[null,null,null,null,null,null,null,null,0,0]
[null,null,null,null,null,null,null,null,0,0]
[null,null,null,null,null,null,null,null,0,0]
[null,null,null,null,null,null,null,null,0,0]
[null,null,null,null,null,null,null,null,0,0]
[null,null,null,null,null,null,null,null,0,0]
[null,null,null,null,null,null,null,null,0,0]
[null,null,null,null,null,null,null,null,0,0]
[null,null,null,null,null,null,null,null,0,0]
[null,null,null,null,null,null,null,null,0,0]
[null,null,null,null,null,null,null,null,0,0]
[null,null,null,null,null,null,null,null,0,0]
[null,null,null,null,null,null,null,null,0,0]
[null,null,null,null,null,null,null,null,0,0]
[null,null,null,null,null,null,null,null,0,0]
[null,null,null,null,null,null,null,null,0,0]
[null,null,null,null,null,null,null,null,0,0]
[null,null,null,null,null,null,null,null,{"$f":"G963-H963","v":0},{"$f":"IF(E1378=$M$6,D1378*0,IF(E1378=$M$7,D1378*70,IF(E1378=$M$8,D1378*100,IF(E1378=$M$9,D1378*140,0))))","v":0}]
[null,null,null,null,null,null,null,null,0,0]
[null,null,null,null,null,null,null,null,0,0]
[null,null,null,null,null,null,null,null,0,0]
[null,null,null,null,null,null,null,null,0,0]
[null,null,null,null,null,null,null,null,0,0]
[null,null,null,null,null,null,null,null,0,0]
[null,null,null,null,null,null,null,null,0,0]
[null,null,null,null,null,null,null,null,0,0]
[null,null,null,null,null,null,null,null,0,0]
[null,null,null,null,null,null,null,null,0,0]
[null,null,null,null,null,null,null,null,0,0]
[null,null,null,null,null,null,null,null,0,0]
[null,null,null,null,null,null,null,null,0,0]
[null,null,null,null,null,null,null,null,0,0]
[null,null,null,null,null,null,null,null,0,0]
[null,null,null,null,null,null,null,null,0,0]
[null,null,null,null,null,null,null,null,0,0]
[null,null,null,null,null,null,null,null,0,0]
[null,null,null,null,null,null,null,null,0,0]
[null,null,null,null,null,null,null,null,0,0]
[null,null,null,null,null,null,null,null,0,0]
[null,null,null,null,null,null,null,null,0,0]
[null,null,null,null,null,null,null,null,0,0]
[null,null,null,null,null,null,null,null,0,0]
[null,null,null,null,null,null,null,null,0,0]
[null,null,null,null,null,null,null,null,0,0]
[null,null,null,null,null,null,null,null,0,0]
[null,null,null,null,null,null,null,null,0,0]
[null,null,null,null,null,null,null,null,0,0]
[null,null,null,null,null,null,null,null,0,0]
[null,null,null,null,null,null,null,null,0,0]
[null,null,null,null,null,null,null,null,0,0]
[null,null,null,null,null,null,null,null,0,0]
[null,null,null,null,null,null,null,null,0,0]
[null,null,null,null,null,null,null,null,0,0]
[null,null,null,null,null,null,null,null,0,0]
[null,null,null,null,null,null,null,null,0,0]
[null,null,null,null,null,null,null,null,0,0]
[null,null,null,null,null,null,null,null,0,0]
[null,null,null,null,null,null,null,null,0,0]
[null,null,null,null,null,null,null,null,0,0]
[null,null,null,null,null,null,null,null,0,0]
[null,null,null,null,null,null,null,null,0,0]
[null,null,null,null,null,null,null,null,0,0]
[null,null,null,null,null,null,null,null,0,0]
[null,null,null,null,null,null,null,null,0,0]
[null,null,null,null,null,null,null,null,0,0]
[null,null,null,null,null,null,null,null,0,0]
[null,null,null,null,null,null,null,null,0,0]
[null,null,null,null,null,null,null,null,0,0]
[null,null,null,null,null,null,null,null,0,0]
[null,null,null,null,null,null,null,null,0,0]
[null,null,null,null,null,null,null,null,0,0]
[null,null,null,null,null,null,null,null,0,0]
[null,null,null,null,null,null,null,null,0,0]
[null,null,null,null,null,null,null,null,0,0]
[null,null,null,null,null,null,null,null,0,0]
[null,null,null,null,null,null,null,null,0,0]
[null,null,null,null,null,null,null,null,0,0]
[null,null,null,null,null,null,null,null,0,0]
[null,null,null,null,null,null,null,null,0,0]
[null,null,null,null,null,null,null,null,0,0]
[null,null,null,null,null,null,null,null,0,0]
[null,null,null,null,null,null,null,null,{"$f":"G1027-H1027","v":0},{"$f":"IF(E1442=$M$6,D1442*0,IF(E1442=$M$7,D1442*70,IF(E1442=$M$8,D1442*100,IF(E1442=$M$9,D1442*140,0))))","v":0}]
[null,null,null,null,null,null,null,null,0,0]
[null,null,null,null,null,null,null,null,0,0]
[null,null,null,null,null,null,null,null,0,0]
[null,null,null,null,null,null,null,null,0,0]
[null,null,null,null,null,null,null,null,0,0]
[null,null,null,null,null,null,null,null,0,0]
[null,null,null,null,null,null,null,null,0,0]
[null,null,null,null,null,null,null,null,0,0]
[null,null,null,null,null,null,null,null,0,0]
[null,null,null,null,null,null,null,null,0,0]
[null,null,null,null,null,null,null,null,0,0]
[null,null,null,null,null,null,null,null,0,0]
[null,null,null,null,null,null,null,null,0,0]
[null,null,null,null,null,null,null,null,0,0]
[null,null,null,null,null,null,null,null,0,0]
[null,null,null,null,null,null,null,null,0,0]
[null,null,null,null,null,null,null,null,0,0]
[null,null,null,null,null,null,null,null,0,0]
[null,null,null,null,null,null,null,null,0,0]
[null,null,null,null,null,null,null,null,0,0]
[null,null,null,null,null,null,null,null,0,0]
[null,null,null,null,null,null,null,null,0,0]
[null,null,null,null,null,null,null,null,0,0]
[null,null,null,null,null,null,null,null,0,0]
[null,null,null,null,null,null,null,null,0,0]
[null,null,null,null,null,null,null,null,0,0]
[null,null,null,null,null,null,null,null,0,0]
[null,null,null,null,null,null,null,null,0,0]
[null,null,null,null,null,null,null,null,0,0]
[null,null,null,null,null,null,null,null,0,0]
[null,null,null,null,null,null,null,null,0,0]
[null,null,null,null,null,null,null,null,0,0]
[null,null,null,null,null,null,null,null,0,0]
[null,null,null,null,null,null,null,null,0,0]
[null,null,null,null,null,null,null,null,0,0]
[null,null,null,null,null,null,null,null,0,0]
[null,null,null,null,null,null,null,null,0,0]
[null,null,null,null,null,null,null,null,0,0]
[null,null,null,null,null,null,null,null,0,0]
[null,null,null,null,null,null,null,null,0,0]
[null,null,null,null,null,null,null,null,0,0]
[null,null,null,null,null,null,null,null,0,0]
[null,null,null,null,null,null,null,null,0,0]
[null,null,null,null,null,null,null,null,0,0]
[null,null,null,null,null,null,null,null,0,0]
[null,null,null,null,null,null,null,null,0,0]
[null,null,null,null,null,null,null,null,0,0]
[null,null,null,null,null,null,null,null,0,0]
[null,null,null,null,null,null,null,null,0,0]
[null,null,null,null,null,null,null,null,0,0]
[null,null,null,null,null,null,null,null,0,0]
[null,null,null,null,null,null,null,null,0,0]
[null,null,null,null,null,null,null,null,0,0]
[null,null,null,null,null,null,null,null,0,0]
[null,null,null,null,null,null,null,null,0,0]
[null,null,null,null,null,null,null,null,0,0]
[null,null,null,null,null,null,null,null,0,0]
[null,null,null,null,null,null,null,null,0,0]
[null,null,null,null,null,null,null,null,0,0]
[null,null,null,null,null,null,null,null,0,0]
[null,null,null,null,null,null,null,null,0,0]
[null,null,null,null,null,null,null,null,0,0]
[null,null,null,null,null,null,null,null,0,0]
[null,null,null,null,null,null,null,null,{"$f":"G1091-H1091","v":0},{"$f":"IF(E1506=$M$6,D1506*0,IF(E1506=$M$7,D1506*70,IF(E1506=$M$8,D1506*100,IF(E1506=$M$9,D1506*140,0))))","v":0}]
[null,null,null,null,null,null,null,null,0,0]
[null,null,null,null,null,null,null,null,0,0]
[null,null,null,null,null,null,null,null,0,0]
[null,null,null,null,null,null,null,null,0,0]
[null,null,null,null,null,null,null,null,0,0]
[null,null,null,null,null,null,null,null,0,0]
[null,null,null,null,null,null,null,null,0,0]
[null,null,null,null,null,null,null,null,0,0]
[null,null,null,null,null,null,null,null,0,0]
[null,null,null,null,null,null,null,null,0,0]
[null,null,null,null,null,null,null,null,0,0]
[null,null,null,null,null,null,null,null,0,0]
[null,null,null,null,null,null,null,null,0,0]
[null,null,null,null,null,null,null,null,0,0]
[null,null,null,null,null,null,null,null,0,0]
[null,null,null,null,null,null,null,null,0,0]
[null,null,null,null,null,null,null,null,0,0]
[null,null,null,null,null,null,null,null,0,0]
[null,null,null,null,null,null,null,null,0,0]
[null,null,null,null,null,null,null,null,0,0]
[null,null,null,null,null,null,null,null,0,0]
[null,null,null,null,null,null,null,null,0,0]
[null,null,null,null,null,null,null,null,0,0]
[null,null,null,null,null,null,null,null,0,0]
[null,null,null,null,null,null,null,null,0,0]
[null,null,null,null,null,null,null,null,0,0]
[null,null,null,null,null,null,null,null,0,0]
[null,null,null,null,null,null,null,null,0,0]
[null,null,null,null,null,null,null,null,0,0]
[null,null,null,null,null,null,null,null,0,0]
[null,null,null,null,null,null,null,null,0,0]
[null,null,null,null,null,null,null,null,0,0]
[null,null,null,null,null,null,null,null,0,0]
[null,null,null,null,null,null,null,null,0,0]
[null,null,null,null,null,null,null,null,0,0]
[null,null,null,null,null,null,null,null,0,0]
[null,null,null,null,null,null,null,null,0,0]
[null,null,null,null,null,null,null,null,0,0]
[null,null,null,null,null,null,null,null,0,0]
[null,null,null,null,null,null,null,null,0,0]
[null,null,null,null,null,null,null,null,0,0]
[null,null,null,null,null,null,null,null,0,0]
[null,null,null,null,null,null,null,null,0,0]
[null,null,null,null,null,null,null,null,0,0]
[null,null,null,null,null,null,null,null,0,0]
[null,null,null,null,null,null,null,null,0,0]
[null,null,null,null,null,null,null,null,0,0]
[null,null,null,null,null,null,null,null,0,0]
[null,null,null,null,null,null,null,null,0,0]
[null,null,null,null,null,null,null,null,0,0]
[null,null,null,null,null,null,null,null,0,0]
[null,null,null,null,null,null,null,null,0,0]
[null,null,null,null,null,null,null,null,0,0]
[null,null,null,null,null,null,null,null,0,0]
[null,null,null,null,null,null,null,null,0,0]
[null,null,null,null,null,null,null,null,0,0]
[null,null,null,null,null,null,null,null,0,0]
[null,null,null,null,null,null,null,null,0,0]
[null,null,null,null,null,null,null,null,0,0]
[null,null,null,null,null,null,null,null,0,0]
[null,null,null,null,null,null,null,null,0,0]
[null,null,null,null,null,null,null,null,0,0]
[null,null,null,null,null,null,null,null,0,0]
[null,null,null,null,null,null,null,null,{"$f":"G1155-H1155","v":0},{"$f":"IF(E1570=$M$6,D1570*0,IF(E1570=$M$7,D1570*70,IF(E1570=$M$8,D1570*100,IF(E1570=$M$9,D1570*140,0))))","v":0}]
[null,null,null,null,null,null,null,null,0,0]
[null,null,null,null,null,null,null,null,0,0]
[null,null,null,null,null,null,null,null,0,0]
[null,null,null,null,null,null,null,null,0,0]
[null,null,null,null,null,null,null,null,0,0]
[null,null,null,null,null,null,null,null,0,0]
[null,null,null,null,null,null,null,null,0,0]
[null,null,null,null,null,null,null,null,0,0]
[null,null,null,null,null,null,null,null,0,0]
[null,null,null,null,null,null,null,null,0,0]
[null,null,null,null,null,null,null,null,0,0]
[null,null,null,null,null,null,null,null,0,0]
[null,null,null,null,null,null,null,null,0,0]
[null,null,null,null,null,null,null,null,0,0]
[null,null,null,null,null,null,null,null,0,0]
[null,null,null,null,null,null,null,null,0,0]
[null,null,null,null,null,null,null,null,0,0]
[null,null,null,null,null,null,null,null,0,0]
[null,null,null,null,null,null,null,null,0,0]
[null,null,null,null,null,null,null,null,0,0]
[null,null,null,null,null,null,null,null,0,0]
[null,null,null,null,null,null,null,null,0,0]
[null,null,null,null,null,null,null,null,0,0]
[null,null,null,null,null,null,null,null,0,0]
[null,null,null,null,null,null,null,null,0,0]
[null,null,null,null,null,null,null,null,0,0]
[null,null,null,null,null,null,null,null,0,0]
[null,null,null,null,null,null,null,null,0,0]
[null,null,null,null,null,null,null,null,0,0]
[null,null,null,null,null,null,null,null,0,0]
[null,null,null,null,null,null,null,null,0,0]
[null,null,null,null,null,null,null,null,0,0]
[null,null,null,null,null,null,null,null,0,0]
[null,null,null,null,null,null,null,null,0,0]
[null,null,null,null,null,null,null,null,0,0]
[null,null,null,null,null,null,null,null,0,0]
[null,null,null,null,null,null,null,null,0,0]
[null,null,null,null,null,null,null,null,0,0]
[null,null,null,null,null,null,null,null,0,0]
[null,null,null,null,null,null,null,null,0,0]
[null,null,null,null,null,null,null,null,0,0]
[null,null,null,null,null,null,null,null,0,0]
[null,null,null,null,null,null,null,null,0,0]
[null,null,null,null,null,null,null,null,0,0]
[null,null,null,null,null,null,null,null,0,0]
[null,null,null,null,null,null,null,null,0,0]
[null,null,null,null,null,null,null,null,0,0]
[null,null,null,null,null,null,null,null,0,0]
[null,null,null,null,null,null,null,null,0,0]
[null,null,null,null,null,null,null,null,0,0]
[null,null,null,null,null,null,null,null,0,0]
[null,null,null,null,null,null,null,null,0,0]
[null,null,null,null,null,null,null,null,0,0]
[null,null,null,null,null,null,null,null,0,0]
[null,null,null,null,null,null,null,null,0,0]
[null,null,null,null,null,null,null,null,0,0]
[null,null,null,null,null,null,null,null,0,0]
[null,null,null,null,null,null,null,null,0,0]
[null,null,null,null,null,null,null,null,0,0]
[null,null,null,null,null,null,null,null,0,0]
[null,null,null,null,null,null,null,null,0,0]
[null,null,null,null,null,null,null,null,0,0]
[null,null,null,null,null,null,null,null,0,0]
[null,null,null,null,null,null,null,null,{"$f":"G1219-H1219","v":0},{"$f":"IF(E1634=$M$6,D1634*0,IF(E1634=$M$7,D1634*70,IF(E1634=$M$8,D1634*100,IF(E1634=$M$9,D1634*140,0))))","v":0}]
[null,null,null,null,null,null,null,null,0,0]
[null,null,null,null,null,null,null,null,0,0]
[null,null,null,null,null,null,null,null,0,0]
[null,null,null,null,null,null,null,null,0,0]
[null,null,null,null,null,null,null,null,0,0]
[null,null,null,null,null,null,null,null,0,0]
[null,null,null,null,null,null,null,null,0,0]
[null,null,null,null,null,null,null,null,0,0]
[null,null,null,null,null,null,null,null,0,0]
[null,null,null,null,null,null,null,null,0,0]
[null,null,null,null,null,null,null,null,0,0]
[null,null,null,null,null,null,null,null,0,0]
[null,null,null,null,null,null,null,null,0,0]
[null,null,null,null,null,null,null,null,0,0]
[null,null,null,null,null,null,null,null,0,0]
[null,null,null,null,null,null,null,null,0,0]
[null,null,null,null,null,null,null,null,0,0]
[null,null,null,null,null,null,null,null,0,0]
[null,null,null,null,null,null,null,null,0,0]
[null,null,null,null,null,null,null,null,0,0]
[null,null,null,null,null,null,null,null,0,0]
[null,null,null,null,null,null,null,null,0,0]
[null,null,null,null,null,null,null,null,0,0]
[null,null,null,null,null,null,null,null,0,0]
[null,null,null,null,null,null,null,null,0,0]
[null,null,null,null,null,null,null,null,0,0]
[null,null,null,null,null,null,null,null,0,0]
[null,null,null,null,null,null,null,null,0,0]
[null,null,null,null,null,null,null,null,0,0]
[null,null,null,null,null,null,null,null,0,0]
[null,null,null,null,null,null,null,null,0,0]
[null,null,null,null,null,null,null,null,0,0]
[null,null,null,null,null,null,null,null,0,0]
[null,null,null,null,null,null,null,null,0,0]
[null,null,null,null,null,null,null,null,0,0]
[null,null,null,null,null,null,null,null,0,0]
[null,null,null,null,null,null,null,null,0,0]
[null,null,null,null,null,null,null,null,0,0]
[null,null,null,null,null,null,null,null,0,0]
[null,null,null,null,null,null,null,null,0,0]
[null,null,null,null,null,null,null,null,0,0]
[null,null,null,null,null,null,null,null,0,0]
[null,null,null,null,null,null,null,null,0,0]
[null,null,null,null,null,null,null,null,0,0]
[null,null,null,null,null,null,null,null,0,0]
[null,null,null,null,null,null,null,null,0,0]
[null,null,null,null,null,null,null,null,0,0]
[null,null,null,null,null,null,null,null,0,0]
[null,null,null,null,null,null,null,null,0,0]
[null,null,null,null,null,null,null,null,0,0]
[null,null,null,null,null,null,null,null,0,0]
[null,null,null,null,null,null,null,null,0,0]
[null,null,null,null,null,null,null,null,0,0]
[null,null,null,null,null,null,null,null,0,0]
[null,null,null,null,null,null,null,null,0,0]
[null,null,null,null,null,null,null,null,0,0]
[null,null,null,null,null,null,null,null,0,0]
[null,null,null,null,null,null,null,null,0,0]
[null,null,null,null,null,null,null,null,0,0]
[null,null,null,null,null,null,null,null,0,0]
[null,null,null,null,null,null,null,null,0,0]
[null,null,null,null,null,null,null,null,0,0]
[null,null,null,null,null,null,null,null,0,0]
[null,null,null,null,null,null,null,null,{"$f":"G1283-H1283","v":0},{"$f":"IF(E1698=$M$6,D1698*0,IF(E1698=$M$7,D1698*70,IF(E1698=$M$8,D1698*100,IF(E1698=$M$9,D1698*140,0))))","v":0}]
[null,null,null,null,null,null,null,null,0,0]
[null,null,null,null,null,null,null,null,0,0]
[null,null,null,null,null,null,null,null,0,0]
[null,null,null,null,null,null,null,null,0,0]
[null,null,null,null,null,null,null,null,0,0]
[null,null,null,null,null,null,null,null,0,0]
[null,null,null,null,null,null,null,null,0,0]
[null,null,null,null,null,null,null,null,0,0]
[null,null,null,null,null,null,null,null,0,0]
[null,null,null,null,null,null,null,null,0,0]
[null,null,null,null,null,null,null,null,0,0]
[null,null,null,null,null,null,null,null,0,0]
[null,null,null,null,null,null,null,null,0,0]
[null,null,null,null,null,null,null,null,0,0]
[null,null,null,null,null,null,null,null,0,0]
[null,null,null,null,null,null,null,null,0,0]
[null,null,null,null,null,null,null,null,0,0]
[null,null,null,null,null,null,null,null,0,0]
[null,null,null,null,null,null,null,null,0,0]
[null,null,null,null,null,null,null,null,0,0]
[null,null,null,null,null,null,null,null,0,0]
[null,null,null,null,null,null,null,null,0,0]
[null,null,null,null,null,null,null,null,0,0]
[null,null,null,null,null,null,null,null,0,0]
[null,null,null,null,null,null,null,null,0,0]
[null,null,null,null,null,null,null,null,0,0]
[null,null,null,null,null,null,null,null,0,0]
[null,null,null,null,null,null,null,null,0,0]
[null,null,null,null,null,null,null,null,0,0]
[null,null,null,null,null,null,null,null,0,0]
[null,null,null,null,null,null,null,null,0,0]
[null,null,null,null,null,null,null,null,0,0]
[null,null,null,null,null,null,null,null,0,0]
[null,null,null,null,null,null,null,null,0,0]
[null,null,null,null,null,null,null,null,0,0]
[null,null,null,null,null,null,null,null,0,0]
[null,null,null,null,null,null,null,null,0,0]
[null,null,null,null,null,null,null,null,0,0]
[null,null,null,null,null,null,null,null,0,0]
[null,null,null,null,null,null,null,null,0,0]
[null,null,null,null,null,null,null,null,0,0]
[null,null,null,null,null,null,null,null,0,0]
[null,null,null,null,null,null,null,null,0,0]
[null,null,null,null,null,null,null,null,0,0]
[null,null,null,null,null,null,null,null,0,0]
[null,null,null,null,null,null,null,null,0,0]
[null,null,null,null,null,null,null,null,0,0]
[null,null,null,null,null,null,null,null,0,0]
[null,null,null,null,null,null,null,null,0,0]
[null,null,null,null,null,null,null,null,0,0]
[null,null,null,null,null,null,null,null,0,0]
[null,null,null,null,null,null,null,null,0,0]
[null,null,null,null,null,null,null,null,0,0]
[null,null,null,null,null,null,null,null,0,0]
[null,null,null,null,null,null,null,null,0,0]
[null,null,null,null,null,null,null,null,0,0]
[null,null,null,null,null,null,null,null,0,0]
[null,null,null,null,null,null,null,null,0,0]
[null,null,null,null,null,null,null,null,0,0]
[null,null,null,null,null,null,null,null,0,0]
[null,null,null,null,null,null,null,null,0,0]
[null,null,null,null,null,null,null,null,0,0]
[null,null,null,null,null,null,null,null,0,0]
[null,null,null,null,null,null,null,null,{"$f":"G1347-H1347","v":0},{"$f":"IF(E1762=$M$6,D1762*0,IF(E1762=$M$7,D1762*70,IF(E1762=$M$8,D1762*100,IF(E1762=$M$9,D1762*140,0))))","v":0}]
[null,null,null,null,null,null,null,null,0,0]
[null,null,null,null,null,null,null,null,0,0]
[null,null,null,null,null,null,null,null,0,0]
[null,null,null,null,null,null,null,null,0,0]
[null,null,null,null,null,null,null,null,0,0]
[null,null,null,null,null,null,null,null,0,0]
[null,null,null,null,null,null,null,null,0,0]
[null,null,null,null,null,null,null,null,0,0]
[null,null,null,null,null,null,null,null,0,0]
[null,null,null,null,null,null,null,null,0,0]
[null,null,null,null,null,null,null,null,0,0]
[null,null,null,null,null,null,null,null,0,0]
[null,null,null,null,null,null,null,null,0,0]
[null,null,null,null,null,null,null,null,0,0]
[null,null,null,null,null,null,null,null,0,0]
[null,null,null,null,null,null,null,null,0,0]
[null,null,null,null,null,null,null,null,0,0]
[null,null,null,null,null,null,null,null,0,0]
[null,null,null,null,null,null,null,null,0,0]
[null,null,null,null,null,null,null,null,0,0]
[null,null,null,null,null,null,null,null,0,0]
[null,null,null,null,null,null,null,null,0,0]
[null,null,null,null,null,null,null,null,0,0]
[null,null,null,null,null,null,null,null,0,0]
[null,null,null,null,null,null,null,null,0,0]
[null,null,null,null,null,null,null,null,0,0]
[null,null,null,null,null,null,null,null,0,0]
[null,null,null,null,null,null,null,null,0,0]
[null,null,null,null,null,null,null,null,0,0]
[null,null,null,null,null,null,null,null,0,0]
[null,null,null,null,null,null,null,null,0,0]
[null,null,null,null,null,null,null,null,0,0]
[null,null,null,null,null,null,null,null,0,0]
[null,null,null,null,null,null,null,null,0,0]
[null,null,null,null,null,null,null,null,0,0]
[null,null,null,null,null,null,null,null,0,0]
[null,null,null,null,null,null,null,null,0,0]
[null,null,null,null,null,null,null,null,0,0]
[null,null,null,null,null,null,null,null,0,0]
[null,null,null,null,null,null,null,null,0,0]
[null,null,null,null,null,null,null,null,0,0]
[null,null,null,null,null,null,null,null,0,0]
[null,null,null,null,null,null,null,null,0,0]
[null,null,null,null,null,null,null,null,0,0]
[null,null,null,null,null,null,null,null,0,0]
[null,null,null,null,null,null,null,null,0,0]
[null,null,null,null,null,null,null,null,0,0]
[null,null,null,null,null,null,null,null,0,0]
[null,null,null,null,null,null,null,null,0,0]
[null,null,null,null,null,null,null,null,0,0]
[null,null,null,null,null,null,null,null,0,0]
[null,null,null,null,null,null,null,null,0,0]
[null,null,null,null,null,null,null,null,0,0]
[null,null,null,null,null,null,null,null,0,0]
[null,null,null,null,null,null,null,null,0,0]
[null,null,null,null,null,null,null,null,0,0]
[null,null,null,null,null,null,null,null,0,0]
[null,null,null,null,null,null,null,null,0,0]
[null,null,null,null,null,null,null,null,0,0]
[null,null,null,null,null,null,null,null,0,0]
[null,null,null,null,null,null,null,null,0,0]
[null,null,null,null,null,null,null,null,0,0]
[null,null,null,null,null,null,null,null,0,0]
[null,null,null,null,null,null,null,null,{"$f":"G1411-H1411","v":0},{"$f":"IF(E1826=$M$6,D1826*0,IF(E1826=$M$7,D1826*70,IF(E1826=$M$8,D1826*100,IF(E1826=$M$9,D1826*140,0))))","v":0}]
[null,null,null,null,null,null,null,null,0,0]
[null,null,null,null,null,null,null,null,0,0]
[null,null,null,null,null,null,null,null,0,0]
[null,null,null,null,null,null,null,null,0,0]
[null,null,null,null,null,null,null,null,0,0]
[null,null,null,null,null,null,null,null,0,0]
[null,null,null,null,null,null,null,null,0,0]
[null,null,null,null,null,null,null,null,0,0]
[null,null,null,null,null,null,null,null,0,0]
[null,null,null,null,null,null,null,null,0,0]
[null,null,null,null,null,null,null,null,0,0]
[null,null,null,null,null,null,null,null,0,0]
[null,null,null,null,null,null,null,null,0,0]
[null,null,null,null,null,null,null,null,0,0]
[null,null,null,null,null,null,null,null,0,0]
[null,null,null,null,null,null,null,null,0,0]
[null,null,null,null,null,null,null,null,0,0]
[null,null,null,null,null,null,null,null,0,0]
[null,null,null,null,null,null,null,null,0,0]
[null,null,null,null,null,null,null,null,0,0]
[null,null,null,null,null,null,null,null,0,0]
[null,null,null,null,null,null,null,null,0,0]
[null,null,null,null,null,null,null,null,0,0]
[null,null,null,null,null,null,null,null,0,0]
[null,null,null,null,null,null,null,null,0,0]
[null,null,null,null,null,null,null,null,0,0]
[null,null,null,null,null,null,null,null,0,0]
[null,null,null,null,null,null,null,null,0,0]
[null,null,null,null,null,null,null,null,0,0]
[null,null,null,null,null,null,null,null,0,0]
[null,null,null,null,null,null,null,null,0,0]
[null,null,null,null,null,null,null,null,0,0]
[null,null,null,null,null,null,null,null,0,0]
[null,null,null,null,null,null,null,null,0,0]
[null,null,null,null,null,null,null,null,0,0]
[null,null,null,null,null,null,null,null,0,0]
[null,null,null,null,null,null,null,null,0,0]
[null,null,null,null,null,null,null,null,0,0]
[null,null,null,null,null,null,null,null,0,0]
[null,null,null,null,null,null,null,null,0,0]
[null,null,null,null,null,null,null,null,0,0]
[null,null,null,null,null,null,null,null,0,0]
[null,null,null,null,null,null,null,null,0,0]
[null,null,null,null,null,null,null,null,0,0]
[null,null,null,null,null,null,null,null,0,0]
[null,null,null,null,null,null,null,null,0,0]
[null,null,null,null,null,null,null,null,0,0]
[null,null,null,null,null,null,null,null,0,0]
[null,null,null,null,null,null,null,null,0,0]
[null,null,null,null,null,null,null,null,0,0]
[null,null,null,null,null,null,null,null,0,0]
[null,null,null,null,null,null,null,null,0,0]
[null,null,null,null,null,null,null,null,0,0]
[null,null,null,null,null,null,null,null,0,0]
[null,null,null,null,null,null,null,null,0,0]
[null,null,null,null,null,null,null,null,0,0]
[null,null,null,null,null,null,null,null,0,0]
[null,null,null,null,null,null,null,null,0,0]
[null,null,null,null,null,null,null,null,0,0]
[null,null,null,null,null,null,null,null,0,0]
[null,null,null,null,null,null,null,null,0,0]
[null,null,null,null,null,null,null,null,0,0]
[null,null,null,null,null,null,null,null,0,0]
[null,null,null,null,null,null,null,null,{"$f":"G1475-H1475","v":0},{"$f":"IF(E1890=$M$6,D1890*0,IF(E1890=$M$7,D1890*70,IF(E1890=$M$8,D1890*100,IF(E1890=$M$9,D1890*140,0))))","v":0}]
[null,null,null,null,null,null,null,null,0,0]
[null,null,null,null,null,null,null,null,0,0]
[null,null,null,null,null,null,null,null,0,0]
[null,null,null,null,null,null,null,null,0,0]
[null,null,null,null,null,null,null,null,0,0]
[null,null,null,null,null,null,null,null,0,0]
[null,null,null,null,null,null,null,null,0,0]
[null,null,null,null,null,null,null,null,0,0]
[null,null,null,null,null,null,null,null,0,0]
[null,null,null,null,null,null,null,null,0,0]
[null,null,null,null,null,null,null,null,0,0]
[null,null,null,null,null,null,null,null,0,0]
[null,null,null,null,null,null,null,null,0,0]
[null,null,null,null,null,null,null,null,0,0]
[null,null,null,null,null,null,null,null,0,0]
[null,null,null,null,null,null,null,null,0,0]
[null,null,null,null,null,null,null,null,0,0]
[null,null,null,null,null,null,null,null,0,0]
[null,null,null,null,null,null,null,null,0,0]
[null,null,null,null,null,null,null,null,0,0]
[null,null,null,null,null,null,null,null,0,0]
[null,null,null,null,null,null,null,null,0,0]
[null,null,null,null,null,null,null,null,0,0]
[null,null,null,null,null,null,null,null,0,0]
[null,null,null,null,null,null,null,null,0,0]
[null,null,null,null,null,null,null,null,0,0]
[null,null,null,null,null,null,null,null,0,0]
[null,null,null,null,null,null,null,null,0,0]
[null,null,null,null,null,null,null,null,0,0]
[null,null,null,null,null,null,null,null,0,0]
[null,null,null,null,null,null,null,null,0,0]
[null,null,null,null,null,null,null,null,0,0]
[null,null,null,null,null,null,null,null,0,0]
[null,null,null,null,null,null,null,null,0,0]
[null,null,null,null,null,null,null,null,0,0]
[null,null,null,null,null,null,null,null,0,0]
[null,null,null,null,null,null,null,null,0,0]
[null,null,null,null,null,null,null,null,0,0]
[null,null,null,null,null,null,null,null,0,0]
[null,null,null,null,null,null,null,null,0,0]
[null,null,null,null,null,null,null,null,0,0]
[null,null,null,null,null,null,null,null,0,0]
[null,null,null,null,null,null,null,null,0,0]
[null,null,null,null,null,null,null,null,0,0]
[null,null,null,null,null,null,null,null,0,0]
[null,null,null,null,null,null,null,null,0,0]
[null,null,null,null,null,null,null,null,0,0]
[null,null,null,null,null,null,null,null,0,0]
[null,null,null,null,null,null,null,null,0,0]
[null,null,null,null,null,null,null,null,0,0]
[null,null,null,null,null,null,null,null,0,0]
[null,null,null,null,null,null,null,null,0,0]
[null,null,null,null,null,null,null,null,0,0]
[null,null,null,null,null,null,null,null,0,0]
[null,null,null,null,null,null,null,null,0,0]
[null,null,null,null,null,null,null,null,0,0]
[null,null,null,null,null,null,null,null,0,0]
[null,null,null,null,null,null,null,null,0,0]
[null,null,null,null,null,null,null,null,0,0]
[null,null,null,null,null,null,null,null,0,0]
[null,null,null,null,null,null,null,null,0,0]
[null,null,null,null,null,null,null,null,0,0]
[null,null,null,null,null,null,null,null,0,0]
[null,null,null,null,null,null,null,null,{"$f":"G1539-H1539","v":0},{"$f":"IF(E1954=$M$6,D1954*0,IF(E1954=$M$7,D1954*70,IF(E1954=$M$8,D1954*100,IF(E1954=$M$9,D1954*140,0))))","v":0}]
[null,null,null,null,null,null,null,null,0,0]
[null,null,null,null,null,null,null,null,0,0]
[null,null,null,null,null,null,null,null,0,0]
[null,null,null,null,null,null,null,null,0,0]
[null,null,null,null,null,null,null,null,0,0]
[null,null,null,null,null,null,null,null,0,0]
[null,null,null,null,null,null,null,null,0,0]
[null,null,null,null,null,null,null,null,0,0]
[null,null,null,null,null,null,null,null,0,0]
[null,null,null,null,null,null,null,null,0,0]
[null,null,null,null,null,null,null,null,0,0]
[null,null,null,null,null,null,null,null,0,0]
[null,null,null,null,null,null,null,null,0,0]
[null,null,null,null,null,null,null,null,0,0]
[null,null,null,null,null,null,null,null,0,0]
[null,null,null,null,null,null,null,null,0,0]
[null,null,null,null,null,null,null,null,0,0]
[null,null,null,null,null,null,null,null,0,0]
[null,null,null,null,null,null,null,null,0,0]
[null,null,null,null,null,null,null,null,0,0]
[null,null,null,null,null,null,null,null,0,0]
[null,null,null,null,null,null,null,null,0,0]
[null,null,null,null,null,null,null,null,0,0]
[null,null,null,null,null,null,null,null,0,0]
[null,null,null,null,null,null,null,null,0,0]
[null,null,null,null,null,null,null,null,0,0]
[null,null,null,null,null,null,null,null,0,0]
[null,null,null,null,null,null,null,null,0,0]
[null,null,null,null,null,null,null,null,0,0]
[null,null,null,null,null,null,null,null,0,0]
[null,null,null,null,null,null,null,null,0,0]
[null,null,null,null,null,null,null,null,0,0]
[null,null,null,null,null,null,null,null,0,0]
[null,null,null,null,null,null,null,null,0,0]
[null,null,null,null,null,null,null,null,0,0]
[null,null,null,null,null,null,null,null,0,0]
[null,null,null,null,null,null,null,null,0,0]
[null,null,null,null,null,null,null,null,0,0]
[null,null,null,null,null,null,null,null,0,0]
[null,null,null,null,null,null,null,null,0,0]
[null,null,null,null,null,null,null,null,0,0]
[null,null,null,null,null,null,null,null,0,0]
[null,null,null,null,null,null,null,null,0,0]
[null,null,null,null,null,null,null,null,0,0]
[null,null,null,null,null,null,null,null,0,0]
[null,null,null,null,null,null,null,null,0,0]
[null,null,null,null,null,null,null,null,0,0]
[null,null,null,null,null,null,null,null,0,0]
[null,null,null,null,null,null,null,null,0,0]
[null,null,null,null,null,null,null,null,0,0]
[null,null,null,null,null,null,null,null,0,0]
[null,null,null,null,null,null,null,null,0,0]
[null,null,null,null,null,null,null,null,0,0]
[null,null,null,null,null,null,null,null,0,0]
[null,null,null,null,null,null,null,null,0,0]
[null,null,null,null,null,null,null,null,0,0]
[null,null,null,null,null,null,null,null,0,0]
[null,null,null,null,null,null,null,null,0,0]
[null,null,null,null,null,null,null,null,0,0]
[null,null,null,null,null,null,null,null,0,0]
[null,null,null,null,null,null,null,null,0,0]
[null,null,null,null,null,null,null,null,0,0]
[null,null,null,null,null,null,null,null,0,0]
[null,null,null,null,null,null,null,null,{"$f":"G1603-H1603","v":0},{"$f":"IF(E2018=$M$6,D2018*0,IF(E2018=$M$7,D2018*70,IF(E2018=$M$8,D2018*100,IF(E2018=$M$9,D2018*140,0))))","v":0}]
[null,null,null,null,null,null,null,null,0,0]
[null,null,null,null,null,null,null,null,0,0]
[null,null,null,null,null,null,null,null,0,0]
[null,null,null,null,null,null,null,null,0,0]
[null,null,null,null,null,null,null,null,0,0]
[null,null,null,null,null,null,null,null,0,0]
[null,null,null,null,null,null,null,null,0,0]
[null,null,null,null,null,null,null,null,0,0]
[null,null,null,null,null,null,null,null,0,0]
[null,null,null,null,null,null,null,null,0,0]
[null,null,null,null,null,null,null,null,0,0]
[null,null,null,null,null,null,null,null,0,0]
[null,null,null,null,null,null,null,null,0,0]
[null,null,null,null,null,null,null,null,0,0]
[null,null,null,null,null,null,null,null,0,0]
[null,null,null,null,null,null,null,null,0,0]
[null,null,null,null,null,null,null,null,0,0]
[null,null,null,null,null,null,null,null,0,0]
[null,null,null,null,null,null,null,null,0,0]
[null,null,null,null,null,null,null,null,0,0]
[null,null,null,null,null,null,null,null,0,0]
[null,null,null,null,null,null,null,null,0,0]
[null,null,null,null,null,null,null,null,0,0]
[null,null,null,null,null,null,null,null,0,0]
[null,null,null,null,null,null,null,null,0,0]
[null,null,null,null,null,null,null,null,0,0]
[null,null,null,null,null,null,null,null,0,0]
[null,null,null,null,null,null,null,null,0,0]
[null,null,null,null,null,null,null,null,0,0]
[null,null,null,null,null,null,null,null,0,0]
[null,null,null,null,null,null,null,null,0,0]
[null,null,null,null,null,null,null,null,0,0]
[null,null,null,null,null,null,null,null,0,0]
[null,null,null,null,null,null,null,null,0,0]
[null,null,null,null,null,null,null,null,0,0]
[null,null,null,null,null,null,null,null,0,0]
[null,null,null,null,null,null,null,null,0,0]
[null,null,null,null,null,null,null,null,0,0]
[null,null,null,null,null,null,null,null,0,0]
[null,null,null,null,null,null,null,null,0,0]
[null,null,null,null,null,null,null,null,0,0]
[null,null,null,null,null,null,null,null,0,0]
[null,null,null,null,null,null,null,null,0,0]
[null,null,null,null,null,null,null,null,0,0]
[null,null,null,null,null,null,null,null,0,0]
[null,null,null,null,null,null,null,null,0,0]
[null,null,null,null,null,null,null,null,0,0]
[null,null,null,null,null,null,null,null,0,0]
[null,null,null,null,null,null,null,null,0,0]
[null,null,null,null,null,null,null,null,0,0]
[null,null,null,null,null,null,null,null,0,0]
[null,null,null,null,null,null,null,null,0,0]
[null,null,null,null,null,null,null,null,0,0]
[null,null,null,null,null,null,null,null,0,0]
[null,null,null,null,null,null,null,null,0,0]
[null,null,null,null,null,null,null,null,0,0]
[null,null,null,null,null,null,null,null,0,0]
[null,null,null,null,null,null,null,null,0,0]
[null,null,null,null,null,null,null,null,0,0]
[null,null,null,null,null,null,null,null,0,0]
[null,null,null,null,null,null,null,null,0,0]
[null,null,null,null,null,null,null,null,0,0]
[null,null,null,null,null,null,null,null,0,0]
[null,null,null,null,null,null,null,null,{"$f":"G1667-H1667","v":0},{"$f":"IF(E2082=$M$6,D2082*0,IF(E2082=$M$7,D2082*70,IF(E2082=$M$8,D2082*100,IF(E2082=$M$9,D2082*140,0))))","v":0}]
[null,null,null,null,null,null,null,null,0,0]
[null,null,null,null,null,null,null,null,0,0]
[null,null,null,null,null,null,null,null,0,0]
[null,null,null,null,null,null,null,null,0,0]
[null,null,null,null,null,null,null,null,0,0]
[null,null,null,null,null,null,null,null,0,0]
[null,null,null,null,null,null,null,null,0,0]
[null,null,null,null,null,null,null,null,0,0]
[null,null,null,null,null,null,null,null,0,0]
[null,null,null,null,null,null,null,null,0,0]
[null,null,null,null,null,null,null,null,0,0]
[null,null,null,null,null,null,null,null,0,0]
[null,null,null,null,null,null,null,null,0,0]
[null,null,null,null,null,null,null,null,0,0]
[null,null,null,null,null,null,null,null,0,0]
[null,null,null,null,null,null,null,null,0,0]
[null,null,null,null,null,null,null,null,0,0]
[null,null,null,null,null,null,null,null,0,0]
[null,null,null,null,null,null,null,null,0,0]
[null,null,null,null,null,null,null,null,0,0]
[null,null,null,null,null,null,null,null,0,0]
[null,null,null,null,null,null,null,null,0,0]
[null,null,null,null,null,null,null,null,0,0]
[null,null,null,null,null,null,null,null,0,0]
[null,null,null,null,null,null,null,null,0,0]
[null,null,null,null,null,null,null,null,0,0]
[null,null,null,null,null,null,null,null,0,0]
[null,null,null,null,null,null,null,null,0,0]
[null,null,null,null,null,null,null,null,0,0]
[null,null,null,null,null,null,null,null,0,0]
[null,null,null,null,null,null,null,null,0,0]
[null,null,null,null,null,null,null,null,0,0]
[null,null,null,null,null,null,null,null,0,0]
[null,null,null,null,null,null,null,null,0,0]
[null,null,null,null,null,null,null,null,0,0]
[null,null,null,null,null,null,null,null,0,0]
[null,null,null,null,null,null,null,null,0,0]
[null,null,null,null,null,null,null,null,0,0]
[null,null,null,null,null,null,null,null,0,0]
[null,null,null,null,null,null,null,null,0,0]
[null,null,null,null,null,null,null,null,0,0]
[null,null,null,null,null,null,null,null,0,0]
[null,null,null,null,null,null,null,null,0,0]
[null,null,null,null,null,null,null,null,0,0]
[null,null,null,null,null,null,null,null,0,0]
[null,null,null,null,null,null,null,null,0,0]
[null,null,null,null,null,null,null,null,0,0]
[null,null,null,null,null,null,null,null,0,0]
[null,null,null,null,null,null,null,null,0,0]
[null,null,null,null,null,null,null,null,0,0]
[null,null,null,null,null,null,null,null,0,0]
[null,null,null,null,null,null,null,null,0,0]
[null,null,null,null,null,null,null,null,0,0]
[null,null,null,null,null,null,null,null,0,0]
[null,null,null,null,null,null,null,null,0,0]
[null,null,null,null,null,null,null,null,0,0]
[null,null,null,null,null,null,null,null,0,0]
[null,null,null,null,null,null,null,null,0,0]
[null,null,null,null,null,null,null,null,0,0]
[null,null,null,null,null,null,null,null,0,0]
[null,null,null,null,null,null,null,null,0,0]
[null,null,null,null,null,null,null,null,0,0]
[null,null,null,null,null,null,null,null,0,0]
[null,null,null,null,null,null,null,null,{"$f":"G1731-H1731","v":0},{"$f":"IF(E2146=$M$6,D2146*0,IF(E2146=$M$7,D2146*70,IF(E2146=$M$8,D2146*100,IF(E2146=$M$9,D2146*140,0))))","v":0}]
[null,null,null,null,null,null,null,null,0,0]
[null,null,null,null,null,null,null,null,0,0]
[null,null,null,null,null,null,null,null,0,0]
[null,null,null,null,null,null,null,null,0,0]
[null,null,null,null,null,null,null,null,0,0]
[null,null,null,null,null,null,null,null,0,0]
[null,null,null,null,null,null,null,null,0,0]
[null,null,null,null,null,null,null,null,0,0]
[null,null,null,null,null,null,null,null,0,0]
[null,null,null,null,null,null,null,null,0,0]
[null,null,null,null,null,null,null,null,0,0]
[null,null,null,null,null,null,null,null,0,0]
[null,null,null,null,null,null,null,null,0,0]
[null,null,null,null,null,null,null,null,0,0]
[null,null,null,null,null,null,null,null,0,0]
[null,null,null,null,null,null,null,null,0,0]
[null,null,null,null,null,null,null,null,0,0]
[null,null,null,null,null,null,null,null,0,0]
[null,null,null,null,null,null,null,null,0,0]
[null,null,null,null,null,null,null,null,0,0]
[null,null,null,null,null,null,null,null,0,0]
[null,null,null,null,null,null,null,null,0,0]
[null,null,null,null,null,null,null,null,0,0]
[null,null,null,null,null,null,null,null,0,0]
[null,null,null,null,null,null,null,null,0,0]
[null,null,null,null,null,null,null,null,0,0]
[null,null,null,null,null,null,null,null,0,0]
[null,null,null,null,null,null,null,null,0,0]
[null,null,null,null,null,null,null,null,0,0]
[null,null,null,null,null,null,null,null,0,0]
[null,null,null,null,null,null,null,null,0,0]
[null,null,null,null,null,null,null,null,0,0]
[null,null,null,null,null,null,null,null,0,0]
[null,null,null,null,null,null,null,null,0,0]
[null,null,null,null,null,null,null,null,0,0]
[null,null,null,null,null,null,null,null,0,0]
[null,null,null,null,null,null,null,null,0,0]
[null,null,null,null,null,null,null,null,0,0]
[null,null,null,null,null,null,null,null,0,0]
[null,null,null,null,null,null,null,null,0,0]
[null,null,null,null,null,null,null,null,0,0]
[null,null,null,null,null,null,null,null,0,0]
[null,null,null,null,null,null,null,null,0,0]
[null,null,null,null,null,null,null,null,0,0]
[null,null,null,null,null,null,null,null,0,0]
[null,null,null,null,null,null,null,null,0,0]
[null,null,null,null,null,null,null,null,0,0]
[null,null,null,null,null,null,null,null,0,0]
[null,null,null,null,null,null,null,null,0,0]
[null,null,null,null,null,null,null,null,0,0]
[null,null,null,null,null,null,null,null,0,0]
[null,null,null,null,null,null,null,null,0,0]
[null,null,null,null,null,null,null,null,0,0]
[null,null,null,null,null,null,null,null,0,0]
[null,null,null,null,null,null,null,null,0,0]
[null,null,null,null,null,null,null,null,0,0]
[null,null,null,null,null,null,null,null,0,0]
[null,null,null,null,null,null,null,null,0,0]
[null,null,null,null,null,null,null,null,0,0]
[null,null,null,null,null,null,null,null,0,0]
[null,null,null,null,null,null,null,null,0,0]
[null,null,null,null,null,null,null,null,0,0]
[null,null,null,null,null,null,null,null,0,0]
[null,null,null,null,null,null,null,null,{"$f":"G1795-H1795","v":0},{"$f":"IF(E2210=$M$6,D2210*0,IF(E2210=$M$7,D2210*70,IF(E2210=$M$8,D2210*100,IF(E2210=$M$9,D2210*140,0))))","v":0}]
[null,null,null,null,null,null,null,null,0,0]
[null,null,null,null,null,null,null,null,0,0]
[null,null,null,null,null,null,null,null,0,0]
[null,null,null,null,null,null,null,null,0,0]
[null,null,null,null,null,null,null,null,0,0]
[null,null,null,null,null,null,null,null,0,0]
[null,null,null,null,null,null,null,null,0,0]
[null,null,null,null,null,null,null,null,0,0]
[null,null,null,null,null,null,null,null,0,0]
[null,null,null,null,null,null,null,null,0,0]
[null,null,null,null,null,null,null,null,0,0]
[null,null,null,null,null,null,null,null,0,0]
[null,null,null,null,null,null,null,null,0,0]
[null,null,null,null,null,null,null,null,0,0]
[null,null,null,null,null,null,null,null,0,0]
[null,null,null,null,null,null,null,null,0,0]
[null,null,null,null,null,null,null,null,0,0]
[null,null,null,null,null,null,null,null,0,0]
[null,null,null,null,null,null,null,null,0,0]
[null,null,null,null,null,null,null,null,0,0]
[null,null,null,null,null,null,null,null,0,0]
[null,null,null,null,null,null,null,null,0,0]
[null,null,null,null,null,null,null,null,0,0]
[null,null,null,null,null,null,null,null,0,0]
[null,null,null,null,null,null,null,null,0,0]
[null,null,null,null,null,null,null,null,0,0]
[null,null,null,null,null,null,null,null,0,0]
[null,null,null,null,null,null,null,null,0,0]
[null,null,null,null,null,null,null,null,0,0]
[null,null,null,null,null,null,null,null,0,0]
[null,null,null,null,null,null,null,null,0,0]
[null,null,null,null,null,null,null,null,0,0]
[null,null,null,null,null,null,null,null,0,0]
[null,null,null,null,null,null,null,null,0,0]
[null,null,null,null,null,null,null,null,0,0]
[null,null,null,null,null,null,null,null,0,0]
[null,null,null,null,null,null,null,null,0,0]
[null,null,null,null,null,null,null,null,0,0]
[null,null,null,null,null,null,null,null,0,0]
[null,null,null,null,null,null,null,null,0,0]
[null,null,null,null,null,null,null,null,0,0]
[null,null,null,null,null,null,null,null,0,0]
[null,null,null,null,null,null,null,null,0,0]
[null,null,null,null,null,null,null,null,0,0]
[null,null,null,null,null,null,null,null,0,0]
[null,null,null,null,null,null,null,null,0,0]
[null,null,null,null,null,null,null,null,0,0]
[null,null,null,null,null,null,null,null,0,0]
[null,null,null,null,null,null,null,null,0,0]
[null,null,null,null,null,null,null,null,0,0]
[null,null,null,null,null,null,null,null,0,0]
[null,null,null,null,null,null,null,null,0,0]
[null,null,null,null,null,null,null,null,0,0]
[null,null,null,null,null,null,null,null,0,0]
[null,null,null,null,null,null,null,null,0,0]
[null,null,null,null,null,null,null,null,0,0]
[null,null,null,null,null,null,null,null,0,0]
[null,null,null,null,null,null,null,null,0,0]
[null,null,null,null,null,null,null,null,0,0]
[null,null,null,null,null,null,null,null,0,0]
[null,null,null,null,null,null,null,null,0,0]
[null,null,null,null,null,null,null,null,0,0]
[null,null,null,null,null,null,null,null,0,0]
[null,null,null,null,null,null,null,null,{"$f":"G1859-H1859","v":0},{"$f":"IF(E2274=$M$6,D2274*0,IF(E2274=$M$7,D2274*70,IF(E2274=$M$8,D2274*100,IF(E2274=$M$9,D2274*140,0))))","v":0}]
[null,null,null,null,null,null,null,null,0,0]
[null,null,null,null,null,null,null,null,0,0]
[null,null,null,null,null,null,null,null,0,0]
[null,null,null,null,null,null,null,null,0,0]
[null,null,null,null,null,null,null,null,0,0]
[null,null,null,null,null,null,null,null,0,0]
[null,null,null,null,null,null,null,null,0,0]
[null,null,null,null,null,null,null,null,0,0]
[null,null,null,null,null,null,null,null,0,0]
[null,null,null,null,null,null,null,null,0,0]
[null,null,null,null,null,null,null,null,0,0]
[null,null,null,null,null,null,null,null,0,0]
[null,null,null,null,null,null,null,null,0,0]
[null,null,null,null,null,null,null,null,0,0]
[null,null,null,null,null,null,null,null,0,0]
[null,null,null,null,null,null,null,null,0,0]
[null,null,null,null,null,null,null,null,0,0]
[null,null,null,null,null,null,null,null,0,0]
[null,null,null,null,null,null,null,null,0,0]
[null,null,null,null,null,null,null,null,0,0]
[null,null,null,null,null,null,null,null,0,0]
[null,null,null,null,null,null,null,null,0,0]
[null,null,null,null,null,null,null,null,0,0]
[null,null,null,null,null,null,null,null,0,0]
[null,null,null,null,null,null,null,null,0,0]
[null,null,null,null,null,null,null,null,0,0]
[null,null,null,null,null,null,null,null,0,0]
[null,null,null,null,null,null,null,null,0,0]
[null,null,null,null,null,null,null,null,0,0]
[null,null,null,null,null,null,null,null,0,0]
[null,null,null,null,null,null,null,null,0,0]
[null,null,null,null,null,null,null,null,0,0]
[null,null,null,null,null,null,null,null,0,0]
[null,null,null,null,null,null,null,null,0,0]
[null,null,null,null,null,null,null,null,0,0]
[null,null,null,null,null,null,null,null,0,0]
[null,null,null,null,null,null,null,null,0,0]
[null,null,null,null,null,null,null,null,0,0]
[null,null,null,null,null,null,null,null,0,0]
[null,null,null,null,null,null,null,null,0,0]
[null,null,null,null,null,null,null,null,0,0]
[null,null,null,null,null,null,null,null,0,0]
[null,null,null,null,null,null,null,null,0,0]
[null,null,null,null,null,null,null,null,0,0]
[null,null,null,null,null,null,null,null,0,0]
[null,null,null,null,null,null,null,null,0,0]
[null,null,null,null,null,null,null,null,0,0]
[null,null,null,null,null,null,null,null,0,0]
[null,null,null,null,null,null,null,null,0,0]
[null,null,null,null,null,null,null,null,0,0]
[null,null,null,null,null,null,null,null,0,0]
[null,null,null,null,null,null,null,null,0,0]
[null,null,null,null,null,null,null,null,0,0]
[null,null,null,null,null,null,null,null,0,0]
[null,null,null,null,null,null,null,null,0,0]
[null,null,null,null,null,null,null,null,0,0]
[null,null,null,null,null,null,null,null,0,0]
[null,null,null,null,null,null,null,null,0,0]
[null,null,null,null,null,null,null,null,0,0]
[null,null,null,null,null,null,null,null,0,0]
[null,null,null,null,null,null,null,null,0,0]
[null,null,null,null,null,null,null,null,0,0]
[null,null,null,null,null,null,null,null,0,0]
[null,null,null,null,null,null,null,null,{"$f":"G1923-H1923","v":0},{"$f":"IF(E2338=$M$6,D2338*0,IF(E2338=$M$7,D2338*70,IF(E2338=$M$8,D2338*100,IF(E2338=$M$9,D2338*140,0))))","v":0}]
[null,null,null,null,null,null,null,null,0,0]
[null,null,null,null,null,null,null,null,0,0]
[null,null,null,null,null,null,null,null,0,0]
[null,null,null,null,null,null,null,null,0,0]
[null,null,null,null,null,null,null,null,0,0]
[null,null,null,null,null,null,null,null,0,0]
[null,null,null,null,null,null,null,null,0,0]
[null,null,null,null,null,null,null,null,0,0]
[null,null,null,null,null,null,null,null,0,0]
[null,null,null,null,null,null,null,null,0,0]
[null,null,null,null,null,null,null,null,0,0]
[null,null,null,null,null,null,null,null,0,0]
[null,null,null,null,null,null,null,null,0,0]
[null,null,null,null,null,null,null,null,0,0]
[null,null,null,null,null,null,null,null,0,0]
[null,null,null,null,null,null,null,null,0,0]
[null,null,null,null,null,null,null,null,0,0]
[null,null,null,null,null,null,null,null,0,0]
[null,null,null,null,null,null,null,null,0,0]
[null,null,null,null,null,null,null,null,0,0]
[null,null,null,null,null,null,null,null,0,0]
[null,null,null,null,null,null,null,null,0,0]
[null,null,null,null,null,null,null,null,0,0]
[null,null,null,null,null,null,null,null,0,0]
[null,null,null,null,null,null,null,null,0,0]
[null,null,null,null,null,null,null,null,0,0]
[null,null,null,null,null,null,null,null,0,0]
[null,null,null,null,null,null,null,null,0,0]
[null,null,null,null,null,null,null,null,0,0]
[null,null,null,null,null,null,null,null,0,0]
[null,null,null,null,null,null,null,null,0,0]
[null,null,null,null,null,null,null,null,0,0]
[null,null,null,null,null,null,null,null,0,0]
[null,null,null,null,null,null,null,null,0,0]
[null,null,null,null,null,null,null,null,0,0]
[null,null,null,null,null,null,null,null,0,0]
[null,null,null,null,null,null,null,null,0,0]
[null,null,null,null,null,null,null,null,0,0]
[null,null,null,null,null,null,null,null,0,0]
[null,null,null,null,null,null,null,null,0,0]
[null,null,null,null,null,null,null,null,0,0]
[null,null,null,null,null,null,null,null,0,0]
[null,null,null,null,null,null,null,null,0,0]
[null,null,null,null,null,null,null,null,0,0]
[null,null,null,null,null,null,null,null,0,0]
[null,null,null,null,null,null,null,null,0,0]
[null,null,null,null,null,null,null,null,0,0]
[null,null,null,null,null,null,null,null,0,0]
[null,null,null,null,null,null,null,null,0,0]
[null,null,null,null,null,null,null,null,0,0]
[null,null,null,null,null,null,null,null,0,0]
[null,null,null,null,null,null,null,null,0,0]
[null,null,null,null,null,null,null,null,0,0]
[null,null,null,null,null,null,null,null,0,0]
[null,null,null,null,null,null,null,null,0,0]
[null,null,null,null,null,null,null,null,0,0]
[null,null,null,null,null,null,null,null,0,0]
[null,null,null,null,null,null,null,null,0,0]
[null,null,null,null,null,null,null,null,0,0]
[null,null,null,null,null,null,null,null,0,0]
[null,null,null,null,null,null,null,null,0,0]
[null,null,null,null,null,null,null,null,0,0]
[null,null,null,null,null,null,null,null,0,0]
[null,null,null,null,null,null,null,null,{"$f":"G1987-H1987","v":0},{"$f":"IF(E2402=$M$6,D2402*0,IF(E2402=$M$7,D2402*70,IF(E2402=$M$8,D2402*100,IF(E2402=$M$9,D2402*140,0))))","v":0}]
[null,null,null,null,null,null,null,null,0,0]
[null,null,null,null,null,null,null,null,0,0]
[null,null,null,null,null,null,null,null,0,0]
[null,null,null,null,null,null,null,null,0,0]
[null,null,null,null,null,null,null,null,0,0]
[null,null,null,null,null,null,null,null,0,0]
[null,null,null,null,null,null,null,null,0,0]
[null,null,null,null,null,null,null,null,0,0]
[null,null,null,null,null,null,null,null,0,0]
[null,null,null,null,null,null,null,null,0,0]
[null,null,null,null,null,null,null,null,0,0]
[null,null,null,null,null,null,null,null,0,0]
[null,null,null,null,null,null,null,null,0,0]
[null,null,null,null,null,null,null,null,0,0]
[null,null,null,null,null,null,null,null,0,0]
[null,null,null,null,null,null,null,null,0,0]
[null,null,null,null,null,null,null,null,0,0]
[null,null,null,null,null,null,null,null,0,0]
[null,null,null,null,null,null,null,null,0,0]
[null,null,null,null,null,null,null,null,0,0]
[null,null,null,null,null,null,null,null,0,0]
[null,null,null,null,null,null,null,null,0,0]
[null,null,null,null,null,null,null,null,0,0]
[null,null,null,null,null,null,null,null,0,0]
[null,null,null,null,null,null,null,null,0,0]
[null,null,null,null,null,null,null,null,0,0]
[null,null,null,null,null,null,null,null,0,0]
[null,null,null,null,null,null,null,null,0,0]
[null,null,null,null,null,null,null,null,0,0]
[null,null,null,null,null,null,null,null,0,0]
[null,null,null,null,null,null,null,null,0,0]
[null,null,null,null,null,null,null,null,0,0]
[null,null,null,null,null,null,null,null,0,0]
[null,null,null,null,null,null,null,null,0,0]
[null,null,null,null,null,null,null,null,0,0]
[null,null,null,null,null,null,null,null,0,0]
[null,null,null,null,null,null,null,null,0,0]
[null,null,null,null,null,null,null,null,0,0]
[null,null,null,null,null,null,null,null,0,0]
[null,null,null,null,null,null,null,null,0,0]
[null,null,null,null,null,null,null,null,0,0]
[null,null,null,null,null,null,null,null,0,0]
[null,null,null,null,null,null,null,null,0,0]
[null,null,null,null,null,null,null,null,0,0]
[null,null,null,null,null,null,null,null,0,0]
[null,null,null,null,null,null,null,null,0,0]
[null,null,null,null,null,null,null,null,0,0]
[null,null,null,null,null,null,null,null,0,0]
[null,null,null,null,null,null,null,null,0,0]
[null,null,null,null,null,null,null,null,0,0]
[null,null,null,null,null,null,null,null,0,0]
[null,null,null,null,null,null,null,null,0,0]
[null,null,null,null,null,null,null,null,0,0]
[null,null,null,null,null,null,null,null,0,0]
[null,null,null,null,null,null,null,null,0,0]
[null,null,null,null,null,null,null,null,0,0]
[null,null,null,null,null,null,null,null,0,0]
[null,null,null,null,null,null,null,null,0,0]
[null,null,null,null,null,null,null,null,0,0]
[null,null,null,null,null,null,null,null,0,0]
[null,null,null,null,null,null,null,null,0,0]
[null,null,null,null,null,null,null,null,0,0]
[null,null,null,null,null,null,null,null,0,0]
[null,null,null,null,null,null,null,null,0,0]
[null,null,null,null,null,null,null,null,0,0]
[null,null,null,null,null,null,null,null,0,0]
[null,null,null,null,null,null,null,null,0,0]
[null,null,null,null,null,null,null,null,0,0]
[null,null,null,null,null,null,null,null,0,0]
[null,null,null,null,null,null,null,null,0,0]
[null,null,null,null,null,null,null,null,0,0]
[null,null,null,null,null,null,null,null,0,0]
[null,null,null,null,null,null,null,null,0,0]
[null,null,null,null,null,null,null,null,0,0]
[null,null,null,null,null,null,null,null,0,0]
[null,null,null,null,null,null,null,null,0,0]
[null,null,null,null,null,null,null,null,0,0]
[null,null,null,null,null,null,null,null,0,0]
[null,null,null,null,null,null,null,null,0,0]
[null,null,null,null,null,null,null,null,0,0]
[null,null,null,null,null,null,null,null,0,0]
[null,null,null,null,null,null,null,null,0,0]
[null,null,null,null,null,null,null,null,0,0]
[null,null,null,null,null,null,null,null,0,0]
[null,null,null,null,null,null,null,null,0,0]
[null,null,null,null,null,null,null,null,0,0]
[null,null,null,null,null,null,null,null,0,0]
[null,null,null,null,null,null,null,null,0,0]
[null,null,null,null,null,null,null,null,0,0]
[null,null,null,null,null,null,null,null,0,0]
[null,null,null,null,null,null,null,null,0,0]
[null,null,null,null,null,null,null,null,0,0]
[null,null,null,null,null,null,null,null,0,0]
[null,null,null,null,null,null,null,null,0,0]
[null,null,null,null,null,null,null,null,0,0]
[null,null,null,null,null,null,null,null,0,0]
[null,null,null,null,null,null,null,null,0,0]
[null,null,null,null,null,null,null,null,0,0]
[null,null,null,null,null,null,null,null,0,0]
[null,null,null,null,null,null,null,null,0,0]
[null,null,null,null,null,null,null,null,0,0]
[null,null,null,null,null,null,null,null,0,0]
[null,null,null,null,null,null,null,null,0,0]
[null,null,null,null,null,null,null,null,0,0]
[null,null,null,null,null,null,null,null,0,0]
[null,null,null,null,null,null,null,null,0,0]
[null,null,null,null,null,null,null,null,0,0]
[null,null,null,null,null,null,null,null,0,0]
[null,null,null,null,null,null,null,null,0,0]
[null,null,null,null,null,null,null,null,0,0]
[null,null,null,null,null,null,null,null,0,0]
[null,null,null,null,null,null,null,null,0,0]
[null,null,null,null,null,null,null,null,0,0]
[null,null,null,null,null,null,null,null,0,0]
[null,null,null,null,null,null,null,null,0,0]
[null,null,null,null,null,null,null,null,0,0]
[null,null,null,null,null,null,null,null,0,0]
[null,null,null,null,null,null,null,null,0,0]
[null,null,null,null,null,null,null,null,0,0]
[null,null,null,null,null,null,null,null,0,0]
[null,null,null,null,null,null,null,null,0,0]
[null,null,null,null,null,null,null,null,0,0]
[null,null,null,null,null,null,null,null,0,0]
[null,null,null,null,null,null,null,null,0,0]
[null,null,null,null,null,null,null,null,0,0]
[null,null,null,null,null,null,null,null,0,0]
[null,null,null,null,null,null,null,null,0,0]
[null,null,null,null,null,null,null,null,0,0]
[null,null,null,null,null,null,null,null,0,0]
[null,null,null,null,null,null,null,null,0,0]
[null,null,null,null,null,null,null,null,0,0]
[null,null,null,null,null,null,null,null,0,0]
[null,null,null,null,null,null,null,null,0,0]
[null,null,null,null,null,null,null,null,0,0]
[null,null,null,null,null,null,null,null,0,0]
[null,null,null,null,null,null,null,null,0,0]
[null,null,null,null,null,null,null,null,0,0]
[null,null,null,null,null,null,null,null,0,0]
[null,null,null,null,null,null,null,null,0,0]
[null,null,null,null,null,null,null,null,0,0]
[null,null,null,null,null,null,null,null,0,0]
[null,null,null,null,null,null,null,null,0,0]
[null,null,null,null,null,null,null,null,0,0]
[null,null,null,null,null,null,null,null,0,0]
[null,null,null,null,null,null,null,null,0,0]
[null,null,null,null,null,null,null,null,0,0]
[null,null,null,null,null,null,null,null,0,0]
[null,null,null,null,null,null,null,null,0,0]
[null,null,null,null,null,null,null,null,0,0]
[null,null,null,null,null,null,null,null,0,0]
[null,null,null,null,null,null,null,null,0,0]
[null,null,null,null,null,null,null,null,0,0]
[null,null,null,null,null,null,null,null,0,0]
[null,null,null,null,null,null,null,null,0,0]
[null,null,null,null,null,null,null,null,0,0]
[null,null,null,null,null,null,null,null,0,0]
[null,null,null,null,null,null,null,null,0,0]
[null,null,null,null,null,null,null,null,0,0]
[null,null,null,null,null,null,null,null,0,0]
[null,null,null,null,null,null,null,null,0,0]
[null,null,null,null,null,null,null,null,0,0]
[null,null,null,null,null,null,null,null,0,0]
[null,null,null,null,null,null,null,null,0,0]
[null,null,null,null,null,null,null,null,0,0]
[null,null,null,null,null,null,null,null,0,0]
[null,null,null,null,null,null,null,null,0,0]
[null,null,null,null,null,null,null,null,0,0]
[null,null,null,null,null,null,null,null,0,0]
[null,null,null,null,null,null,null,null,0,0]
[null,null,null,null,null,null,null,null,0,0]
[null,null,null,null,null,null,null,null,0,0]
[null,null,null,null,null,null,null,null,0,0]
[null,null,null,null,null,null,null,null,0,0]
[null,null,null,null,null,null,null,null,0,0]
[null,null,null,null,null,null,null,null,0,0]
[null,null,null,null,null,null,null,null,0,0]
[null,null,null,null,null,null,null,null,0,0]
[null,null,null,null,null,null,null,null,0,0]
[null,null,null,null,null,null,null,null,0,0]
[null,null,null,null,null,null,null,null,0,0]
[null,null,null,null,null,null,null,null,0,0]
[null,null,null,null,null,null,null,null,0,0]
[null,null,null,null,null,null,null,null,0,0]
[null,null,null,null,null,null,null,null,0,0]
[null,null,null,null,null,null,null,null,0,0]
[null,null,null,null,null,null,null,null,0,0]
[null,null,null,null,null,null,null,null,0,0]
[null,null,null,null,null,null,null,null,0,0]
[null,null,null,null,null,null,null,null,0,0]
[null,null,null,null,null,null,null,null,0,0]
[null,null,null,null,null,null,null,null,0,0]
[null,null,null,null,null,null,null,null,0,0]
[null,null,null,null,null,null,null,null,0,0]
[null,null,null,null,null,null,null,null,0,0]
[null,null,null,null,null,null,null,null,0,0]
[null,null,null,null,null,null,null,null,0,0]
[null,null,null,null,null,null,null,null,0,0]
[null,null,null,null,null,null,null,null,0,0]
[null,null,null,null,null,null,null,null,0,0]
[null,null,null,null,null,null,null,null,0,0]
[null,null,null,null,null,null,null,null,0,0]
[null,null,null,null,null,null,null,null,0,0]
[null,null,null,null,null,null,null,null,0,0]
[null,null,null,null,null,null,null,null,0,0]
[null,null,null,null,null,null,null,null,0,0]
[null,null,null,null,null,null,null,null,0,0]
[null,null,null,null,null,null,null,null,0,0]
[null,null,null,null,null,null,null,null,0,0]
[null,null,null,null,null,null,null,null,0,0]
[null,null,null,null,null,null,null,null,0,0]
[null,null,null,null,null,null,null,null,0,0]
[null,null,null,null,null,null,null,null,0,0]
[null,null,null,null,null,null,null,null,0,0]
[null,null,null,null,null,null,null,null,0,0]
[null,null,null,null,null,null,null,null,0,0]
[null,null,null,null,null,null,null,null,0,0]
[null,null,null,null,null,null,null,null,0,0]
[null,null,null,null,null,null,null,null,0,0]
[null,null,null,null,null,null,null,null,0,0]
[null,null,null,null,null,null,null,null,0,0]
[null,null,null,null,null,null,null,null,0,0]
[null,null,null,null,null,null,null,null,0,0]
[null,null,null,null,null,null,null,null,0,0]
[null,null,null,null,null,null,null,null,0,0]
[null,null,null,null,null,null,null,null,0,0]
[null,null,null,null,null,null,null,null,0,0]
[null,null,null,null,null,null,null,null,0,0]
[null,null,null,null,null,null,null,null,0,0]
[null,null,null,null,null,null,null,null,0,0]
[null,null,null,null,null,null,null,null,0,0]
[null,null,null,null,null,null,null,null,0,0]
[null,null,null,null,null,null,null,null,0,0]
[null,null,null,null,null,null,null,null,0,0]
[null,null,null,null,null,null,null,null,0,0]
[null,null,null,null,null,null,null,null,0,0]
[null,null,null,null,null,null,null,null,0,0]
[null,null,null,null,null,null,null,null,0,0]
[null,null,null,null,null,null,null,null,0,0]
[null,null,null,null,null,null,null,null,0,0]
[null,null,null,null,null,null,null,null,0,0]
[null,null,null,null,null,null,null,null,0,0]
[null,null,null,null,null,null,null,null,0,0]
[null,null,null,null,null,null,null,null,0,0]
[null,null,null,null,null,null,null,null,0,0]
[null,null,null,null,null,null,null,null,0,0]
[null,null,null,null,null,null,null,null,0,0]
[null,null,null,null,null,null,null,null,0,0]
[null,null,null,null,null,null,null,null,0,0]
[null,null,null,null,null,null,null,null,0,0]
[null,null,null,null,null,null,null,null,0,0]
[null,null,null,null,null,null,null,null,0,0]
[null,null,null,null,null,null,null,null,0,0]
[null,null,null,null,null,null,null,null,0,0]
[null,null,null,null,null,null,null,null,0,0]
[null,null,null,null,null,null,null,null,0,0]
[null,null,null,null,null,null,null,null,0,0]
[null,null,null,null,null,null,null,null,0,0]
[null,null,null,null,null,null,null,null,0,0]
[null,null,null,null,null,null,null,null,0,0]
[null,null,null,null,null,null,null,null,0,0]
[null,null,null,null,null,null,null,null,0,0]
[null,null,null,null,null,null,null,null,0,0]
[null,null,null,null,null,null,null,null,0,0]
[null,null,null,null,null,null,null,null,0,0]
[null,null,null,null,null,null,null,null,0,0]
[null,null,null,null,null,null,null,null,0,0]
[null,null,null,null,null,null,null,null,0,0]
[null,null,null,null,null,null,null,null,0,0]
[null,null,null,null,null,null,null,null,0,0]
[null,null,null,null,null,null,null,null,0,0]
[null,null,null,null,null,null,null,null,0,0]
[null,null,null,null,null,null,null,null,0,0]
[null,null,null,null,null,null,null,null,0,0]
[null,null,null,null,null,null,null,null,0,0]
[null,null,null,null,null,null,null,null,0,0]
[null,null,null,null,null,null,null,null,0,0]
[null,null,null,null,null,null,null,null,0,0]
[null,null,null,null,null,null,null,null,0,0]
[null,null,null,null,null,null,null,null,0,0]
[null,null,null,null,null,null,null,null,0,0]
[null,null,null,null,null,null,null,null,0,0]
[null,null,null,null,null,null,null,null,0,0]
[null,null,null,null,null,null,null,null,0,0]
[null,null,null,null,null,null,null,null,0,0]
[null,null,null,null,null,null,null,null,0,0]
[null,null,null,null,null,null,null,null,0,0]
[null,null,null,null,null,null,null,null,0,0]
[null,null,null,null,null,null,null,null,0,0]
[null,null,null,null,null,null,null,null,0,0]
[null,null,null,null,null,null,null,null,0,0]
[null,null,null,null,null,null,null,null,0,0]
[null,null,null,null,null,null,null,null,0,0]
[null,null,null,null,null,null,null,null,0,0]
[null,null,null,null,null,null,null,null,0,0]
[null,null,null,null,null,null,null,null,0,0]
[null,null,null,null,null,null,null,null,0,0]
[null,null,null,null,null,null,null,null,0,0]
[null,null,null,null,null,null,null,null,0,0]
[null,null,null,null,null,null,null,null,0,0]
[null,null,null,null,null,null,null,null,0,0]
[null,null,null,null,null,null,null,null,0,0]
[null,null,null,null,null,null,null,null,0,0]
[null,null,null,null,null,null,null,null,0,0]
[null,null,null,null,null,null,null,null,0,0]
[null,null,null,null,null,null,null,null,0,0]
[null,null,null,null,null,null,null,null,0,0]
[null,null,null,null,null,null,null,null,0,0]
[null,null,null,null,null,null,null,null,0,0]
[null,null,null,null,null,null,null,null,0,0]
[null,null,null,null,null,null,null,null,0,0]
[null,null,null,null,null,null,null,null,0,0]
[null,null,null,null,null,null,null,null,0,0]
[null,null,null,null,null,null,null,null,0,0]
[null,null,null,null,null,null,null,null,0,0]
[null,null,null,null,null,null,null,null,0,0]
[null,null,null,null,null,null,null,null,0,0]
[null,null,null,null,null,null,null,null,0,0]
[null,null,null,null,null,null,null,null,0,0]
[null,null,null,null,null,null,null,null,0,0]
[null,null,null,null,null,null,null,null,0,0]
[null,null,null,null,null,null,null,null,0,0]
[null,null,null,null,null,null,null,null,0,0]
[null,null,null,null,null,null,null,null,0,0]
[null,null,null,null,null,null,null,null,0,0]
[null,null,null,null,null,null,null,null,0,0]
[null,null,null,null,null,null,null,null,0,0]
[null,null,null,null,null,null,null,null,0,0]
[null,null,null,null,null,null,null,null,0,0]
[null,null,null,null,null,null,null,null,0,0]
[null,null,null,null,null,null,null,null,0,0]
[null,null,null,null,null,null,null,null,0,0]
[null,null,null,null,null,null,null,null,0,0]
[null,null,null,null,null,null,null,null,0,0]
[null,null,null,null,null,null,null,null,0,0]
[null,null,null,null,null,null,null,null,0,0]
[null,null,null,null,null,null,null,null,0,0]
[null,null,null,null,null,null,null,null,0,0]
[null,null,null,null,null,null,null,null,0,0]
[null,null,null,null,null,null,null,null,0,0]
[null,null,null,null,null,null,null,null,0,0]
[null,null,null,null,null,null,null,null,0,0]
[null,null,null,null,null,null,null,null,0,0]
[null,null,null,null,null,null,null,null,0,0]
[null,null,null,null,null,null,null,null,0,0]
[null,null,null,null,null,null,null,null,0,0]
[null,null,null,null,null,null,null,null,0,0]
[null,null,null,null,null,null,null,null,0,0]
[null,null,null,null,null,null,null,null,0,0]
[null,null,null,null,null,null,null,null,0,0]
[null,null,null,null,null,null,null,null,0,0]
[null,null,null,null,null,null,null,null,0,0]
[null,null,null,null,null,null,null,null,0,0]
[null,null,null,null,null,null,null,null,0,0]
[null,null,null,null,null,null,null,null,0,0]
[null,null,null,null,null,null,null,null,0,0]
[null,null,null,null,null,null,null,null,0,0]
[null,null,null,null,null,null,null,null,0,0]
[null,null,null,null,null,null,null,null,0,0]
[null,null,null,null,null,null,null,null,0,0]
[null,null,null,null,null,null,null,null,0,0]
[null,null,null,null,null,null,null,null,0,0]
[null,null,null,null,null,null,null,null,0,0]
[null,null,null,null,null,null,null,null,0,0]
[null,null,null,null,null,null,null,null,0,0]
[null,null,null,null,null,null,null,null,0,0]
[null,null,null,null,null,null,null,null,0,0]
[null,null,null,null,null,null,null,null,0,0]
[null,null,null,null,null,null,null,null,0,0]
[null,null,null,null,null,null,null,null,0,0]
[null,null,null,null,null,null,null,null,0,0]
[null,null,null,null,null,null,null,null,0,0]
[null,null,null,null,null,null,null,null,0,0]
[null,null,null,null,null,null,null,null,0,0]
[null,null,null,null,null,null,null,null,0,0]
[null,null,null,null,null,null,null,null,0,0]
[null,null,null,null,null,null,null,null,0,0]
[null,null,null,null,null,null,null,null,0,0]
[null,null,null,null,null,null,null,null,0,0]
[null,null,null,null,null,null,null,null,0,0]
[null,null,null,null,null,null,null,null,0,0]
[null,null,null,null,null,null,null,null,0,0]
[null,null,null,null,null,null,null,null,0,0]
[null,null,null,null,null,null,null,null,0,0]
[null,null,null,null,null,null,null,null,0,0]
[null,null,null,null,null,null,null,null,0,0]
[null,null,null,null,null,null,null,null,0,0]
[null,null,null,null,null,null,null,null,0,0]
[null,null,null,null,null,null,null,null,0,0]
[null,null,null,null,null,null,null,null,0,0]
[null,null,null,null,null,null,null,null,0,0]
[null,null,null,null,null,null,null,null,0,0]
[null,null,null,null,null,null,null,null,0,0]
[null,null,null,null,null,null,null,null,0,0]
[null,null,null,null,null,null,null,null,0,0]
[null,null,null,null,null,null,null,null,0,0]
[null,null,null,null,null,null,null,null,0,0]
[null,null,null,null,null,null,null,null,0,0]
[null,null,null,null,null,null,null,null,0,0]
[null,null,null,null,null,null,null,null,0,0]
[null,null,null,null,null,null,null,null,0,0]
[null,null,null,null,null,null,null,null,0,0]
[null,null,null,null,null,null,null,null,0,0]
[null,null,null,null,null,null,null,null,0,0]
[null,null,null,null,null,null,null,null,0,0]
[null,null,null,null,null,null,null,null,0,0]
[null,null,null,null,null,null,null,null,0,0]
[null,null,null,null,null,null,null,null,0,0]
[null,null,null,null,null,null,null,null,0,0]
[null,null,null,null,null,null,null,null,0,0]
[null,null,null,null,null,null,null,null,0,0]
[null,null,null,null,null,null,null,null,0,0]
[null,null,null,null,null,null,null,null,0,0]
[null,null,null,null,null,null,null,null,0,0]
[null,null,null,null,null,null,null,null,0,0]
[null,null,null,null,null,null,null,null,0,0]
[null,null,null,null,null,null,null,null,0,0]
[null,null,null,null,null,null,null,null,0,0]
[null,null,null,null,null,null,null,null,0,0]
[null,null,null,null,null,null,null,null,0,0]
[null,null,null,null,null,null,null,null,0,0]
[null,null,null,null,null,null,null,null,0,0]
[null,null,null,null,null,null,null,null,0,0]
[null,null,null,null,null,null,null,null,0,0]
[null,null,null,null,null,null,null,null,0,0]
[null,null,null,null,null,null,null,null,0,0]
[null,null,null,null,null,null,null,null,0,0]
[null,null,null,null,null,null,null,null,0,0]
[null,null,null,null,null,null,null,null,0,0]
[null,null,null,null,null,null,null,null,0,0]
[null,null,null,null,null,null,null,null,0,0]
[null,null,null,null,null,null,null,null,0,0]
[null,null,null,null,null,null,null,null,0,0]
[null,null,null,null,null,null,null,null,0,0]
[null,null,null,null,null,null,null,null,0,0]
[null,null,null,null,null,null,null,null,0,0]
[null,null,null,null,null,null,null,null,0,0]
[null,null,null,null,null,null,null,null,0,0]
[null,null,null,null,null,null,null,null,0,0]
[null,null,null,null,null,null,null,null,0,0]
[null,null,null,null,null,null,null,null,0,0]
[null,null,null,null,null,null,null,null,0,0]
[null,null,null,null,null,null,null,null,0,0]
[null,null,null,null,null,null,null,null,0,0]
[null,null,null,null,null,null,null,null,0,0]
[null,null,null,null,null,null,null,null,0,0]
[null,null,null,null,null,null,null,null,0,0]
[null,null,null,null,null,null,null,null,0,0]
[null,null,null,null,null,null,null,null,0,0]
[null,null,null,null,null,null,null,null,0,0]
[null,null,null,null,null,null,null,null,0,0]
[null,null,null,null,null,null,null,null,0,0]
[null,null,null,null,null,null,null,null,0,0]
[null,null,null,null,null,null,null,null,0,0]
[null,null,null,null,null,null,null,null,0,0]
[null,null,null,null,null,null,null,null,0,0]
[null,null,null,null,null,null,null,null,0,0]
[null,null,null,null,null,null,null,null,0,0]
[null,null,null,null,null,null,null,null,0,0]
[null,null,null,null,null,null,null,null,0,0]
[null,null,null,null,null,null,null,null,0,0]
[null,null,null,null,null,null,null,null,0,0]
[null,null,null,null,null,null,null,null,0,0]
[null,null,null,null,null,null,null,null,0,0]
[null,null,null,null,null,null,null,null,0,0]
[null,null,null,null,null,null,null,null,0,0]
[null,null,null,null,null,null,null,null,0,0]
[null,null,null,null,null,null,null,null,0,0]
[null,null,null,null,null,null,null,null,0,0]
[null,null,null,null,null,null,null,null,0,0]
[null,null,null,null,null,null,null,null,0,0]
[null,null,null,null,null,null,null,null,0,0]
[null,null,null,null,null,null,null,null,0,0]
[null,null,null,null,null,null,null,null,0,0]
[null,null,null,null,null,null,null,null,0,0]
[null,null,null,null,null,null,null,null,0,0]
[null,null,null,null,null,null,null,null,0,0]
[null,null,null,null,null,null,null,null,0,0]
[null,null,null,null,null,null,null,null,0,0]
[null,null,null,null,null,null,null,null,0,0]
[null,null,null,null,null,null,null,null,0,0]
[null,null,null,null,null,null,null,null,0,0]
[null,null,null,null,null,null,null,null,0,0]
[null,null,null,null,null,null,null,null,0,0]
[null,null,null,null,null,null,null,null,0,0]
[null,null,null,null,null,null,null,null,0,0]
[null,null,null,null,null,null,null,null,0,0]
[null,null,null,null,null,null,null,null,0,0]
[null,null,null,null,null,null,null,null,0,0]
[null,null,null,null,null,null,null,null,0,0]
[null,null,null,null,null,null,null,null,0,0]
[null,null,null,null,null,null,null,null,0,0]
[null,null,null,null,null,null,null,null,0,0]
[null,null,null,null,null,null,null,null,0,0]
[null,null,null,null,null,null,null,null,0,0]
[null,null,null,null,null,null,null,null,0,0]
[null,null,null,null,null,null,null,null,0,0]
[null,null,null,null,null,null,null,null,0,0]
[null,null,null,null,null,null,null,null,0,0]
[null,null,null,null,null,null,null,null,0,0]
[null,null,null,null,null,null,null,null,0,0]
[null,null,null,null,null,null,null,null,0,0]
[null,null,null,null,null,null,null,null,0,0]
[null,null,null,null,null,null,null,null,0,0]
[null,null,null,null,null,null,null,null,0,0]
[null,null,null,null,null,null,null,null,0,0]
[null,null,null,null,null,null,null,null,0,0]
[null,null,null,null,null,null,null,null,0,0]
[null,null,null,null,null,null,null,null,0,0]
[null,null,null,null,null,null,null,null,0,0]
[null,null,null,null,null,null,null,null,0,0]
[null,null,null,null,null,null,null,null,0,0]
[null,null,null,null,null,null,null,null,0,0]
[null,null,null,null,null,null,null,null,0,0]
[null,null,null,null,null,null,null,null,0,0]
[null,null,null,null,null,null,null,null,0,0]
[null,null,null,null,null,null,null,null,0,0]
[null,null,null,null,null,null,null,null,0,0]
[null,null,null,null,null,null,null,null,0,0]
[null,null,null,null,null,null,null,null,0,0]
[null,null,null,null,null,null,null,null,0,0]
[null,null,null,null,null,null,null,null,0,0]
[null,null,null,null,null,null,null,null,0,0]
[null,null,null,null,null,null,null,null,0,0]
[null,null,null,null,null,null,null,null,0,0]
[null,null,null,null,null,null,null,null,0,0]
[null,null,null,null,null,null,null,null,0,0]
[null,null,null,null,null,null,null,null,0,0]
[null,null,null,null,null,null,null,null,0,0]
[null,null,null,null,null,null,null,null,0,0]
[null,null,null,null,null,null,null,null,0,0]
[null,null,null,null,null,null,null,null,0,0]
[null,null,null,null,null,null,null,null,0,0]
[null,null,null,null,null,null,null,null,0,0]
[null,null,null,null,null,null,null,null,0,0]
[null,null,null,null,null,null,null,null,0,0]
[null,null,null,null,null,null,null,null,0,0]
[null,null,null,null,null,null,null,null,0,0]
[null,null,null,null,null,null,null,null,0,0]
[null,null,null,null,null,null,null,null,0,0]
[null,null,null,null,null,null,null,null,0,0]
[null,null,null,null,null,null,null,null,0,0]
[null,null,null,null,null,null,null,null,0,0]
[null,null,null,null,null,null,null,null,0,0]
[null,null,null,null,null,null,null,null,0,0]
[null,null,null,null,null,null,null,null,0,0]
[null,null,null,null,null,null,null,null,0,0]
[null,null,null,null,null,null,null,null,0,0]
[null,null,null,null,null,null,null,null,0,0]
[null,null,null,null,null,null,null,null,0,0]
[null,null,null,null,null,null,null,null,0,0]
[null,null,null,null,null,null,null,null,0,0]
[null,null,null,null,null,null,null,null,0,0]
[null,null,null,null,null,null,null,null,0,0]
[null,null,null,null,null,null,null,null,{"$f":"G5827-H5827","v":0},{"$f":"IF(E6242=$M$6,D6242*0,IF(E6242=$M$7,D6242*70,IF(E6242=$M$8,D6242*100,IF(E6242=$M$9,D6242*140,0))))","v":0}]
[null,null,null,null,null,null,null,null,0,0]
[null,null,null,null,null,null,null,null,0,0]
[null,null,null,null,null,null,null,null,0,0]
[null,null,null,null,null,null,null,null,0,0]
[null,null,null,null,null,null,null,null,0,0]
[null,null,null,null,null,null,null,null,0,0]
[null,null,null,null,null,null,null,null,0,0]
[null,null,null,null,null,null,null,null,0,0]
[null,null,null,null,null,null,null,null,0,0]
[null,null,null,null,null,null,null,null,0,0]
[null,null,null,null,null,null,null,null,0,0]
[null,null,null,null,null,null,null,null,0,0]
[null,null,null,null,null,null,null,null,0,0]
[null,null,null,null,null,null,null,null,0,0]
[null,null,null,null,null,null,null,null,0,0]
[null,null,null,null,null,null,null,null,0,0]
[null,null,null,null,null,null,null,null,0,0]
[null,null,null,null,null,null,null,null,0,0]
[null,null,null,null,null,null,null,null,0,0]
[null,null,null,null,null,null,null,null,0,0]
[null,null,null,null,null,null,null,null,0,0]
[null,null,null,null,null,null,null,null,0,0]
[null,null,null,null,null,null,null,null,0,0]
[null,null,null,null,null,null,null,null,0,0]
[null,null,null,null,null,null,null,null,0,0]
[null,null,null,null,null,null,null,null,0,0]
[null,null,null,null,null,null,null,null,0,0]
[null,null,null,null,null,null,null,null,0,0]
[null,null,null,null,null,null,null,null,0,0]
[null,null,null,null,null,null,null,null,0,0]
[null,null,null,null,null,null,null,null,0,0]
[null,null,null,null,null,null,null,null,0,0]
[null,null,null,null,null,null,null,null,0,0]
[null,null,null,null,null,null,null,null,0,0]
[null,null,null,null,null,null,null,null,0,0]
[null,null,null,null,null,null,null,null,{"$f":"G6083-H6083","v":0},{"$f":"IF(E6498=$M$6,D6498*0,IF(E6498=$M$7,D6498*70,IF(E6498=$M$8,D6498*100,IF(E6498=$M$9,D6498*140,0))))","v":0}]
[null,null,null,null,null,null,null,null,0,0]
[null,null,null,null,null,null,null,null,0,0]
[null,null,null,null,null,null,null,null,0,0]
[null,null,null,null,null,null,null,null,0,0]
[null,null,null,null,null,null,null,null,0,0]
[null,null,null,null,null,null,null,null,0,0]
[null,null,null,null,null,null,null,null,0,0]
[null,null,null,null,null,null,null,null,0,0]
[null,null,null,null,null,null,null,null,{"$f":"G6147-H6147","v":0},{"$f":"IF(E6562=$M$6,D6562*0,IF(E6562=$M$7,D6562*70,IF(E6562=$M$8,D6562*100,IF(E6562=$M$9,D6562*140,0))))","v":0}]
[null,null,null,null,null,null,null,null,0,0]
[null,null,null,null,null,null,null,null,0,0]
[null,null,null,null,null,null,null,null,0,0]
[null,null,null,null,null,null,null,null,0,0]
[null,null,null,null,null,null,null,null,0,0]
[null,null,null,null,null,null,null,null,0,0]
[null,null,null,null,null,null,null,null,0,0]
[null,null,null,null,null,null,null,null,0,0]
[null,null,null,null,null,null,null,null,0,0]
[null,null,null,null,null,null,null,null,0,0]
[null,null,null,null,null,null,null,null,0,0]
[null,null,null,null,null,null,null,null,0,0]
[null,null,null,null,null,null,null,null,0,0]
[null,null,null,null,null,null,null,null,0,0]
[null,null,null,null,null,null,null,null,0,0]
[null,null,null,null,null,null,null,null,0,0]
[null,null,null,null,null,null,null,null,0,0]
[null,null,null,null,null,null,null,null,0,0]
[null,null,null,null,null,null,null,null,0,0]
[null,null,null,null,null,null,null,null,0,0]
[null,null,null,null,null,null,null,null,0,0]
[null,null,null,null,null,null,null,null,0,0]
[null,null,null,null,null,null,null,null,0,0]
[null,null,null,null,null,null,null,null,0,0]
[null,null,null,null,null,null,null,null,0,0]
[null,null,null,null,null,null,null,null,0,0]
[null,null,null,null,null,null,null,null,0,0]
[null,null,null,null,null,null,null,null,0,0]
[null,null,null,null,null,null,null,null,0,0]
[null,null,null,null,null,null,null,null,0,0]
[null,null,null,null,null,null,null,null,0,0]
[null,null,null,null,null,null,null,null,0,0]
[null,null,null,null,null,null,null,null,0,0]
[null,null,null,null,null,null,null,null,0,0]
[null,null,null,null,null,null,null,null,0,0]
[null,null,null,null,null,null,null,null,{"$f":"G6403-H6403","v":0},{"$f":"IF(E6818=$M$6,D6818*0,IF(E6818=$M$7,D6818*70,IF(E6818=$M$8,D6818*100,IF(E6818=$M$9,D6818*140,0))))","v":0}]
[null,null,null,null,null,null,null,null,0,0]
[null,null,null,null,null,null,null,null,0,0]
[null,null,null,null,null,null,null,null,0,0]
[null,null,null,null,null,null,null,null,0,0]
[null,null,null,null,null,null,null,null,0,0]
[null,null,null,null,null,null,null,null,0,0]
[null,null,null,null,null,null,null,null,0,0]
[null,null,null,null,null,null,null,null,0,0]
[null,null,null,null,null,null,null,null,0,0]
[null,null,null,null,null,null,null,null,0,0]
[null,null,null,null,null,null,null,null,0,0]
[null,null,null,null,null,null,null,null,0,0]
[null,null,null,null,null,null,null,null,0,0]
[null,null,null,null,null,null,null,null,0,0]
[null,null,null,null,null,null,null,null,0,0]
[null,null,null,null,null,null,null,null,0,0]
[null,null,null,null,null,null,null,null,0,0]
[null,null,null,null,null,null,null,null,0,0]
[null,null,null,null,null,null,null,null,0,0]
[null,null,null,null,null,null,null,null,0,0]
[null,null,null,null,null,null,null,null,0,0]
[null,null,null,null,null,null,null,null,0,0]
[null,null,null,null,null,null,null,null,0,0]
[null,null,null,null,null,null,null,null,0,0]
[null,null,null,null,null,null,null,null,0,0]
[null,null,null,null,null,null,null,null,0,0]
[null,null,null,null,null,null,null,null,0,0]
[null,null,null,null,null,null,null,null,0,0]
[null,null,null,null,null,null,null,null,0,0]
[null,null,null,null,null,null,null,null,0,0]
[null,null,null,null,null,null,null,null,0,0]
[null,null,null,null,null,null,null,null,0,0]
[null,null,null,null,null,null,null,null,0,0]
[null,null,null,null,null,null,null,null,0,0]
[null,null,null,null,null,null,null,null,0,0]
[null,null,null,null,null,null,null,null,0,0]
[null,null,null,null,null,null,null,null,0,0]
[null,null,null,null,null,null,null,null,0,0]
[null,null,null,null,null,null,null,null,0,0]
[null,null,null,null,null,null,null,null,0,0]
[null,null,null,null,null,null,null,null,0,0]
[null,null,null,null,null,null,null,null,0,0]
[null,null,null,null,null,null,null,null,0,0]
[null,null,null,null,null,null,null,null,0,0]
[null,null,null,null,null,null,null,null,0,0]
[null,null,null,null,null,null,null,null,0,0]
[null,null,null,null,null,null,null,null,0,0]
[null,null,null,null,null,null,null,null,0,0]
[null,null,null,null,null,null,null,null,0,0]
[null,null,null,null,null,null,null,null,0,0]
[null,null,null,null,null,null,null,null,0,0]
[null,null,null,null,null,null,null,null,0,0]
[null,null,null,null,null,null,null,null,0,0]
[null,null,null,null,null,null,null,null,0,0]
[null,null,null,null,null,null,null,null,0,0]
[null,null,null,null,null,null,null,null,0,0]
[null,null,null,null,null,null,null,null,0,0]
[null,null,null,null,null,null,null,null,0,0]
[null,null,null,null,null,null,null,null,0,0]
[null,null,null,null,null,null,null,null,0,0]
[null,null,null,null,null,null,null,null,0,0]
[null,null,null,null,null,null,null,null,0,0]
[null,null,null,null,null,null,null,null,0,0]
[null,null,null,null,null,null,null,null,0,0]
[null,null,null,null,null,null,null,null,0,0]
[null,null,null,null,null,null,null,null,0,0]
[null,null,null,null,null,null,null,null,0,0]
[null,null,null,null,null,null,null,null,0,0]
[null,null,null,null,null,null,null,null,0,0]
[null,null,null,null,null,null,null,null,0,0]
[null,null,null,null,null,null,null,null,0,0]
[null,null,null,null,null,null,null,null,0,0]
[null,null,null,null,null,null,null,null,0,0]
[null,null,null,null,null,null,null,null,0,0]
[null,null,null,null,null,null,null,null,0,0]
[null,null,null,null,null,null,null,null,0,0]
[null,null,null,null,null,null,null,null,0,0]
[null,null,null,null,null,null,null,null,0,0]
[null,null,null,null,null,null,null,null,0,0]
[null,null,null,null,null,null,null,null,0,0]
[null,null,null,null,null,null,null,null,{"$f":"G6979-H6979","v":0},{"$f":"IF(E7394=$M$6,D7394*0,IF(E7394=$M$7,D7394*70,IF(E7394=$M$8,D7394*100,IF(E7394=$M$9,D7394*140,0))))","v":0}]
[null,null,null,null,null,null,null,null,0,0]
[null,null,null,null,null,null,null,null,0,0]
[null,null,null,null,null,null,null,null,0,0]
[null,null,null,null,null,null,null,null,0,0]
[null,null,null,null,null,null,null,null,0,0]
[null,null,null,null,null,null,null,null,0,0]
[null,null,null,null,null,null,null,null,0,0]
[null,null,null,null,null,null,null,null,0,0]
[null,null,null,null,null,null,null,null,0,0]
[null,null,null,null,null,null,null,null,0,0]
[null,null,null,null,null,null,null,null,0,0]
[null,null,null,null,null,null,null,null,0,0]
[null,null,null,null,null,null,null,null,0,0]
[null,null,null,null,null,null,null,null,0,0]
[null,null,null,null,null,null,null,null,0,0]
[null,null,null,null,null,null,null,null,0,0]
[null,null,null,null,null,null,null,null,0,0]
[null,null,null,null,null,null,null,null,0,0]
[null,null,null,null,null,null,null,null,0,0]
[null,null,null,null,null,null,null,null,0,0]
[null,null,null,null,null,null,null,null,0,0]
[null,null,null,null,null,null,null,null,0,0]
[null,null,null,null,null,null,null,null,0,0]
[null,null,null,null,null,null,null,null,0,0]
[null,null,null,null,null,null,null,null,0,0]
[null,null,null,null,null,null,null,null,0,0]
[null,null,null,null,null,null,null,null,0,0]
[null,null,null,null,null,null,null,null,0,0]
[null,null,null,null,null,null,null,null,0,0]
[null,null,null,null,null,null,null,null,0,0]
[null,null,null,null,null,null,null,null,0,0]
[null,null,null,null,null,null,null,null,0,0]
[null,null,null,null,null,null,null,null,0,0]
[null,null,null,null,null,null,null,null,0,0]
[null,null,null,null,null,null,null,null,0,0]
[null,null,null,null,null,null,null,null,0,0]
[null,null,null,null,null,null,null,null,0,0]
[null,null,null,null,null,null,null,null,0,0]
[null,null,null,null,null,null,null,null,0,0]
[null,null,null,null,null,null,null,null,0,0]
[null,null,null,null,null,null,null,null,0,0]
[null,null,null,null,null,null,null,null,0,0]
[null,null,null,null,null,null,null,null,0,0]
[null,null,null,null,null,null,null,null,0,0]
[null,null,null,null,null,null,null,null,0,0]
[null,null,null,null,null,null,null,null,0,0]
[null,null,null,null,null,null,null,null,0,0]
[null,null,null,null,null,null,null,null,0,0]
[null,null,null,null,null,null,null,null,0,0]
[null,null,null,null,null,null,null,null,0,0]
[null,null,null,null,null,null,null,null,0,0]
[null,null,null,null,null,null,null,null,0,0]
[null,null,null,null,null,null,null,null,0,0]
[null,null,null,null,null,null,null,null,0,0]
[null,null,null,null,null,null,null,null,0,0]
[null,null,null,null,null,null,null,null,0,0]
[null,null,null,null,null,null,null,null,0,0]
[null,null,null,null,null,null,null,null,0,0]
[null,null,null,null,null,null,null,null,0,0]
[null,null,null,null,null,null,null,null,0,0]
[null,null,null,null,null,null,null,null,0,0]
[null,null,null,null,null,null,null,null,0,0]
[null,null,null,null,null,null,null,null,0,0]
[null,null,null,null,null,null,null,null,0,0]
[null,null,null,null,null,null,null,null,0,0]
[null,null,null,null,null,null,null,null,0,0]
[null,null,null,null,null,null,null,null,0,0]
[null,null,null,null,null,null,null,null,0,0]
[null,null,null,null,null,null,null,null,0,0]
[null,null,null,null,null,null,null,null,0,0]
[null,null,null,null,null,null,null,null,0,0]
[null,null,null,null,null,null,null,null,0,0]
[null,null,null,null,null,null,null,null,0,0]
[null,null,null,null,null,null,null,null,0,0]
[null,null,null,null,null,null,null,null,0,0]
[null,null,null,null,null,null,null,null,0,0]
[null,null,null,null,null,null,null,null,0,0]
[null,null,null,null,null,null,null,null,0,0]
[null,null,null,null,null,null,null,null,0,0]
[null,null,null,null,null,null,null,null,0,0]
[null,null,null,null,null,null,null,null,0,0]
[null,null,null,null,null,null,null,null,0,0]
[null,null,null,null,null,null,null,null,0,0]
[null,null,null,null,null,null,null,null,0,0]
[null,null,null,null,null,null,null,null,0,0]
[null,null,null,null,null,null,null,null,0,0]
[null,null,null,null,null,null,null,null,0,0]
[null,null,null,null,null,null,null,null,0,0]
[null,null,null,null,null,null,null,null,0,0]
[null,null,null,null,null,null,null,null,0,0]
[null,null,null,null,null,null,null,null,{"$f":"G7619-H7619","v":0},{"$f":"IF(E8034=$M$6,D8034*0,IF(E8034=$M$7,D8034*70,IF(E8034=$M$8,D8034*100,IF(E8034=$M$9,D8034*140,0))))","v":0}]
[null,null,null,null,null,null,null,null,0,0]
[null,null,null,null,null,null,null,null,0,0]
[null,null,null,null,null,null,null,null,0,0]
[null,null,null,null,null,null,null,null,0,0]
[null,null,null,null,null,null,null,null,0,0]
[null,null,null,null,null,null,null,null,0,0]
[null,null,null,null,null,null,null,null,0,0]
[null,null,null,null,null,null,null,null,0,0]
[null,null,null,null,null,null,null,null,0,0]
[null,null,null,null,null,null,null,null,0,0]
[null,null,null,null,null,null,null,null,0,0]
[null,null,null,null,null,null,null,null,0,0]
[null,null,null,null,null,null,null,null,0,0]
[null,null,null,null,null,null,null,null,0,0]
[null,null,null,null,null,null,null,null,0,0]
[null,null,null,null,null,null,null,null,0,0]
[null,null,null,null,null,null,null,null,0,0]
[null,null,null,null,null,null,null,null,0,0]
[null,null,null,null,null,null,null,null,0,0]
[null,null,null,null,null,null,null,null,0,0]
[null,null,null,null,null,null,null,null,0,0]
[null,null,null,null,null,null,null,null,0,0]
[null,null,null,null,null,null,null,null,0,0]
[null,null,null,null,null,null,null,null,0,0]
[null,null,null,null,null,null,null,null,0,0]
[null,null,null,null,null,null,null,null,0,0]
[null,null,null,null,null,null,null,null,0,0]
[null,null,null,null,null,null,null,null,0,0]
[null,null,null,null,null,null,null,null,0,0]
[null,null,null,null,null,null,null,null,0,0]
[null,null,null,null,null,null,null,null,0,0]
[null,null,null,null,null,null,null,null,0,0]
[null,null,null,null,null,null,null,null,0,0]
[null,null,null,null,null,null,null,null,0,0]
[null,null,null,null,null,null,null,null,0,0]
[null,null,null,null,null,null,null,null,{"$f":"G7875-H7875","v":0},{"$f":"IF(E8290=$M$6,D8290*0,IF(E8290=$M$7,D8290*70,IF(E8290=$M$8,D8290*100,IF(E8290=$M$9,D8290*140,0))))","v":0}]
[null,null,null,null,null,null,null,null,0,0]
[null,null,null,null,null,null,null,null,0,0]
[null,null,null,null,null,null,null,null,0,0]
[null,null,null,null,null,null,null,null,0,0]
[null,null,null,null,null,null,null,null,0,0]
[null,null,null,null,null,null,null,null,0,0]
[null,null,null,null,null,null,null,null,0,0]
[null,null,null,null,null,null,null,null,0,0]
[null,null,null,null,null,null,null,null,0,0]
[null,null,null,null,null,null,null,null,0,0]
[null,null,null,null,null,null,null,null,0,0]
[null,null,null,null,null,null,null,null,0,0]
[null,null,null,null,null,null,null,null,0,0]
[null,null,null,null,null,null,null,null,0,0]
[null,null,null,null,null,null,null,null,0,0]
[null,null,null,null,null,null,null,null,0,0]
[null,null,null,null,null,null,null,null,0,0]
[null,null,null,null,null,null,null,null,0,0]
[null,null,null,null,null,null,null,null,0,0]
[null,null,null,null,null,null,null,null,0,0]
[null,null,null,null,null,null,null,null,0,0]
[null,null,null,null,null,null,null,null,0,0]
[null,null,null,null,null,null,null,null,0,0]
[null,null,null,null,null,null,null,null,0,0]
[null,null,null,null,null,null,null,null,0,0]
[null,null,null,null,null,null,null,null,0,0]
[null,null,null,null,null,null,null,null,0,0]
[null,null,null,null,null,null,null,null,0,0]
[null,null,null,null,null,null,null,null,0,0]
[null,null,null,null,null,null,null,null,0,0]
[null,null,null,null,null,null,null,null,0,0]
[null,null,null,null,null,null,null,null,0,0]
[null,null,null,null,null,null,null,null,0,0]
[null,null,null,null,null,null,null,null,0,0]
[null,null,null,null,null,null,null,null,0,0]
[null,null,null,null,null,null,null,null,{"$f":"G8131-H8131","v":0},{"$f":"IF(E8546=$M$6,D8546*0,IF(E8546=$M$7,D8546*70,IF(E8546=$M$8,D8546*100,IF(E8546=$M$9,D8546*140,0))))","v":0}]
[null,null,null,null,null,null,null,null,0,0]
[null,null,null,null,null,null,null,null,0,0]
[null,null,null,null,null,null,null,null,0,0]
[null,null,null,null,null,null,null,null,0,0]
[null,null,null,null,null,null,null,null,0,0]
[null,null,null,null,null,null,null,null,0,0]
[null,null,null,null,null,null,null,null,0,0]
[null,null,null,null,null,null,null,null,0,0]
[null,null,null,null,null,null,null,null,{"$f":"G8195-H8195","v":0},{"$f":"IF(E8610=$M$6,D8610*0,IF(E8610=$M$7,D8610*70,IF(E8610=$M$8,D8610*100,IF(E8610=$M$9,D8610*140,0))))","v":0}]
[null,null,null,null,null,null,null,null,0,0]
[null,null,null,null,null,null,null,null,0,0]
[null,null,null,null,null,null,null,null,0,0]
[null,null,null,null,null,null,null,null,0,0]
[null,null,null,null,null,null,null,null,0,0]
[null,null,null,null,null,null,null,null,0,0]
[null,null,null,null,null,null,null,null,0,0]
[null,null,null,null,null,null,null,null,0,0]
[null,null,null,null,null,null,null,null,0,0]
[null,null,null,null,null,null,null,null,0,0]
[null,null,null,null,null,null,null,null,0,0]
[null,null,null,null,null,null,null,null,0,0]
[null,null,null,null,null,null,null,null,0,0]
[null,null,null,null,null,null,null,null,0,0]
[null,null,null,null,null,null,null,null,0,0]
[null,null,null,null,null,null,null,null,0,0]
[null,null,null,null,null,null,null,null,0,0]
[null,null,null,null,null,null,null,null,0,0]
[null,null,null,null,null,null,null,null,0,0]
[null,null,null,null,null,null,null,null,0,0]
[null,null,null,null,null,null,null,null,0,0]
[null,null,null,null,null,null,null,null,0,0]
[null,null,null,null,null,null,null,null,0,0]
[null,null,null,null,null,null,null,null,0,0]
[null,null,null,null,null,null,null,null,0,0]
[null,null,null,null,null,null,null,null,0,0]
[null,null,null,null,null,null,null,null,0,0]
[null,null,null,null,null,null,null,null,0,0]
[null,null,null,null,null,null,null,null,0,0]
[null,null,null,null,null,null,null,null,0,0]
[null,null,null,null,null,null,null,null,0,0]
[null,null,null,null,null,null,null,null,0,0]
[null,null,null,null,null,null,null,null,0,0]
[null,null,null,null,null,null,null,null,0,0]
[null,null,null,null,null,null,null,null,0,0]
[null,null,null,null,null,null,null,null,{"$f":"G8451-H8451","v":0},{"$f":"IF(E8866=$M$6,D8866*0,IF(E8866=$M$7,D8866*70,IF(E8866=$M$8,D8866*100,IF(E8866=$M$9,D8866*140,0))))","v":0}]
[null,null,null,null,null,null,null,null,0,0]
[null,null,null,null,null,null,null,null,0,0]
[null,null,null,null,null,null,null,null,0,0]
[null,null,null,null,null,null,null,null,0,0]
[null,null,null,null,null,null,null,null,0,0]
[null,null,null,null,null,null,null,null,0,0]
[null,null,null,null,null,null,null,null,0,0]
[null,null,null,null,null,null,null,null,0,0]
[null,null,null,null,null,null,null,null,0,0]
[null,null,null,null,null,null,null,null,0,0]
[null,null,null,null,null,null,null,null,0,0]
[null,null,null,null,null,null,null,null,0,0]
[null,null,null,null,null,null,null,null,0,0]
[null,null,null,null,null,null,null,null,0,0]
[null,null,null,null,null,null,null,null,0,0]
[null,null,null,null,null,null,null,null,0,0]
[null,null,null,null,null,null,null,null,0,0]
[null,null,null,null,null,null,null,null,0,0]
[null,null,null,null,null,null,null,null,0,0]
[null,null,null,null,null,null,null,null,0,0]
[null,null,null,null,null,null,null,null,0,0]
[null,null,null,null,null,null,null,null,0,0]
[null,null,null,null,null,null,null,null,0,0]
[null,null,null,null,null,null,null,null,0,0]
[null,null,null,null,null,null,null,null,0,0]
[null,null,null,null,null,null,null,null,0,0]
[null,null,null,null,null,null,null,null,0,0]
[null,null,null,null,null,null,null,null,0,0]
[null,null,null,null,null,null,null,null,0,0]
[null,null,null,null,null,null,null,null,0,0]
[null,null,null,null,null,null,null,null,0,0]
[null,null,null,null,null,null,null,null,0,0]
[null,null,null,null,null,null,null,null,0,0]
[null,null,null,null,null,null,null,null,0,0]
[null,null,null,null,null,null,null,null,0,0]
[null,null,null,null,null,null,null,null,{"$f":"G8707-H8707","v":0},{"$f":"IF(E9122=$M$6,D9122*0,IF(E9122=$M$7,D9122*70,IF(E9122=$M$8,D9122*100,IF(E9122=$M$9,D9122*140,0))))","v":0}]
[null,null,null,null,null,null,null,null,0,0]
[null,null,null,null,null,null,null,null,0,0]
[null,null,null,null,null,null,null,null,0,0]
[null,null,null,null,null,null,null,null,0,0]
[null,null,null,null,null,null,null,null,0,0]
[null,null,null,null,null,null,null,null,0,0]
[null,null,null,null,null,null,null,null,0,0]
[null,null,null,null,null,null,null,null,0,0]
[null,null,null,null,null,null,null,null,{"$f":"G8771-H8771","v":0},{"$f":"IF(E9186=$M$6,D9186*0,IF(E9186=$M$7,D9186*70,IF(E9186=$M$8,D9186*100,IF(E9186=$M$9,D9186*140,0))))","v":0}]
[null,null,null,null,null,null,null,null,0,0]
[null,null,null,null,null,null,null,null,0,0]
[null,null,null,null,null,null,null,null,0,0]
[null,null,null,null,null,null,null,null,0,0]
[null,null,null,null,null,null,null,null,0,0]
[null,null,null,null,null,null,null,null,0,0]
[null,null,null,null,null,null,null,null,0,0]
[null,null,null,null,null,null,null,null,0,0]
[null,null,null,null,null,null,null,null,0,0]
[null,null,null,null,null,null,null,null,0,0]
[null,null,null,null,null,null,null,null,0,0]
[null,null,null,null,null,null,null,null,0,0]
[null,null,null,null,null,null,null,null,0,0]
[null,null,null,null,null,null,null,null,0,0]
[null,null,null,null,null,null,null,null,0,0]
[null,null,null,null,null,null,null,null,0,0]
[null,null,null,null,null,null,null,null,0,0]
[null,null,null,null,null,null,null,null,0,0]
[null,null,null,null,null,null,null,null,0,0]
[null,null,null,null,null,null,null,null,0,0]
[null,null,null,null,null,null,null,null,0,0]
[null,null,null,null,null,null,null,null,0,0]
[null,null,null,null,null,null,null,null,0,0]
[null,null,null,null,null,null,null,null,0,0]
[null,null,null,null,null,null,null,null,0,0]
[null,null,null,null,null,null,null,null,0,0]
[null,null,null,null,null,null,null,null,0,0]
[null,null,null,null,null,null,null,null,0,0]
[null,null,null,null,null,null,null,null,0,0]
[null,null,null,null,null,null,null,null,0,0]
[null,null,null,null,null,null,null,null,0,0]
[null,null,null,null,null,null,null,null,0,0]
[null,null,null,null,null,null,null,null,0,0]
[null,null,null,null,null,null,null,null,0,0]
[null,null,null,null,null,null,null,null,0,0]
[null,null,null,null,null,null,null,null,{"$f":"G9027-H9027","v":0},{"$f":"IF(E9442=$M$6,D9442*0,IF(E9442=$M$7,D9442*70,IF(E9442=$M$8,D9442*100,IF(E9442=$M$9,D9442*140,0))))","v":0}]
[null,null,null,null,null,null,null,null,0,0]
[null,null,null,null,null,null,null,null,0,0]
[null,null,null,null,null,null,null,null,0,0]
[null,null,null,null,null,null,null,null,0,0]
[null,null,null,null,null,null,null,null,0,0]
[null,null,null,null,null,null,null,null,0,0]
[null,null,null,null,null,null,null,null,0,0]
[null,null,null,null,null,null,null,null,0,0]
[null,null,null,null,null,null,null,null,{"$f":"G9091-H9091","v":0},{"$f":"IF(E9506=$M$6,D9506*0,IF(E9506=$M$7,D9506*70,IF(E9506=$M$8,D9506*100,IF(E9506=$M$9,D9506*140,0))))","v":0}]
[null,null,null,null,null,null,null,null,0,0]
[null,null,null,null,null,null,null,null,0,0]
[null,null,null,null,null,null,null,null,0,0]
[null,null,null,null,null,null,null,null,0,0]
[null,null,null,null,null,null,null,null,0,0]
[null,null,null,null,null,null,null,null,0,0]
[null,null,null,null,null,null,null,null,0,0]
[null,null,null,null,null,null,null,null,0,0]
[null,null,null,null,null,null,null,null,0,0]
[null,null,null,null,null,null,null,null,0,0]
[null,null,null,null,null,null,null,null,0,0]
[null,null,null,null,null,null,null,null,0,0]
[null,null,null,null,null,null,null,null,0,0]
[null,null,null,null,null,null,null,null,0,0]
[null,null,null,null,null,null,null,null,0,0]
[null,null,null,null,null,null,null,null,0,0]
[null,null,null,null,null,null,null,null,0,0]
[null,null,null,null,null,null,null,null,0,0]
[null,null,null,null,null,null,null,null,0,0]
[null,null,null,null,null,null,null,null,0,0]
[null,null,null,null,null,null,null,null,0,0]
[null,null,null,null,null,null,null,null,0,0]
[null,null,null,null,null,null,null,null,0,0]
[null,null,null,null,null,null,null,null,0,0]
[null,null,null,null,null,null,null,null,0,0]
[null,null,null,null,null,null,null,null,0,0]
[null,null,null,null,null,null,null,null,{"$f":"G9283-H9283","v":0},{"$f":"IF(E9698=$M$6,D9698*0,IF(E9698=$M$7,D9698*70,IF(E9698=$M$8,D9698*100,IF(E9698=$M$9,D9698*140,0))))","v":0}]
[null,null,null,null,null,null,null,null,0,0]
[null,null,null,null,null,null,null,null,0,0]
[null,null,null,null,null,null,null,null,0,0]
[null,null,null,null,null,null,null,null,0,0]
[null,null,null,null,null,null,null,null,0,0]
[null,null,null,null,null,null,null,null,0,0]
[null,null,null,null,null,null,null,null,0,0]
[null,null,null,null,null,null,null,null,0,0]
[null,null,null,null,null,null,null,null,{"$f":"G9347-H9347","v":0},{"$f":"IF(E9762=$M$6,D9762*0,IF(E9762=$M$7,D9762*70,IF(E9762=$M$8,D9762*100,IF(E9762=$M$9,D9762*140,0))))","v":0}]
[null,null,null,null,null,null,null,null,0,0]
[null,null,null,null,null,null,null,null,0,0]
[null,null,null,null,null,null,null,null,0,0]
[null,null,null,null,null,null,null,null,0,0]
[null,null,null,null,null,null,null,null,0,0]
[null,null,null,null,null,null,null,null,0,0]
[null,null,null,null,null,null,null,null,0,0]
[null,null,null,null,null,null,null,null,0,0]
[null,null,null,null,null,null,null,null,0,0]
[null,null,null,null,null,null,null,null,0,0]
[null,null,null,null,null,null,null,null,0,0]
[null,null,null,null,null,null,null,null,0,0]
[null,null,null,null,null,null,null,null,0,0]
[null,null,null,null,null,null,null,null,0,0]
[null,null,null,null,null,null,null,null,0,0]
[null,null,null,null,null,null,null,null,0,0]
[null,null,null,null,null,null,null,null,0,0]
[null,null,null,null,null,null,null,null,0,0]
[null,null,null,null,null,null,null,null,0,0]
[null,null,null,null,null,null,null,null,0,0]
[null,null,null,null,null,null,null,null,0,0]
[null,null,null,null,null,null,null,null,0,0]
[null,null,null,null,null,null,null,null,0,0]
[null,null,null,null,null,null,null,null,0,0]
[null,null,null,null,null,null,null,null,0,0]
[null,null,null,null,null,null,null,null,0,0]
[null,null,null,null,null,null,null,null,0,0]
[null,null,null,null,null,null,null,null,0,0]
[null,null,null,null,null,null,null,null,0,0]
[null,null,null,null,null,null,null,null,0,0]
[null,null,null,null,null,null,null,null,0,0]
[null,null,null,null,null,null,null,null,0,0]
[null,null,null,null,null,null,null,null,0,0]
[null,null,null,null,null,null,null,null,0,0]
[null,null,null,null,null,null,null,null,0,0]
[null,null,null,null,null,null,null,null,0,0]
[null,null,null,null,null,null,null,null,0,0]
[null,null,null,null,null,null,null,null,0,0]
[null,null,null,null,null,null,null,null,0,0]
[null,null,null,null,null,null,null,null,0,0]
[null,null,null,null,null,null,null,null,0,0]
[null,null,null,null,null,null,null,null,0,0]
[null,null,null,null,null,null,null,null,0,0]
[null,null,null,null,null,null,null,null,0,0]
[null,null,null,null,null,null,null,null,0,0]
[null,null,null,null,null,null,null,null,0,0]
[null,null,null,null,null,null,null,null,0,0]
[null,null,null,null,null,null,null,null,0,0]
[null,null,null,null,null,null,null,null,0,0]
[null,null,null,null,null,null,null,null,0,0]
[null,null,null,null,null,null,null,null,0,0]
[null,null,null,null,null,null,null,null,0,0]
[null,null,null,null,null,null,null,null,0,0]
[null,null,null,null,null,null,null,null,0,0]
[null,null,null,null,null,null,null,null,0,0]
[null,null,null,null,null,null,null,null,0,0]
[null,null,null,null,null,null,null,null,0,0]
[null,null,null,null,null,null,null,null,0,0]
[null,null,null,null,null,null,null,null,0,0]
[null,null,null,null,null,null,null,null,0,0]
[null,null,null,null,null,null,null,null,0,0]
[null,null,null,null,null,null,null,null,0,0]
[null,null,null,null,null,null,null,null,0,0]
[null,null,null,null,null,null,null,null,0,0]
[null,null,null,null,null,null,null,null,0,0]
[null,null,null,null,null,null,null,null,0,0]
[null,null,null,null,null,null,null,null,0,0]
[null,null,null,null,null,null,null,null,0,0]
[null,null,null,null,null,null,null,null,0,0]
[null,null,null,null,null,null,null,null,0,0]
[null,null,null,null,null,null,null,null,0,0]
[null,null,null,null,null,null,null,null,0,0]
[null,null,null,null,null,null,null,null,0,0]
[null,null,null,null,null,null,null,null,0,0]
[null,null,null,null,null,null,null,null,0,0]
[null,null,null,null,null,null,null,null,0,0]
[null,null,null,null,null,null,null,null,0,0]
[null,null,null,null,null,null,null,null,0,0]
[null,null,null,null,null,null,null,null,0,0]
[null,null,null,null,null,null,null,null,0,0]
[null,null,null,null,null,null,null,null,0,0]
[null,null,null,null,null,null,null,null,0,0]
[null,null,null,null,null,null,null,null,0,0]
[null,null,null,null,null,null,null,null,0,0]
[null,null,null,null,null,null,null,null,0,0]
[null,null,null,null,null,null,null,null,0,0]
[null,null,null,null,null,null,null,null,0,0]
[null,null,null,null,null,null,null,null,0,0]
[null,null,null,null,null,null,null,null,0,0]
[null,null,null,null,null,null,null,null,0,0]
[null,null,null,null,null,null,null,null,0,0]
[null,null,null,null,null,null,null,null,0,0]
[null,null,null,null,null,null,null,null,0,0]
[null,null,null,null,null,null,null,null,0,0]
[null,null,null,null,null,null,null,null,0,0]
[null,null,null,null,null,null,null,null,0,0]
[null,null,null,null,null,null,null,null,0,0]
[null,null,null,null,null,null,null,null,0,0]
[null,null,null,null,null,null,null,null,0,0]
[null,null,null,null,null,null,null,null,0,0]
[null,null,null,null,null,null,null,null,0,0]
[null,null,null,null,null,null,null,null,0,0]
[null,null,null,null,null,null,null,null,0,0]
[null,null,null,null,null,null,null,null,0,0]
[null,null,null,null,null,null,null,null,0,0]
[null,null,null,null,null,null,null,null,0,0]
[null,null,null,null,null,null,null,null,0,0]
[null,null,null,null,null,null,null,null,0,0]
[null,null,null,null,null,null,null,null,0,0]
[null,null,null,null,null,null,null,null,0,0]
[null,null,null,null,null,null,null,null,0,0]
[null,null,null,null,null,null,null,null,0,0]
[null,null,null,null,null,null,null,null,0,0]
[null,null,null,null,null,null,null,null,0,0]
[null,null,null,null,null,null,null,null,0,0]
[null,null,null,null,null,null,null,null,0,0]
[null,null,null,null,null,null,null,null,0,0]
[null,null,null,null,null,null,null,null,0,0]
[null,null,null,null,null,null,null,null,0,0]
[null,null,null,null,null,null,null,null,0,0]
[null,null,null,null,null,null,null,null,0,0]
[null,null,null,null,null,null,null,null,0,0]
[null,null,null,null,null,null,null,null,0,0]
[null,null,null,null,null,null,null,null,0,0]
[null,null,null,null,null,null,null,null,0,0]
[null,null,null,null,null,null,null,null,0,0]
[null,null,null,null,null,null,null,null,0,0]
[null,null,null,null,null,null,null,null,0,0]
[null,null,null,null,null,null,null,null,0,0]
[null,null,null,null,null,null,null,null,0,0]
[null,null,null,null,null,null,null,null,0,0]
[null,null,null,null,null,null,null,null,0,0]
[null,null,null,null,null,null,null,null,0,0]
[null,null,null,null,null,null,null,null,0,0]
[null,null,null,null,null,null,null,null,0,0]
[null,null,null,null,null,null,null,null,0,0]
[null,null,null,null,null,null,null,null,0,0]
[null,null,null,null,null,null,null,null,0,0]
[null,null,null,null,null,null,null,null,0,0]
[null,null,null,null,null,null,null,null,0,0]
[null,null,null,null,null,null,null,null,0,0]
[null,null,null,null,null,null,null,null,0,0]
[null,null,null,null,null,null,null,null,0,0]
[null,null,null,null,null,null,null,null,0,0]
[null,null,null,null,null,null,null,null,0,0]
[null,null,null,null,null,null,null,null,0,0]
[null,null,null,null,null,null,null,null,0,0]
[null,null,null,null,null,null,null,null,0,0]
[null,null,null,null,null,null,null,null,0,0]
[null,null,null,null,null,null,null,null,0,0]
[null,null,null,null,null,null,null,null,0,0]
[null,null,null,null,null,null,null,null,0,0]
[null,null,null,null,null,null,null,null,0,0]
[null,null,null,null,null,null,null,null,0,0]
[null,null,null,null,null,null,null,null,0,0]
[null,null,null,null,null,null,null,null,0,0]
[null,null,null,null,null,null,null,null,0,0]
[null,null,null,null,null,null,null,null,0,0]
[null,null,null,null,null,null,null,null,0,0]
[null,null,null,null,null,null,null,null,0,0]
[null,null,null,null,null,null,null,null,0,0]
[null,null,null,null,null,null,null,null,0,0]
[null,null,null,null,null,null,null,null,0,0]
[null,null,null,null,null,null,null,null,0,0]
[null,null,null,null,null,null,null,null,0,0]
[null,null,null,null,null,null,null,null,0,0]
[null,null,null,null,null,null,null,null,0,0]
[null,null,null,null,null,null,null,null,0,0]
[null,null,null,null,null,null,null,null,0,0]
[null,null,null,null,null,null,null,null,0,0]
[null,null,null,null,null,null,null,null,0,0]
[null,null,null,null,null,null,null,null,0,0]
[null,null,null,null,null,null,null,null,0,0]
[null,null,null,null,null,null,null,null,0,0]
[null,null,null,null,null,null,null,null,0,0]
[null,null,null,null,null,null,null,null,0,0]
[null,null,null,null,null,null,null,null,0,0]
[null,null,null,null,null,null,null,null,0,0]
[null,null,null,null,null,null,null,null,0,0]
[null,null,null,null,null,null,null,null,0,0]
[null,null,null,null,null,null,null,null,0,0]
[null,null,null,null,null,null,null,null,0,0]
[null,null,null,null,null,null,null,null,0,0]
[null,null,null,null,null,null,null,null,0,0]
[null,null,null,null,null,null,null,null,0,0]
[null,null,null,null,null,null,null,null,0,0]
[null,null,null,null,null,null,null,null,0,0]
[null,null,null,null,null,null,null,null,0,0]
[null,null,null,null,null,null,null,null,0,0]
[null,null,null,null,null,null,null,null,0,0]
[null,null,null,null,null,null,null,null,0,0]
[null,null,null,null,null,null,null,null,0,0]
[null,null,null,null,null,null,null,null,0,0]
[null,null,null,null,null,null,null,null,0,0]
[null,null,null,null,null,null,null,null,0,0]
[null,null,null,null,null,null,null,null,0,0]
[null,null,null,null,null,null,null,null,0,0]
[null,null,null,null,null,null,null,null,0,0]
[null,null,null,null,null,null,null,null,0,0]
[null,null,null,null,null,null,null,null,0,0]
[null,null,null,null,null,null,null,null,0,0]
[null,null,null,null,null,null,null,null,0,0]
[null,null,null,null,null,null,null,null,0,0]
[null,null,null,null,null,null,null,null,0,0]
[null,null,null,null,null,null,null,null,0,0]
[null,null,null,null,null,null,null,null,0,0]
[null,null,null,null,null,null,null,null,0,0]
[null,null,null,null,null,null,null,null,0,0]
[null,null,null,null,null,null,null,null,0,0]
[null,null,null,null,null,null,null,null,0,0]
[null,null,null,null,null,null,null,null,0,0]
[null,null,null,null,null,null,null,null,0,0]
[null,null,null,null,null,null,null,null,0,0]
[null,null,null,null,null,null,null,null,0,0]
[null,null,null,null,null,null,null,null,0,0]
[null,null,null,null,null,null,null,null,0,0]
[null,null,null,null,null,null,null,null,0,0]
[null,null,null,null,null,null,null,null,0,0]
[null,null,null,null,null,null,null,null,0,0]
[null,null,null,null,null,null,null,null,0,0]
[null,null,null,null,null,null,null,null,0,0]
[null,null,null,null,null,null,null,null,0,0]
[null,null,null,null,null,null,null,null,0,0]
[null,null,null,null,null,null,null,null,0,0]
[null,null,null,null,null,null,null,null,0,0]
[null,null,null,null,null,null,null,null,0,0]
[null,null,null,null,null,null,null,null,0,0]
[null,null,null,null,null,null,null,null,0,0]
[null,null,null,null,null,null,null,null,0,0]
[null,null,null,null,null,null,null,null,0,0]
[null,null,null,null,null,null,null,null,0,0]
[null,null,null,null,null,null,null,null,0,0]
[null,null,null,null,null,null,null,null,0,0]
[null,null,null,null,null,null,null,null,0,0]
[null,null,null,null,null,null,null,null,0,0]
[null,null,null,null,null,null,null,null,0,0]
[null,null,null,null,null,null,null,null,0,0]
[null,null,null,null,null,null,null,null,0,0]
[null,null,null,null,null,null,null,null,0,0]
[null,null,null,null,null,null,null,null,0,0]
[null,null,null,null,null,null,null,null,0,0]
[null,null,null,null,null,null,null,null,0,0]
[null,null,null,null,null,null,null,null,0,0]
[null,null,null,null,null,null,null,null,0,0]
[null,null,null,null,null,null,null,null,0,0]
[null,null,null,null,null,null,null,null,0,0]
[null,null,null,null,null,null,null,null,0,0]
[null,null,null,null,null,null,null,null,0,0]
[null,null,null,null,null,null,null,null,0,0]
[null,null,null,null,null,null,null,null,0,0]
[null,null,null,null,null,null,null,null,0,0]
[null,null,null,null,null,null,null,null,0,0]
[null,null,null,null,null,null,null,null,0,0]
[null,null,null,null,null,null,null,null,0,0]
[null,null,null,null,null,null,null,null,0,0]
[null,null,null,null,null,null,null,null,0,0]
[null,null,null,null,null,null,null,null,0,0]
[null,null,null,null,null,null,null,null,0,0]
[null,null,null,null,null,null,null,null,0,0]
[null,null,null,null,null,null,null,null,0,0]
[null,null,null,null,null,null,null,null,0,0]
[null,null,null,null,null,null,null,null,0,0]
[null,null,null,null,null,null,null,null,0,0]
[null,null,null,null,null,null,null,null,0,0]
[null,null,null,null,null,null,null,null,0,0]
[null,null,null,null,null,null,null,null,0,0]
[null,null,null,null,null,null,null,null,0,0]
[null,null,null,null,null,null,null,null,0,0]
[null,null,null,null,null,null,null,null,0,0]
[null,null,null,null,null,null,null,null,0,0]
[null,null,null,null,null,null,null,null,0,0]
[null,null,null,null,null,null,null,null,0,0]
[null,null,null,null,null,null,null,null,0,0]
[null,null,null,null,null,null,null,null,0,0]
[null,null,null,null,null,null,null,null,0,0]
[null,null,null,null,null,null,null,null,0,0]
[null,null,null,null,null,null,null,null,0,0]
[null,null,null,null,null,null,null,null,0,0]
[null,null,null,null,null,null,null,null,0,0]
[null,null,null,null,null,null,null,null,0,0]
[null,null,null,null,null,null,null,null,0,0]
[null,null,null,null,null,null,null,null,0,0]
[null,null,null,null,null,null,null,null,0,0]
[null,null,null,null,null,null,null,null,0,0]
[null,null,null,null,null,null,null,null,0,0]
[null,null,null,null,null,null,null,null,0,0]
[null,null,null,null,null,null,null,null,0,0]
[null,null,null,null,null,null,null,null,0,0]
[null,null,null,null,null,null,null,null,0,0]
[null,null,null,null,null,null,null,null,0,0]
[null,null,null,null,null,null,null,null,0,0]
[null,null,null,null,null,null,null,null,0,0]
[null,null,null,null,null,null,null,null,0,0]
[null,null,null,null,null,null,null,null,0,0]
[null,null,null,null,null,null,null,null,0,0]
[null,null,null,null,null,null,null,null,0,0]
[null,null,null,null,null,null,null,null,0,0]
[null,null,null,null,null,null,null,null,0,0]
[null,null,null,null,null,null,null,null,0,0]
[null,null,null,null,null,null,null,null,0,0]
[null,null,null,null,null,null,null,null,0,0]
[null,null,null,null,null,null,null,null,0,0]
[null,null,null,null,null,null,null,null,0,0]
[null,null,null,null,null,null,null,null,0,0]
[null,null,null,null,null,null,null,null,0,0]
[null,null,null,null,null,null,null,null,0,0]
[null,null,null,null,null,null,null,null,0,0]
[null,null,null,null,null,null,null,null,0,0]
[null,null,null,null,null,null,null,null,0,0]
[null,null,null,null,null,null,null,null,0,0]
[null,null,null,null,null,null,null,null,0,0]
[null,null,null,null,null,null,null,null,0,0]
[null,null,null,null,null,null,null,null,0,0]
[null,null,null,null,null,null,null,null,0,0]
[null,null,null,null,null,null,null,null,0,0]
[null,null,null,null,null,null,null,null,0,0]
[null,null,null,null,null,null,null,null,0,0]
[null,null,null,null,null,null,null,null,0,0]
[null,null,null,null,null,null,null,null,0,0]
[null,null,null,null,null,null,null,null,0,0]
[null,null,null,null,null,null,null,null,0,0]
[null,null,null,null,null,null,null,null,0,0]
[null,null,null,null,null,null,null,null,0,0]
[null,null,null,null,null,null,null,null,0,0]
[null,null,null,null,null,null,null,null,0,0]
[null,null,null,null,null,null,null,null,0,0]
[null,null,null,null,null,null,null,null,0,0]
[null,null,null,null,null,null,null,null,0,0]
[null,null,null,null,null,null,null,null,0,0]
[null,null,null,null,null,null,null,null,0,0]
[null,null,null,null,null,null,null,null,0,0]
[null,null,null,null,null,null,null,null,0,0]
[null,null,null,null,null,null,null,null,0,0]
[null,null,null,null,null,null,null,null,0,0]
[null,null,null,null,null,null,null,null,0,0]
[null,null,null,null,null,null,null,null,0,0]
[null,null,null,null,null,null,null,null,0,0]
[null,null,null,null,null,null,null,null,0,0]
[null,null,null,null,null,null,null,null,0,0]
[null,null,null,null,null,null,null,null,0,0]
[null,null,null,null,null,null,null,null,0,0]
[null,null,null,null,null,null,null,null,0,0]
[null,null,null,null,null,null,null,null,0,0]
[null,null,null,null,null,null,null,null,0,0]
[null,null,null,null,null,null,null,null,0,0]
[null,null,null,null,null,null,null,null,0,0]
[null,null,null,null,null,null,null,null,0,0]
[null,null,null,null,null,null,null,null,0,0]
[null,null,null,null,null,null,null,null,0,0]
[null,null,null,null,null,null,null,null,0,0]
[null,null,null,null,null,null,null,null,0,0]
[null,null,null,null,null,null,null,null,0,0]
[null,null,null,null,null,null,null,null,0,0]
[null,null,null,null,null,null,null,null,0,0]
[null,null,null,null,null,null,null,null,0,0]
[null,null,null,null,null,null,null,null,0,0]
[null,null,null,null,null,null,null,null,0,0]
[null,null,null,null,null,null,null,null,0,0]
[null,null,null,null,null,null,null,null,0,0]
[null,null,null,null,null,null,null,null,0,0]
[null,null,null,null,null,null,null,null,0,0]
[null,null,null,null,null,null,null,null,0,0]
[null,null,null,null,null,null,null,null,0,0]
[null,null,null,null,null,null,null,null,0,0]
[null,null,null,null,null,null,null,null,0,0]
[null,null,null,null,null,null,null,null,0,0]
[null,null,null,null,null,null,null,null,0,0]
[null,null,null,null,null,null,null,null,0,0]
[null,null,null,null,null,null,null,null,0,0]
[null,null,null,null,null,null,null,null,0,0]
[null,null,null,null,null,null,null,null,0,0]
[null,null,null,null,null,null,null,null,0,0]
[null,null,null,null,null,null,null,null,0,0]
[null,null,null,null,null,null,null,null,0,0]
[null,null,null,null,null,null,null,null,0,0]
[null,null,null,null,null,null,null,null,0,0]
[null,null,null,null,null,null,null,null,0,0]
[null,null,null,null,null,null,null,null,0,0]
[null,null,null,null,null,null,null,null,0,0]
[null,null,null,null,null,null,null,null,0,0]
[null,null,null,null,null,null,null,null,0,0]
[null,null,null,null,null,null,null,null,0,0]
[null,null,null,null,null,null,null,null,0,0]
[null,null,null,null,null,null,null,null,0,0]
[null,null,null,null,null,null,null,null,0,0]
[null,null,null,null,null,null,null,null,0,0]
[null,null,null,null,null,null,null,null,0,0]
[null,null,null,null,null,null,null,null,0,0]
[null,null,null,null,null,null,null,null,0,0]
[null,null,null,null,null,null,null,null,0,0]
[null,null,null,null,null,null,null,null,0,0]
[null,null,null,null,null,null,null,null,0,0]
[null,null,null,null,null,null,null,null,0,0]
[null,null,null,null,null,null,null,null,0,0]
[null,null,null,null,null,null,null,null,0,0]
[null,null,null,null,null,null,null,null,0,0]
[null,null,null,null,null,null,null,null,0,0]
[null,null,null,null,null,null,null,null,0,0]
[null,null,null,null,null,null,null,null,0,0]
[null,null,null,null,null,null,null,null,0,0]
[null,null,null,null,null,null,null,null,0,0]
[null,null,null,null,null,null,null,null,0,0]
[null,null,null,null,null,null,null,null,0,0]
[null,null,null,null,null,null,null,null,0,0]
[null,null,null,null,null,null,null,null,0,0]
[null,null,null,null,null,null,null,null,0,0]
[null,null,null,null,null,null,null,null,0,0]
[null,null,null,null,null,null,null,null,0,0]
[null,null,null,null,null,null,null,null,0,0]
[null,null,null,null,null,null,null,null,0,0]
[null,null,null,null,null,null,null,null,0,0]
[null,null,null,null,null,null,null,null,0,0]
[null,null,null,null,null,null,null,null,0,0]
[null,null,null,null,null,null,null,null,0,0]
[null,null,null,null,null,null,null,null,0,0]
[null,null,null,null,null,null,null,null,0,0]
[null,null,null,null,null,null,null,null,0,0]
[null,null,null,null,null,null,null,null,0,0]
[null,null,null,null,null,null,null,null,0,0]
[null,null,null,null,null,null,null,null,0,0]
[null,null,null,null,null,null,null,null,0,0]
[null,null,null,null,null,null,null,null,0,0]
[null,null,null,null,null,null,null,null,0,0]
[null,null,null,null,null,null,null,null,0,0]
[null,null,null,null,null,null,null,null,0,0]
[null,null,null,null,null,null,null,null,0,0]
[null,null,null,null,null,null,null,null,0,0]
[null,null,null,null,null,null,null,null,0,0]
[null,null,null,null,null,null,null,null,0,0]
[null,null,null,null,null,null,null,null,0,0]
[null,null,null,null,null,null,null,null,0,0]
[null,null,null,null,null,null,null,null,0,0]
[null,null,null,null,null,null,null,null,0,0]
[null,null,null,null,null,null,null,null,0,0]
[null,null,null,null,null,null,null,null,0,0]
[null,null,null,null,null,null,null,null,0,0]
[null,null,null,null,null,null,null,null,0,0]
[null,null,null,null,null,null,null,null,0,0]
[null,null,null,null,null,null,null,null,0,0]
[null,null,null,null,null,null,null,null,0,0]
[null,null,null,null,null,null,null,null,0,0]
[null,null,null,null,null,null,null,null,0,0]
[null,null,null,null,null,null,null,null,0,0]
[null,null,null,null,null,null,null,null,0,0]
[null,null,null,null,null,null,null,null,0,0]
[null,null,null,null,null,null,null,null,0,0]
[null,null,null,null,null,null,null,null,0,0]
[null,null,null,null,null,null,null,null,0,0]
[null,null,null,null,null,null,null,null,0,0]
[null,null,null,null,null,null,null,null,0,0]
[null,null,null,null,null,null,null,null,0,0]
[null,null,null,null,null,null,null,null,0,0]
[null,null,null,null,null,null,null,null,0,0]
[null,null,null,null,null,null,null,null,0,0]
[null,null,null,null,null,null,null,null,0,0]
[null,null,null,null,null,null,null,null,0,0]
[null,null,null,null,null,null,null,null,0,0]
[null,null,null,null,null,null,null,null,0,0]
[null,null,null,null,null,null,null,null,0,0]
[null,null,null,null,null,null,null,null,0,0]
[null,null,null,null,null,null,null,null,0,0]
[null,null,null,null,null,null,null,null,0,0]
[null,null,null,null,null,null,null,null,0,0]
[null,null,null,null,null,null,null,null,0,0]
[null,null,null,null,null,null,null,null,0,0]
[null,null,null,null,null,null,null,null,0,0]
[null,null,null,null,null,null,null,null,0,0]
[null,null,null,null,null,null,null,null,0,0]
[null,null,null,null,null,null,null,null,0,0]
[null,null,null,null,null,null,null,null,0,0]
[null,null,null,null,null,null,null,null,0,0]
[null,null,null,null,null,null,null,null,0,0]
[null,null,null,null,null,null,null,null,0,0]
[null,null,null,null,null,null,null,null,0,0]
[null,null,null,null,null,null,null,null,0,0]
[null,null,null,null,null,null,null,null,0,0]
[null,null,null,null,null,null,null,null,0,0]
[null,null,null,null,null,null,null,null,0,0]
[null,null,null,null,null,null,null,null,0,0]
[null,null,null,null,null,null,null,null,0,0]
[null,null,null,null,null,null,null,null,0,0]
[null,null,null,null,null,null,null,null,0,0]
[null,null,null,null,null,null,null,null,0,0]
[null,null,null,null,null,null,null,null,0,0]
[null,null,null,null,null,null,null,null,0,0]
[null,null,null,null,null,null,null,null,0,0]
[null,null,null,null,null,null,null,null,0,0]
[null,null,null,null,null,null,null,null,0,0]
[null,null,null,null,null,null,null,null,0,0]
[null,null,null,null,null,null,null,null,0,0]
[null,null,null,null,null,null,null,null,0,0]
[null,null,null,null,null,null,null,null,0,0]
[null,null,null,null,null,null,null,null,0,0]
[null,null,null,null,null,null,null,null,0,0]
[null,null,null,null,null,null,null,null,0,0]
[null,null,null,null,null,null,null,null,0,0]
[null,null,null,null,null,null,null,null,0,0]
[null,null,null,null,null,null,null,null,0,0]
[null,null,null,null,null,null,null,null,0,0]
[null,null,null,null,null,null,null,null,0,0]
[null,null,null,null,null,null,null,null,0,0]
[null,null,null,null,null,null,null,null,0,0]
[null,null,null,null,null,null,null,null,0,0]
[null,null,null,null,null,null,null,null,0,0]
[null,null,null,null,null,null,null,null,0,0]
[null,null,null,null,null,null,null,null,0,0]
[null,null,null,null,null,null,null,null,0,0]
[null,null,null,null,null,null,null,null,0,0]
[null,null,null,null,null,null,null,null,0,0]
[null,null,null,null,null,null,null,null,0,0]
[null,null,null,null,null,null,null,null,0,0]
[null,null,null,null,null,null,null,null,0,0]
[null,null,null,null,null,null,null,null,0,0]
[null,null,null,null,null,null,null,null,0,0]
[null,null,null,null,null,null,null,null,0,0]
[null,null,null,null,null,null,null,null,0,0]
[null,null,null,null,null,null,null,null,0,0]
[null,null,null,null,null,null,null,null,0,0]
[null,null,null,null,null,null,null,null,0,0]
[null,null,null,null,null,null,null,null,0,0]
[null,null,null,null,null,null,null,null,0,0]
[null,null,null,null,null,null,null,null,0,0]
[null,null,null,null,null,null,null,null,0,0]
[null,null,null,null,null,null,null,null,0,0]
[null,null,null,null,null,null,null,null,0,0]
[null,null,null,null,null,null,null,null,0,0]
[null,null,null,null,null,null,null,null,0,0]
[null,null,null,null,null,null,null,null,0,0]
[null,null,null,null,null,null,null,null,0,0]
[null,null,null,null,null,null,null,null,0,0]
[null,null,null,null,null,null,null,null,0,0]
[null,null,null,null,null,null,null,null,0,0]
[null,null,null,null,null,null,null,null,0,0]
[null,null,null,null,null,null,null,null,0,0]
[null,null,null,null,null,null,null,null,0,0]
[null,null,null,null,null,null,null,null,0,0]
[null,null,null,null,null,null,null,null,0,0]
[null,null,null,null,null,null,null,null,0,0]
[null,null,null,null,null,null,null,null,0,0]
[null,null,null,null,null,null,null,null,0,0]
[null,null,null,null,null,null,null,null,0,0]
[null,null,null,null,null,null,null,null,0,0]
[null,null,null,null,null,null,null,null,0,0]
[null,null,null,null,null,null,null,null,0,0]
[null,null,null,null,null,null,null,null,0,0]
[null,null,null,null,null,null,null,null,0,0]
[null,null,null,null,null,null,null,null,0,0]
[null,null,null,null,null,null,null,null,0,0]
[null,null,null,null,null,null,null,null,0,0]
[null,null,null,null,null,null,null,null,0,0]
[null,null,null,null,null,null,null,null,0,0]
[null,null,null,null,null,null,null,null,0,0]
[null,null,null,null,null,null,null,null,0,0]
[null,null,null,null,null,null,null,null,0,0]
[null,null,null,null,null,null,null,null,0,0]
[null,null,null,null,null,null,null,null,0,0]
[null,null,null,null,null,null,null,null,0,0]
[null,null,null,null,null,null,null,null,0,0]
[null,null,null,null,null,null,null,null,0,0]
[null,null,null,null,null,null,null,null,0,0]
[null,null,null,null,null,null,null,null,0,0]
[null,null,null,null,null,null,null,null,0,0]
[null,null,null,null,null,null,null,null,0,0]
[null,null,null,null,null,null,null,null,0,0]
[null,null,null,null,null,null,null,null,0,0]
[null,null,null,null,null,null,null,null,0,0]
[null,null,null,null,null,null,null,null,0,0]
[null,null,null,null,null,null,null,null,0,0]
[null,null,null,null,null,null,null,null,0,0]
[null,null,null,null,null,null,null,null,0,0]
[null,null,null,null,null,null,null,null,0,0]
[null,null,null,null,null,null,null,null,0,0]
[null,null,null,null,null,null,null,null,0,0]
[null,null,null,null,null,null,null,null,0,0]
[null,null,null,null,null,null,null,null,0,0]
[null,null,null,null,null,null,null,null,0,0]
[null,null,null,null,null,null,null,null,0,0]
[null,null,null,null,null,null,null,null,{"$f":"G13443-H13443","v":0},{"$f":"IF(E13858=$M$6,D13858*0,IF(E13858=$M$7,D13858*70,IF(E13858=$M$8,D13858*100,IF(E13858=$M$9,D13858*140,0))))","v":0}]
[null,null,null,null,null,null,null,null,0,0]
[null,null,null,null,null,null,null,null,0,0]
[null,null,null,null,null,null,null,null,0,0]
[null,null,null,null,null,null,null,null,0,0]
[null,null,null,null,null,null,null,null,0,0]
[null,null,null,null,null,null,null,null,0,0]
[null,null,null,null,null,null,null,null,0,0]
[null,null,null,null,null,null,null,null,0,0]
[null,null,null,null,null,null,null,null,0,0]
[null,null,null,null,null,null,null,null,0,0]
[null,null,null,null,null,null,null,null,0,0]
[null,null,null,null,null,null,null,null,0,0]
[null,null,null,null,null,null,null,null,0,0]
[null,null,null,null,null,null,null,null,0,0]
[null,null,null,null,null,null,null,null,0,0]
[null,null,null,null,null,null,null,null,0,0]
[null,null,null,null,null,null,null,null,0,0]
[null,null,null,null,null,null,null,null,0,0]
[null,null,null,null,null,null,null,null,0,0]
[null,null,null,null,null,null,null,null,0,0]
[null,null,null,null,null,null,null,null,0,0]
[null,null,null,null,null,null,null,null,0,0]
[null,null,null,null,null,null,null,null,0,0]
[null,null,null,null,null,null,null,null,0,0]
[null,null,null,null,null,null,null,null,0,0]
[null,null,null,null,null,null,null,null,0,0]
[null,null,null,null,null,null,null,null,0,0]
[null,null,null,null,null,null,null,null,{"$f":"G13635-H13635","v":0},{"$f":"IF(E14050=$M$6,D14050*0,IF(E14050=$M$7,D14050*70,IF(E14050=$M$8,D14050*100,IF(E14050=$M$9,D14050*140,0))))","v":0}]
[null,null,null,null,null,null,null,null,0,0]
[null,null,null,null,null,null,null,null,0,0]
[null,null,null,null,null,null,null,null,0,0]
[null,null,null,null,null,null,null,null,0,0]
[null,null,null,null,null,null,null,null,0,0]
[null,null,null,null,null,null,null,null,0,0]
[null,null,null,null,null,null,null,null,0,0]
[null,null,null,null,null,null,null,null,0,0]
[null,null,null,null,null,null,null,null,{"$f":"G13699-H13699","v":0},{"$f":"IF(E14114=$M$6,D14114*0,IF(E14114=$M$7,D14114*70,IF(E14114=$M$8,D14114*100,IF(E14114=$M$9,D14114*140,0))))","v":0}]
[null,null,null,null,null,null,null,null,0,0]
[null,null,null,null,null,null,null,null,0,0]
[null,null,null,null,null,null,null,null,0,0]
[null,null,null,null,null,null,null,null,0,0]
[null,null,null,null,null,null,null,null,0,0]
[null,null,null,null,null,null,null,null,0,0]
[null,null,null,null,null,null,null,null,0,0]
[null,null,null,null,null,null,null,null,0,0]
[null,null,null,null,null,null,null,null,0,0]
[null,null,null,null,null,null,null,null,0,0]
[null,null,null,null,null,null,null,null,0,0]
[null,null,null,null,null,null,null,null,0,0]
[null,null,null,null,null,null,null,null,0,0]
[null,null,null,null,null,null,null,null,0,0]
[null,null,null,null,null,null,null,null,0,0]
[null,null,null,null,null,null,null,null,0,0]
[null,null,null,null,null,null,null,null,0,0]
[null,null,null,null,null,null,null,null,0,0]
[null,null,null,null,null,null,null,null,0,0]
[null,null,null,null,null,null,null,null,0,0]
[null,null,null,null,null,null,null,null,0,0]
[null,null,null,null,null,null,null,null,0,0]
[null,null,null,null,null,null,null,null,0,0]
[null,null,null,null,null,null,null,null,0,0]
[null,null,null,null,null,null,null,null,0,0]
[null,null,null,null,null,null,null,null,0,0]
[null,null,null,null,null,null,null,null,0,0]
[null,null,null,null,null,null,null,null,0,0]
[null,null,null,null,null,null,null,null,0,0]
[null,null,null,null,null,null,null,null,0,0]
[null,null,null,null,null,null,null,null,0,0]
[null,null,null,null,null,null,null,null,0,0]
[null,null,null,null,null,null,null,null,0,0]
[null,null,null,null,null,null,null,null,0,0]
[null,null,null,null,null,null,null,null,0,0]
[null,null,null,null,null,null,null,null,{"$f":"G13955-H13955","v":0},{"$f":"IF(E14370=$M$6,D14370*0,IF(E14370=$M$7,D14370*70,IF(E14370=$M$8,D14370*100,IF(E14370=$M$9,D14370*140,0))))","v":0}]
[null,null,null,null,null,null,null,null,0,0]
[null,null,null,null,null,null,null,null,0,0]
[null,null,null,null,null,null,null,null,0,0]
[null,null,null,null,null,null,null,null,0,0]
[null,null,null,null,null,null,null,null,0,0]
[null,null,null,null,null,null,null,null,0,0]
[null,null,null,null,null,null,null,null,0,0]
[null,null,null,null,null,null,null,null,0,0]
[null,null,null,null,null,null,null,null,{"$f":"G14019-H14019","v":0},{"$f":"IF(E14434=$M$6,D14434*0,IF(E14434=$M$7,D14434*70,IF(E14434=$M$8,D14434*100,IF(E14434=$M$9,D14434*140,0))))","v":0}]
[null,null,null,null,null,null,null,null,0,0]
[null,null,null,null,null,null,null,null,0,0]
[null,null,null,null,null,null,null,null,0,0]
[null,null,null,null,null,null,null,null,0,0]
[null,null,null,null,null,null,null,null,0,0]
[null,null,null,null,null,null,null,null,0,0]
[null,null,null,null,null,null,null,null,0,0]
[null,null,null,null,null,null,null,null,0,0]
[null,null,null,null,null,null,null,null,0,0]
[null,null,null,null,null,null,null,null,0,0]
[null,null,null,null,null,null,null,null,0,0]
[null,null,null,null,null,null,null,null,0,0]
[null,null,null,null,null,null,null,null,0,0]
[null,null,null,null,null,null,null,null,0,0]
[null,null,null,null,null,null,null,null,0,0]
[null,null,null,null,null,null,null,null,0,0]
[null,null,null,null,null,null,null,null,0,0]
[null,null,null,null,null,null,null,null,0,0]
[null,null,null,null,null,null,null,null,0,0]
[null,null,null,null,null,null,null,null,0,0]
[null,null,null,null,null,null,null,null,0,0]
[null,null,null,null,null,null,null,null,0,0]
[null,null,null,null,null,null,null,null,0,0]
[null,null,null,null,null,null,null,null,0,0]
[null,null,null,null,null,null,null,null,0,0]
[null,null,null,null,null,null,null,null,0,0]
[null,null,null,null,null,null,null,null,{"$f":"G14211-H14211","v":0},{"$f":"IF(E14626=$M$6,D14626*0,IF(E14626=$M$7,D14626*70,IF(E14626=$M$8,D14626*100,IF(E14626=$M$9,D14626*140,0))))","v":0}]
[null,null,null,null,null,null,null,null,0,0]
[null,null,null,null,null,null,null,null,0,0]
[null,null,null,null,null,null,null,null,0,0]
[null,null,null,null,null,null,null,null,0,0]
[null,null,null,null,null,null,null,null,0,0]
[null,null,null,null,null,null,null,null,0,0]
[null,null,null,null,null,null,null,null,0,0]
[null,null,null,null,null,null,null,null,0,0]
[null,null,null,null,null,null,null,null,{"$f":"G14275-H14275","v":0},{"$f":"IF(E14690=$M$6,D14690*0,IF(E14690=$M$7,D14690*70,IF(E14690=$M$8,D14690*100,IF(E14690=$M$9,D14690*140,0))))","v":0}]
[null,null,null,null,null,null,null,null,0,0]
[null,null,null,null,null,null,null,null,0,0]
[null,null,null,null,null,null,null,null,0,0]
[null,null,null,null,null,null,null,null,0,0]
[null,null,null,null,null,null,null,null,0,0]
[null,null,null,null,null,null,null,null,0,0]
[null,null,null,null,null,null,null,null,0,0]
[null,null,null,null,null,null,null,null,0,0]
[null,null,null,null,null,null,null,null,0,0]
[null,null,null,null,null,null,null,null,0,0]
[null,null,null,null,null,null,null,null,0,0]
[null,null,null,null,null,null,null,null,0,0]
[null,null,null,null,null,null,null,null,0,0]
[null,null,null,null,null,null,null,null,0,0]
[null,null,null,null,null,null,null,null,0,0]
[null,null,null,null,null,null,null,null,0,0]
[null,null,null,null,null,null,null,null,0,0]
[null,null,null,null,null,null,null,null,0,0]
[null,null,null,null,null,null,null,null,0,0]
[null,null,null,null,null,null,null,null,0,0]
[null,null,null,null,null,null,null,null,0,0]
[null,null,null,null,null,null,null,null,0,0]
[null,null,null,null,null,null,null,null,0,0]
[null,null,null,null,null,null,null,null,0,0]
[null,null,null,null,null,null,null,null,0,0]
[null,null,null,null,null,null,null,null,0,0]
[null,null,null,null,null,null,null,null,0,0]
[null,null,null,null,null,null,null,null,0,0]
[null,null,null,null,null,null,null,null,0,0]
[null,null,null,null,null,null,null,null,0,0]
[null,null,null,null,null,null,null,null,0,0]
[null,null,null,null,null,null,null,null,0,0]
[null,null,null,null,null,null,null,null,0,0]
[null,null,null,null,null,null,null,null,0,0]
[null,null,null,null,null,null,null,null,0,0]
[null,null,null,null,null,null,null,null,{"$f":"G14531-H14531","v":0},{"$f":"IF(E14946=$M$6,D14946*0,IF(E14946=$M$7,D14946*70,IF(E14946=$M$8,D14946*100,IF(E14946=$M$9,D14946*140,0))))","v":0}]
[null,null,null,null,null,null,null,null,0,0]
[null,null,null,null,null,null,null,null,0,0]
[null,null,null,null,null,null,null,null,0,0]
[null,null,null,null,null,null,null,null,0,0]
[null,null,null,null,null,null,null,null,0,0]
[null,null,null,null,null,null,null,null,0,0]
[null,null,null,null,null,null,null,null,0,0]
[null,null,null,null,null,null,null,null,0,0]
[null,null,null,null,null,null,null,null,0,0]
[null,null,null,null,null,null,null,null,0,0]
[null,null,null,null,null,null,null,null,0,0]
[null,null,null,null,null,null,null,null,0,0]
[null,null,null,null,null,null,null,null,0,0]
[null,null,null,null,null,null,null,null,0,0]
[null,null,null,null,null,null,null,null,0,0]
[null,null,null,null,null,null,null,null,0,0]
[null,null,null,null,null,null,null,null,0,0]
[null,null,null,null,null,null,null,null,0,0]
[null,null,null,null,null,null,null,null,0,0]
[null,null,null,null,null,null,null,null,0,0]
[null,null,null,null,null,null,null,null,0,0]
[null,null,null,null,null,null,null,null,0,0]
[null,null,null,null,null,null,null,null,0,0]
[null,null,null,null,null,null,null,null,0,0]
[null,null,null,null,null,null,null,null,0,0]
[null,null,null,null,null,null,null,null,0,0]
[null,null,null,null,null,null,null,null,0,0]
[null,null,null,null,null,null,null,null,0,0]
[null,null,null,null,null,null,null,null,0,0]
[null,null,null,null,null,null,null,null,0,0]
[null,null,null,null,null,null,null,null,0,0]
[null,null,null,null,null,null,null,null,0,0]
[null,null,null,null,null,null,null,null,0,0]
[null,null,null,null,null,null,null,null,0,0]
[null,null,null,null,null,null,null,null,0,0]
[null,null,null,null,null,null,null,null,{"$f":"G14787-H14787","v":0},{"$f":"IF(E15202=$M$6,D15202*0,IF(E15202=$M$7,D15202*70,IF(E15202=$M$8,D15202*100,IF(E15202=$M$9,D15202*140,0))))","v":0}]
[null,null,null,null,null,null,null,null,0,0]
[null,null,null,null,null,null,null,null,0,0]
[null,null,null,null,null,null,null,null,0,0]
[null,null,null,null,null,null,null,null,0,0]
[null,null,null,null,null,null,null,null,0,0]
[null,null,null,null,null,null,null,null,0,0]
[null,null,null,null,null,null,null,null,0,0]
[null,null,null,null,null,null,null,null,0,0]
[null,null,null,null,null,null,null,null,{"$f":"G14851-H14851","v":0},{"$f":"IF(E15266=$M$6,D15266*0,IF(E15266=$M$7,D15266*70,IF(E15266=$M$8,D15266*100,IF(E15266=$M$9,D15266*140,0))))","v":0}]
[null,null,null,null,null,null,null,null,0,0]
[null,null,null,null,null,null,null,null,0,0]
[null,null,null,null,null,null,null,null,0,0]
[null,null,null,null,null,null,null,null,0,0]
[null,null,null,null,null,null,null,null,0,0]
[null,null,null,null,null,null,null,null,0,0]
[null,null,null,null,null,null,null,null,0,0]
[null,null,null,null,null,null,null,null,0,0]
[null,null,null,null,null,null,null,null,0,0]
[null,null,null,null,null,null,null,null,0,0]
[null,null,null,null,null,null,null,null,0,0]
[null,null,null,null,null,null,null,null,0,0]
[null,null,null,null,null,null,null,null,0,0]
[null,null,null,null,null,null,null,null,0,0]
[null,null,null,null,null,null,null,null,0,0]
[null,null,null,null,null,null,null,null,0,0]
[null,null,null,null,null,null,null,null,0,0]
[null,null,null,null,null,null,null,null,0,0]
[null,null,null,null,null,null,null,null,0,0]
[null,null,null,null,null,null,null,null,0,0]
[null,null,null,null,null,null,null,null,0,0]
[null,null,null,null,null,null,null,null,0,0]
[null,null,null,null,null,null,null,null,0,0]
[null,null,null,null,null,null,null,null,0,0]
[null,null,null,null,null,null,null,null,0,0]
[null,null,null,null,null,null,null,null,0,0]
[null,null,null,null,null,null,null,null,0,0]
[null,null,null,null,null,null,null,null,0,0]
[null,null,null,null,null,null,null,null,0,0]
[null,null,null,null,null,null,null,null,0,0]
[null,null,null,null,null,null,null,null,0,0]
[null,null,null,null,null,null,null,null,0,0]
[null,null,null,null,null,null,null,null,0,0]
[null,null,null,null,null,null,null,null,0,0]
[null,null,null,null,null,null,null,null,0,0]
[null,null,null,null,null,null,null,null,{"$f":"G15107-H15107","v":0},{"$f":"IF(E15522=$M$6,D15522*0,IF(E15522=$M$7,D15522*70,IF(E15522=$M$8,D15522*100,IF(E15522=$M$9,D15522*140,0))))","v":0}]
[null,null,null,null,null,null,null,null,0,0]
[null,null,null,null,null,null,null,null,0,0]
[null,null,null,null,null,null,null,null,0,0]
[null,null,null,null,null,null,null,null,0,0]
[null,null,null,null,null,null,null,null,0,0]
[null,null,null,null,null,null,null,null,0,0]
[null,null,null,null,null,null,null,null,0,0]
[null,null,null,null,null,null,null,null,0,0]
[null,null,null,null,null,null,null,null,0,0]
[null,null,null,null,null,null,null,null,0,0]
[null,null,null,null,null,null,null,null,0,0]
[null,null,null,null,null,null,null,null,0,0]
[null,null,null,null,null,null,null,null,0,0]
[null,null,null,null,null,null,null,null,0,0]
[null,null,null,null,null,null,null,null,0,0]
[null,null,null,null,null,null,null,null,0,0]
[null,null,null,null,null,null,null,null,0,0]
[null,null,null,null,null,null,null,null,0,0]
[null,null,null,null,null,null,null,null,0,0]
[null,null,null,null,null,null,null,null,0,0]
[null,null,null,null,null,null,null,null,0,0]
[null,null,null,null,null,null,null,null,0,0]
[null,null,null,null,null,null,null,null,0,0]
[null,null,null,null,null,null,null,null,0,0]
[null,null,null,null,null,null,null,null,0,0]
[null,null,null,null,null,null,null,null,0,0]
[null,null,null,null,null,null,null,null,0,0]
[null,null,null,null,null,null,null,null,0,0]
[null,null,null,null,null,null,null,null,0,0]
[null,null,null,null,null,null,null,null,0,0]
[null,null,null,null,null,null,null,null,0,0]
[null,null,null,null,null,null,null,null,0,0]
[null,null,null,null,null,null,null,null,0,0]
[null,null,null,null,null,null,null,null,0,0]
[null,null,null,null,null,null,null,null,0,0]
[null,null,null,null,null,null,null,null,{"$f":"G15363-H15363","v":0},{"$f":"IF(E15778=$M$6,D15778*0,IF(E15778=$M$7,D15778*70,IF(E15778=$M$8,D15778*100,IF(E15778=$M$9,D15778*140,0))))","v":0}]
[null,null,null,null,null,null,null,null,0,0]
[null,null,null,null,null,null,null,null,0,0]
[null,null,null,null,null,null,null,null,0,0]
[null,null,null,null,null,null,null,null,0,0]
[null,null,null,null,null,null,null,null,0,0]
[null,null,null,null,null,null,null,null,0,0]
[null,null,null,null,null,null,null,null,0,0]
[null,null,null,null,null,null,null,null,0,0]
[null,null,null,null,null,null,null,null,{"$f":"G15427-H15427","v":0},{"$f":"IF(E15842=$M$6,D15842*0,IF(E15842=$M$7,D15842*70,IF(E15842=$M$8,D15842*100,IF(E15842=$M$9,D15842*140,0))))","v":0}]
[null,null,null,null,null,null,null,null,0,0]
[null,null,null,null,null,null,null,null,0,0]
[null,null,null,null,null,null,null,null,0,0]
[null,null,null,null,null,null,null,null,0,0]
[null,null,null,null,null,null,null,null,0,0]
[null,null,null,null,null,null,null,null,0,0]
[null,null,null,null,null,null,null,null,0,0]
[null,null,null,null,null,null,null,null,0,0]
[null,null,null,null,null,null,null,null,0,0]
[null,null,null,null,null,null,null,null,0,0]
[null,null,null,null,null,null,null,null,0,0]
[null,null,null,null,null,null,null,null,0,0]
[null,null,null,null,null,null,null,null,0,0]
[null,null,null,null,null,null,null,null,0,0]
[null,null,null,null,null,null,null,null,0,0]
[null,null,null,null,null,null,null,null,0,0]
[null,null,null,null,null,null,null,null,0,0]
[null,null,null,null,null,null,null,null,0,0]
[null,null,null,null,null,null,null,null,0,0]
[null,null,null,null,null,null,null,null,0,0]
[null,null,null,null,null,null,null,null,0,0]
[null,null,null,null,null,null,null,null,0,0]
[null,null,null,null,null,null,null,null,0,0]
[null,null,null,null,null,null,null,null,0,0]
[null,null,null,null,null,null,null,null,0,0]
[null,null,null,null,null,null,null,null,0,0]
[null,null,null,null,null,null,null,null,0,0]
[null,null,null,null,null,null,null,null,0,0]
[null,null,null,null,null,null,null,null,0,0]
[null,null,null,null,null,null,null,null,0,0]
[null,null,null,null,null,null,null,null,0,0]
[null,null,null,null,null,null,null,null,0,0]
[null,null,null,null,null,null,null,null,0,0]
[null,null,null,null,null,null,null,null,0,0]
[null,null,null,null,null,null,null,null,0,0]
[null,null,null,null,null,null,null,null,0,0]
[null,null,null,null,null,null,null,null,0,0]
[null,null,null,null,null,null,null,null,0,0]
[null,null,null,null,null,null,null,null,0,0]
[null,null,null,null,null,null,null,null,0,0]
[null,null,null,null,null,null,null,null,0,0]
[null,null,null,null,null,null,null,null,0,0]
[null,null,null,null,null,null,null,null,0,0]
[null,null,null,null,null,null,null,null,0,0]
[null,null,null,null,null,null,null,null,0,0]
[null,null,null,null,null,null,null,null,0,0]
[null,null,null,null,null,null,null,null,0,0]
[null,null,null,null,null,null,null,null,0,0]
[null,null,null,null,null,null,null,null,0,0]
[null,null,null,null,null,null,null,null,0,0]
[null,null,null,null,null,null,null,null,0,0]
[null,null,null,null,null,null,null,null,0,0]
[null,null,null,null,null,null,null,null,0,0]
[null,null,null,null,null,null,null,null,0,0]
[null,null,null,null,null,null,null,null,0,0]
[null,null,null,null,null,null,null,null,0,0]
[null,null,null,null,null,null,null,null,0,0]
[null,null,null,null,null,null,null,null,0,0]
[null,null,null,null,null,null,null,null,0,0]
[null,null,null,null,null,null,null,null,0,0]
[null,null,null,null,null,null,null,null,0,0]
[null,null,null,null,null,null,null,null,0,0]
[null,null,null,null,null,null,null,null,0,0]
[null,null,null,null,null,null,null,null,0,0]
[null,null,null,null,null,null,null,null,0,0]
[null,null,null,null,null,null,null,null,0,0]
[null,null,null,null,null,null,null,null,0,0]
[null,null,null,null,null,null,null,null,0,0]
[null,null,null,null,null,null,null,null,0,0]
[null,null,null,null,null,null,null,null,0,0]
[null,null,null,null,null,null,null,null,0,0]
[null,null,null,null,null,null,null,null,0,0]
[null,null,null,null,null,null,null,null,0,0]
[null,null,null,null,null,null,null,null,0,0]
[null,null,null,null,null,null,null,null,0,0]
[null,null,null,null,null,null,null,null,0,0]
[null,null,null,null,null,null,null,null,0,0]
[null,null,null,null,null,null,null,null,0,0]
[null,null,null,null,null,null,null,null,0,0]
[null,null,null,null,null,null,null,null,0,0]
[null,null,null,null,null,null,null,null,0,0]
[null,null,null,null,null,null,null,null,0,0]
[null,null,null,null,null,null,null,null,0,0]
[null,null,null,null,null,null,null,null,0,0]
[null,null,null,null,null,null,null,null,0,0]
[null,null,null,null,null,null,null,null,0,0]
[null,null,null,null,null,null,null,null,0,0]
[null,null,null,null,null,null,null,null,0,0]
[null,null,null,null,null,null,null,null,0,0]
[null,null,null,null,null,null,null,null,0,0]
[null,null,null,null,null,null,null,null,0,0]
[null,null,null,null,null,null,null,null,0,0]
[null,null,null,null,null,null,null,null,0,0]
[null,null,null,null,null,null,null,null,0,0]
[null,null,null,null,null,null,null,null,0,0]
[null,null,null,null,null,null,null,null,0,0]
[null,null,null,null,null,null,null,null,0,0]
[null,null,null,null,null,null,null,null,0,0]
[null,null,null,null,null,null,null,null,0,0]
[null,null,null,null,null,null,null,null,0,0]
[null,null,null,null,null,null,null,null,0,0]
[null,null,null,null,null,null,null,null,0,0]
[null,null,null,null,null,null,null,null,0,0]
[null,null,null,null,null,null,null,null,0,0]
[null,null,null,null,null,null,null,null,0,0]
[null,null,null,null,null,null,null,null,0,0]
[null,null,null,null,null,null,null,null,0,0]
[null,null,null,null,null,null,null,null,0,0]
[null,null,null,null,null,null,null,null,0,0]
[null,null,null,null,null,null,null,null,0,0]
[null,null,null,null,null,null,null,null,0,0]
[null,null,null,null,null,null,null,null,0,0]
[null,null,null,null,null,null,null,null,0,0]
[null,null,null,null,null,null,null,null,0,0]
[null,null,null,null,null,null,null,null,0,0]
[null,null,null,null,null,null,null,null,0,0]
[null,null,null,null,null,null,null,null,0,0]
[null,null,null,null,null,null,null,null,0,0]
[null,null,null,null,null,null,null,null,0,0]
[null,null,null,null,null,null,null,null,0,0]
[null,null,null,null,null,null,null,null,0,0]
[null,null,null,null,null,null,null,null,0,0]
[null,null,null,null,null,null,null,null,0,0]
[null,null,null,null,null,null,null,null,0,0]
[null,null,null,null,null,null,null,null,0,0]
[null,null,null,null,null,null,null,null,0,0]
[null,null,null,null,null,null,null,null,0,0]
[null,null,null,null,null,null,null,null,0,0]
[null,null,null,null,null,null,null,null,{"$f":"G16195-H16195","v":0},{"$f":"IF(E16610=$M$6,D16610*0,IF(E16610=$M$7,D16610*70,IF(E16610=$M$8,D16610*100,IF(E16610=$M$9,D16610*140,0))))","v":0}]
[null,null,null,null,null,null,null,null,0,0]
[null,null,null,null,null,null,null,null,0,0]
[null,null,null,null,null,null,null,null,0,0]
[null,null,null,null,null,null,null,null,0,0]
[null,null,null,null,null,null,null,null,0,0]
[null,null,null,null,null,null,null,null,0,0]
[null,null,null,null,null,null,null,null,0,0]
[null,null,null,null,null,null,null,null,0,0]
[null,null,null,null,null,null,null,null,0,0]
[null,null,null,null,null,null,null,null,0,0]
[null,null,null,null,null,null,null,null,0,0]
[null,null,null,null,null,null,null,null,0,0]
[null,null,null,null,null,null,null,null,0,0]
[null,null,null,null,null,null,null,null,0,0]
[null,null,null,null,null,null,null,null,0,0]
[null,null,null,null,null,null,null,null,0,0]
[null,null,null,null,null,null,null,null,0,0]
[null,null,null,null,null,null,null,null,0,0]
[null,null,null,null,null,null,null,null,0,0]
[null,null,null,null,null,null,null,null,0,0]
[null,null,null,null,null,null,null,null,0,0]
[null,null,null,null,null,null,null,null,0,0]
[null,null,null,null,null,null,null,null,0,0]
[null,null,null,null,null,null,null,null,0,0]
[null,null,null,null,null,null,null,null,0,0]
[null,null,null,null,null,null,null,null,0,0]
[null,null,null,null,null,null,null,null,0,0]
[null,null,null,null,null,null,null,null,0,0]
[null,null,null,null,null,null,null,null,0,0]
[null,null,null,null,null,null,null,null,0,0]
[null,null,null,null,null,null,null,null,0,0]
[null,null,null,null,null,null,null,null,0,0]
[null,null,null,null,null,null,null,null,0,0]
[null,null,null,null,null,null,null,null,0,0]
[null,null,null,null,null,null,null,null,0,0]
[null,null,null,null,null,null,null,null,0,0]
[null,null,null,null,null,null,null,null,0,0]
[null,null,null,null,null,null,null,null,0,0]
[null,null,null,null,null,null,null,null,0,0]
[null,null,null,null,null,null,null,null,0,0]
[null,null,null,null,null,null,null,null,0,0]
[null,null,null,null,null,null,null,null,0,0]
[null,null,null,null,null,null,null,null,0,0]
[null,null,null,null,null,null,null,null,0,0]
[null,null,null,null,null,null,null,null,0,0]
[null,null,null,null,null,null,null,null,0,0]
[null,null,null,null,null,null,null,null,0,0]
[null,null,null,null,null,null,null,null,0,0]
[null,null,null,null,null,null,null,null,0,0]
[null,null,null,null,null,null,null,null,0,0]
[null,null,null,null,null,null,null,null,0,0]
[null,null,null,null,null,null,null,null,0,0]
[null,null,null,null,null,null,null,null,0,0]
[null,null,null,null,null,null,null,null,0,0]
[null,null,null,null,null,null,null,null,0,0]
[null,null,null,null,null,null,null,null,0,0]
[null,null,null,null,null,null,null,null,0,0]
[null,null,null,null,null,null,null,null,0,0]
[null,null,null,null,null,null,null,null,0,0]
[null,null,null,null,null,null,null,null,0,0]
[null,null,null,null,null,null,null,null,0,0]
[null,null,null,null,null,null,null,null,0,0]
[null,null,null,null,null,null,null,null,0,0]
[null,null,null,null,null,null,null,null,{"$f":"G16259-H16259","v":0},{"$f":"IF(E16674=$M$6,D16674*0,IF(E16674=$M$7,D16674*70,IF(E16674=$M$8,D16674*100,IF(E16674=$M$9,D16674*140,0))))","v":0}]
[null,null,null,null,null,null,null,null,0,0]
[null,null,null,null,null,null,null,null,0,0]
[null,null,null,null,null,null,null,null,0,0]
[null,null,null,null,null,null,null,null,0,0]
[null,null,null,null,null,null,null,null,0,0]
[null,null,null,null,null,null,null,null,0,0]
[null,null,null,null,null,null,null,null,0,0]
[null,null,null,null,null,null,null,null,0,0]
[null,null,null,null,null,null,null,null,0,0]
[null,null,null,null,null,null,null,null,0,0]
[null,null,null,null,null,null,null,null,0,0]
[null,null,null,null,null,null,null,null,0,0]
[null,null,null,null,null,null,null,null,0,0]
[null,null,null,null,null,null,null,null,0,0]
[null,null,null,null,null,null,null,null,0,0]
[null,null,null,null,null,null,null,null,0,0]
[null,null,null,null,null,null,null,null,0,0]
[null,null,null,null,null,null,null,null,0,0]
[null,null,null,null,null,null,null,null,0,0]
[null,null,null,null,null,null,null,null,0,0]
[null,null,null,null,null,null,null,null,0,0]
[null,null,null,null,null,null,null,null,0,0]
[null,null,null,null,null,null,null,null,0,0]
[null,null,null,null,null,null,null,null,0,0]
[null,null,null,null,null,null,null,null,0,0]
[null,null,null,null,null,null,null,null,0,0]
[null,null,null,null,null,null,null,null,0,0]
[null,null,null,null,null,null,null,null,0,0]
[null,null,null,null,null,null,null,null,0,0]
[null,null,null,null,null,null,null,null,0,0]
[null,null,null,null,null,null,null,null,0,0]
[null,null,null,null,null,null,null,null,0,0]
[null,null,null,null,null,null,null,null,0,0]
[null,null,null,null,null,null,null,null,0,0]
[null,null,null,null,null,null,null,null,0,0]
[null,null,null,null,null,null,null,null,0,0]
[null,null,null,null,null,null,null,null,0,0]
[null,null,null,null,null,null,null,null,0,0]
[null,null,null,null,null,null,null,null,0,0]
[null,null,null,null,null,null,null,null,0,0]
[null,null,null,null,null,null,null,null,0,0]
[null,null,null,null,null,null,null,null,0,0]
[null,null,null,null,null,null,null,null,0,0]
[null,null,null,null,null,null,null,null,0,0]
[null,null,null,null,null,null,null,null,0,0]
[null,null,null,null,null,null,null,null,0,0]
[null,null,null,null,null,null,null,null,0,0]
[null,null,null,null,null,null,null,null,0,0]
[null,null,null,null,null,null,null,null,0,0]
[null,null,null,null,null,null,null,null,0,0]
[null,null,null,null,null,null,null,null,0,0]
[null,null,null,null,null,null,null,null,0,0]
[null,null,null,null,null,null,null,null,0,0]
[null,null,null,null,null,null,null,null,0,0]
[null,null,null,null,null,null,null,null,0,0]
[null,null,null,null,null,null,null,null,0,0]
[null,null,null,null,null,null,null,null,0,0]
[null,null,null,null,null,null,null,null,0,0]
[null,null,null,null,null,null,null,null,0,0]
[null,null,null,null,null,null,null,null,0,0]
[null,null,null,null,null,null,null,null,0,0]
[null,null,null,null,null,null,null,null,0,0]
[null,null,null,null,null,null,null,null,0,0]
[null,null,null,null,null,null,null,null,{"$f":"G16323-H16323","v":0},{"$f":"IF(E16738=$M$6,D16738*0,IF(E16738=$M$7,D16738*70,IF(E16738=$M$8,D16738*100,IF(E16738=$M$9,D16738*140,0))))","v":0}]
[null,null,null,null,null,null,null,null,0,0]
[null,null,null,null,null,null,null,null,0,0]
[null,null,null,null,null,null,null,null,0,0]
[null,null,null,null,null,null,null,null,0,0]
[null,null,null,null,null,null,null,null,0,0]
[null,null,null,null,null,null,null,null,0,0]
[null,null,null,null,null,null,null,null,0,0]
[null,null,null,null,null,null,null,null,0,0]
[null,null,null,null,null,null,null,null,0,0]
[null,null,null,null,null,null,null,null,0,0]
[null,null,null,null,null,null,null,null,0,0]
[null,null,null,null,null,null,null,null,0,0]
[null,null,null,null,null,null,null,null,0,0]
[null,null,null,null,null,null,null,null,0,0]
[null,null,null,null,null,null,null,null,0,0]
[null,null,null,null,null,null,null,null,0,0]
[null,null,null,null,null,null,null,null,0,0]
[null,null,null,null,null,null,null,null,0,0]
[null,null,null,null,null,null,null,null,0,0]
[null,null,null,null,null,null,null,null,0,0]
[null,null,null,null,null,null,null,null,0,0]
[null,null,null,null,null,null,null,null,0,0]
[null,null,null,null,null,null,null,null,0,0]
[null,null,null,null,null,null,null,null,0,0]
[null,null,null,null,null,null,null,null,0,0]
[null,null,null,null,null,null,null,null,0,0]
[null,null,null,null,null,null,null,null,0,0]
[null,null,null,null,null,null,null,null,0,0]
[null,null,null,null,null,null,null,null,0,0]
[null,null,null,null,null,null,null,null,0,0]
[null,null,null,null,null,null,null,null,0,0]
[null,null,null,null,null,null,null,null,0,0]
[null,null,null,null,null,null,null,null,0,0]
[null,null,null,null,null,null,null,null,0,0]
[null,null,null,null,null,null,null,null,0,0]
[null,null,null,null,null,null,null,null,0,0]
[null,null,null,null,null,null,null,null,0,0]
[null,null,null,null,null,null,null,null,0,0]
[null,null,null,null,null,null,null,null,0,0]
[null,null,null,null,null,null,null,null,0,0]
[null,null,null,null,null,null,null,null,0,0]
[null,null,null,null,null,null,null,null,0,0]
[null,null,null,null,null,null,null,null,0,0]
[null,null,null,null,null,null,null,null,0,0]
[null,null,null,null,null,null,null,null,0,0]
[null,null,null,null,null,null,null,null,0,0]
[null,null,null,null,null,null,null,null,0,0]
[null,null,null,null,null,null,null,null,0,0]
[null,null,null,null,null,null,null,null,0,0]
[null,null,null,null,null,null,null,null,0,0]
[null,null,null,null,null,null,null,null,0,0]
[null,null,null,null,null,null,null,null,0,0]
[null,null,null,null,null,null,null,null,0,0]
[null,null,null,null,null,null,null,null,0,0]
[null,null,null,null,null,null,null,null,0,0]
[null,null,null,null,null,null,null,null,0,0]
[null,null,null,null,null,null,null,null,0,0]
[null,null,null,null,null,null,null,null,0,0]
[null,null,null,null,null,null,null,null,0,0]
[null,null,null,null,null,null,null,null,0,0]
[null,null,null,null,null,null,null,null,0,0]
[null,null,null,null,null,null,null,null,0,0]
[null,null,null,null,null,null,null,null,0,0]
[null,null,null,null,null,null,null,null,{"$f":"G16387-H16387","v":0},{"$f":"IF(E16802=$M$6,D16802*0,IF(E16802=$M$7,D16802*70,IF(E16802=$M$8,D16802*100,IF(E16802=$M$9,D16802*140,0))))","v":0}]
[null,null,null,null,null,null,null,null,0,0]
[null,null,null,null,null,null,null,null,0,0]
[null,null,null,null,null,null,null,null,0,0]
[null,null,null,null,null,null,null,null,0,0]
[null,null,null,null,null,null,null,null,0,0]
[null,null,null,null,null,null,null,null,0,0]
[null,null,null,null,null,null,null,null,0,0]
[null,null,null,null,null,null,null,null,0,0]
[null,null,null,null,null,null,null,null,0,0]
[null,null,null,null,null,null,null,null,0,0]
[null,null,null,null,null,null,null,null,0,0]
[null,null,null,null,null,null,null,null,0,0]
[null,null,null,null,null,null,null,null,0,0]
[null,null,null,null,null,null,null,null,0,0]
[null,null,null,null,null,null,null,null,0,0]
[null,null,null,null,null,null,null,null,0,0]
[null,null,null,null,null,null,null,null,0,0]
[null,null,null,null,null,null,null,null,0,0]
[null,null,null,null,null,null,null,null,0,0]
[null,null,null,null,null,null,null,null,0,0]
[null,null,null,null,null,null,null,null,0,0]
[null,null,null,null,null,null,null,null,0,0]
[null,null,null,null,null,null,null,null,0,0]
[null,null,null,null,null,null,null,null,0,0]
[null,null,null,null,null,null,null,null,0,0]
[null,null,null,null,null,null,null,null,0,0]
[null,null,null,null,null,null,null,null,0,0]
[null,null,null,null,null,null,null,null,0,0]
[null,null,null,null,null,null,null,null,0,0]
[null,null,null,null,null,null,null,null,0,0]
[null,null,null,null,null,null,null,null,0,0]
[null,null,null,null,null,null,null,null,0,0]
[null,null,null,null,null,null,null,null,0,0]
[null,null,null,null,null,null,null,null,0,0]
[null,null,null,null,null,null,null,null,0,0]
[null,null,null,null,null,null,null,null,0,0]
[null,null,null,null,null,null,null,null,0,0]
[null,null,null,null,null,null,null,null,0,0]
[null,null,null,null,null,null,null,null,0,0]
[null,null,null,null,null,null,null,null,0,0]
[null,null,null,null,null,null,null,null,0,0]
[null,null,null,null,null,null,null,null,0,0]
[null,null,null,null,null,null,null,null,0,0]
[null,null,null,null,null,null,null,null,0,0]
[null,null,null,null,null,null,null,null,0,0]
[null,null,null,null,null,null,null,null,0,0]
[null,null,null,null,null,null,null,null,0,0]
[null,null,null,null,null,null,null,null,0,0]
[null,null,null,null,null,null,null,null,0,0]
[null,null,null,null,null,null,null,null,0,0]
[null,null,null,null,null,null,null,null,0,0]
[null,null,null,null,null,null,null,null,0,0]
[null,null,null,null,null,null,null,null,0,0]
[null,null,null,null,null,null,null,null,0,0]
[null,null,null,null,null,null,null,null,0,0]
[null,null,null,null,null,null,null,null,0,0]
[null,null,null,null,null,null,null,null,0,0]
[null,null,null,null,null,null,null,null,0,0]
[null,null,null,null,null,null,null,null,0,0]
[null,null,null,null,null,null,null,null,0,0]
[null,null,null,null,null,null,null,null,0,0]
[null,null,null,null,null,null,null,null,0,0]
[null,null,null,null,null,null,null,null,0,0]
[null,null,null,null,null,null,null,null,{"$f":"G16451-H16451","v":0},{"$f":"IF(E16866=$M$6,D16866*0,IF(E16866=$M$7,D16866*70,IF(E16866=$M$8,D16866*100,IF(E16866=$M$9,D16866*140,0))))","v":0}]
[null,null,null,null,null,null,null,null,0,0]
[null,null,null,null,null,null,null,null,0,0]
[null,null,null,null,null,null,null,null,0,0]
[null,null,null,null,null,null,null,null,0,0]
[null,null,null,null,null,null,null,null,0,0]
[null,null,null,null,null,null,null,null,0,0]
[null,null,null,null,null,null,null,null,0,0]
[null,null,null,null,null,null,null,null,0,0]
[null,null,null,null,null,null,null,null,0,0]
[null,null,null,null,null,null,null,null,0,0]
[null,null,null,null,null,null,null,null,0,0]
[null,null,null,null,null,null,null,null,0,0]
[null,null,null,null,null,null,null,null,0,0]
[null,null,null,null,null,null,null,null,0,0]
[null,null,null,null,null,null,null,null,0,0]
[null,null,null,null,null,null,null,null,0,0]
[null,null,null,null,null,null,null,null,0,0]
[null,null,null,null,null,null,null,null,0,0]
[null,null,null,null,null,null,null,null,0,0]
[null,null,null,null,null,null,null,null,0,0]
[null,null,null,null,null,null,null,null,0,0]
[null,null,null,null,null,null,null,null,0,0]
[null,null,null,null,null,null,null,null,0,0]
[null,null,null,null,null,null,null,null,0,0]
[null,null,null,null,null,null,null,null,0,0]
[null,null,null,null,null,null,null,null,0,0]
[null,null,null,null,null,null,null,null,0,0]
[null,null,null,null,null,null,null,null,0,0]
[null,null,null,null,null,null,null,null,0,0]
[null,null,null,null,null,null,null,null,0,0]
[null,null,null,null,null,null,null,null,0,0]
[null,null,null,null,null,null,null,null,0,0]
[null,null,null,null,null,null,null,null,0,0]
[null,null,null,null,null,null,null,null,0,0]
[null,null,null,null,null,null,null,null,0,0]
[null,null,null,null,null,null,null,null,0,0]
[null,null,null,null,null,null,null,null,0,0]
[null,null,null,null,null,null,null,null,0,0]
[null,null,null,null,null,null,null,null,0,0]
[null,null,null,null,null,null,null,null,0,0]
[null,null,null,null,null,null,null,null,0,0]
[null,null,null,null,null,null,null,null,0,0]
[null,null,null,null,null,null,null,null,0,0]
[null,null,null,null,null,null,null,null,0,0]
[null,null,null,null,null,null,null,null,0,0]
[null,null,null,null,null,null,null,null,0,0]
[null,null,null,null,null,null,null,null,0,0]
[null,null,null,null,null,null,null,null,0,0]
[null,null,null,null,null,null,null,null,0,0]
[null,null,null,null,null,null,null,null,0,0]
[null,null,null,null,null,null,null,null,0,0]
[null,null,null,null,null,null,null,null,0,0]
[null,null,null,null,null,null,null,null,0,0]
[null,null,null,null,null,null,null,null,0,0]
[null,null,null,null,null,null,null,null,0,0]
[null,null,null,null,null,null,null,null,0,0]
[null,null,null,null,null,null,null,null,0,0]
[null,null,null,null,null,null,null,null,0,0]
[null,null,null,null,null,null,null,null,0,0]
[null,null,null,null,null,null,null,null,0,0]
[null,null,null,null,null,null,null,null,0,0]
[null,null,null,null,null,null,null,null,0,0]
[null,null,null,null,null,null,null,null,0,0]
[null,null,null,null,null,null,null,null,{"$f":"G16515-H16515","v":0},{"$f":"IF(E16930=$M$6,D16930*0,IF(E16930=$M$7,D16930*70,IF(E16930=$M$8,D16930*100,IF(E16930=$M$9,D16930*140,0))))","v":0}]
[null,null,null,null,null,null,null,null,0,0]
[null,null,null,null,null,null,null,null,0,0]
[null,null,null,null,null,null,null,null,0,0]
[null,null,null,null,null,null,null,null,0,0]
[null,null,null,null,null,null,null,null,0,0]
[null,null,null,null,null,null,null,null,0,0]
[null,null,null,null,null,null,null,null,0,0]
[null,null,null,null,null,null,null,null,0,0]
[null,null,null,null,null,null,null,null,0,0]
[null,null,null,null,null,null,null,null,0,0]
[null,null,null,null,null,null,null,null,0,0]
[null,null,null,null,null,null,null,null,0,0]
[null,null,null,null,null,null,null,null,0,0]
[null,null,null,null,null,null,null,null,0,0]
[null,null,null,null,null,null,null,null,0,0]
[null,null,null,null,null,null,null,null,0,0]
[null,null,null,null,null,null,null,null,0,0]
[null,null,null,null,null,null,null,null,0,0]
[null,null,null,null,null,null,null,null,0,0]
[null,null,null,null,null,null,null,null,0,0]
[null,null,null,null,null,null,null,null,0,0]
[null,null,null,null,null,null,null,null,0,0]
[null,null,null,null,null,null,null,null,0,0]
[null,null,null,null,null,null,null,null,0,0]
[null,null,null,null,null,null,null,null,0,0]
[null,null,null,null,null,null,null,null,0,0]
[null,null,null,null,null,null,null,null,0,0]
[null,null,null,null,null,null,null,null,0,0]
[null,null,null,null,null,null,null,null,0,0]
[null,null,null,null,null,null,null,null,0,0]
[null,null,null,null,null,null,null,null,0,0]
[null,null,null,null,null,null,null,null,0,0]
[null,null,null,null,null,null,null,null,0,0]
[null,null,null,null,null,null,null,null,0,0]
[null,null,null,null,null,null,null,null,0,0]
[null,null,null,null,null,null,null,null,0,0]
[null,null,null,null,null,null,null,null,0,0]
[null,null,null,null,null,null,null,null,0,0]
[null,null,null,null,null,null,null,null,0,0]
[null,null,null,null,null,null,null,null,0,0]
[null,null,null,null,null,null,null,null,0,0]
[null,null,null,null,null,null,null,null,0,0]
[null,null,null,null,null,null,null,null,0,0]
[null,null,null,null,null,null,null,null,0,0]
[null,null,null,null,null,null,null,null,0,0]
[null,null,null,null,null,null,null,null,0,0]
[null,null,null,null,null,null,null,null,0,0]
[null,null,null,null,null,null,null,null,0,0]
[null,null,null,null,null,null,null,null,0,0]
[null,null,null,null,null,null,null,null,0,0]
[null,null,null,null,null,null,null,null,0,0]
[null,null,null,null,null,null,null,null,0,0]
[null,null,null,null,null,null,null,null,0,0]
[null,null,null,null,null,null,null,null,0,0]
[null,null,null,null,null,null,null,null,0,0]
[null,null,null,null,null,null,null,null,0,0]
[null,null,null,null,null,null,null,null,0,0]
[null,null,null,null,null,null,null,null,0,0]
[null,null,null,null,null,null,null,null,0,0]
[null,null,null,null,null,null,null,null,0,{"$f":"IF(E16990=$M$6,D16990*0,IF(E16990=$M$7,D16990*70,IF(E16990=$M$8,D16990*100,IF(E16990=$M$9,D16990*140,0))))","v":0}]
[null,null,null,null,null,null,null,null,0,{"$f":"IF(E16991=$M$6,D16991*0,IF(E16991=$M$7,D16991*70,IF(E16991=$M$8,D16991*100,IF(E16991=$M$9,D16991*140,0))))","v":0}]
[null,null,null,null,null,null,null,null,0,0]
[null,null,null,null,null,null,null,null,0,0]
[null,null,null,null,null,null,null,null,{"$f":"G16579-H16579","v":0},0]
[null,null,null,null,null,null,null,null,0,0]
[null,null,null,null,null,null,null,null,0,0]
[null,null,null,null,null,null,null,null,0,0]
[null,null,null,null,null,null,null,null,0,0]
[null,null,null,null,null,null,null,null,0,0]
[null,null,null,null,null,null,null,null,0,0]
[null,null,null,null,null,null,null,null,0,0]
[null,null,null,null,null,null,null,null,0,0]
[null,null,null,null,null,null,null,null,0,0]
[null,null,null,null,null,null,null,null,0,0]
[null,null,null,null,null,null,null,null,0,0]
[null,null,null,null,null,null,null,null,0,0]
[null,null,null,null,null,null,null,null,0,0]
[null,null,null,null,null,null,null,null,0,0]
[null,null,null,null,null,null,null,null,0,0]
[null,null,null,null,null,null,null,null,0,0]
[null,null,null,null,null,null,null,null,0,0]
[null,null,null,null,null,null,null,null,0,0]
[null,null,null,null,null,null,null,null,0,0]
[null,null,null,null,null,null,null,null,0,0]
[null,null,null,null,null,null,null,null,0,0]
[null,null,null,null,null,null,null,null,0,0]
[null,null,null,null,null,null,null,null,0,0]
[null,null,null,null,null,null,null,null,0,0]
[null,null,null,null,null,null,null,null,0,0]
[null,null,null,null,null,null,null,null,0,0]
[null,null,null,null,null,null,null,null,0,0]
[null,null,null,null,null,null,null,null,0,0]
[null,null,null,null,null,null,null,null,0,0]
[null,null,null,null,null,null,null,null,0,0]
[null,null,null,null,null,null,null,null,0,0]
[null,null,null,null,null,null,null,null,0,0]
[null,null,null,null,null,null,null,null,0,0]
[null,null,null,null,null,null,null,null,0,0]
[null,null,null,null,null,null,null,null,0,0]
[null,null,null,null,null,null,null,null,0,0]
[null,null,null,null,null,null,null,null,0,0]
[null,null,null,null,null,null,null,null,0,0]
[null,null,null,null,null,null,null,null,0,0]
[null,null,null,null,null,null,null,null,0,0]
[null,null,null,null,null,null,null,null,0,0]
[null,null,null,null,null,null,null,null,0,0]
[null,null,null,null,null,null,null,null,0,0]
[null,null,null,null,null,null,null,null,0,0]
[null,null,null,null,null,null,null,null,0,0]
[null,null,null,null,null,null,null,null,0,0]
[null,null,null,null,null,null,null,null,0,0]
[null,null,null,null,null,null,null,null,0,0]
[null,null,null,null,null,null,null,null,0,0]
[null,null,null,null,null,null,null,null,0,0]
[null,null,null,null,null,null,null,null,0,0]
[null,null,null,null,null,null,null,null,0,0]
[null,null,null,null,null,null,null,null,0,0]
[null,null,null,null,null,null,null,null,0,0]
[null,null,null,null,null,null,null,null,0,0]
[null,null,null,null,null,null,null,null,0,0]
[null,null,null,null,null,null,null,null,0,0]
[null,null,null,null,null,null,null,null,0,0]
[null,null,null,null,null,null,null,null,0,0]
[null,null,null,null,null,null,null,null,0,0]
[null,null,null,null,null,null,null,null,0,{"$f":"IF(E17055=$M$6,D17055*0,IF(E17055=$M$7,D17055*70,IF(E17055=$M$8,D17055*100,IF(E17055=$M$9,D17055*140,0))))","v":0}]
[null,null,null,null,null,null,null,null,0,0]
[null,null,null,null,null,null,null,null,0,0]
[null,null,null,null,null,null,null,null,{"$f":"G16643-H16643","v":0},0]
[null,null,null,null,null,null,null,null,0,0]
[null,null,null,null,null,null,null,null,0,0]
[null,null,null,null,null,null,null,null,0,0]
[null,null,null,null,null,null,null,null,0,0]
[null,null,null,null,null,null,null,null,0,0]
[null,null,null,null,null,null,null,null,0,0]
[null,null,null,null,null,null,null,null,0,0]
[null,null,null,null,null,null,null,null,0,0]
[null,null,null,null,null,null,null,null,0,0]
[null,null,null,null,null,null,null,null,0,0]
[null,null,null,null,null,null,null,null,0,0]
[null,null,null,null,null,null,null,null,0,0]
[null,null,null,null,null,null,null,null,0,0]
[null,null,null,null,null,null,null,null,0,0]
[null,null,null,null,null,null,null,null,0,0]
[null,null,null,null,null,null,null,null,0,0]
[null,null,null,null,null,null,null,null,0,0]
[null,null,null,null,null,null,null,null,0,0]
[null,null,null,null,null,null,null,null,0,0]
[null,null,null,null,null,null,null,null,0,0]
[null,null,null,null,null,null,null,null,0,0]
[null,null,null,null,null,null,null,null,0,0]
[null,null,null,null,null,null,null,null,0,0]
[null,null,null,null,null,null,null,null,0,0]
[null,null,null,null,null,null,null,null,0,0]
[null,null,null,null,null,null,null,null,0,0]
[null,null,null,null,null,null,null,null,0,0]
[null,null,null,null,null,null,null,null,0,0]

{"sheet":"sheet2","index":1,"n_rows":0,"n_cols":0,"rows_kept":0,"cut":false,"hidden":false,"merged":[]}

{"sheet":"sheet3","index":2,"n_rows":0,"n_cols":0,"rows_kept":0,"cut":false,"hidden":false,"merged":[]}